Workbook

Sheet Sheet4 (hidden)
A1: Outcomes | B1: Budget 20242 | C1: % Share | D1: Budget 20252 | E1: Diff + | F1: Diff - | G1: MAX | H1: Data Label + | I1: Data Label - | J1: Share
A2: 15 SCH Dual Credit | B2: 90153266.67 | C2: 0.07955349281 | D2: 197837548.9 | E2: =IF(Table16[[#This Row],[Budget 20252]]>Table16[[#This Row],[Budget 20242]],Table16[[#This Row],[Budget 20252]]-Table16[[#This Row],[Budget 20242]],0) -> 107684282.2 | F2: =IF(Table16[[#This Row],[Budget 20242]]>Table16[[#This Row],[Budget 20252]],Table16[[#This Row],[Budget 20242]]-Table16[[#This Row],[Budget 20252]],0) -> 0 | G2: =MAX(Table16[[#This Row],[Budget 20242]:[Budget 20252]]) -> 197837548.9 | H2: =IF(Table16[[#This Row],[Budget 20252]]>Table16[[#This Row],[Budget 20242]],Table16[[#This Row],[Diff +]]/Table16[[#This Row],[Budget 20252]],"") -> 0.5443065931 | I2: =IF(Table16[[#This Row],[Budget 20242]]>Table16[[#This Row],[Budget 20252]],Table16[[#This Row],[Diff -]]/Table16[[#This Row],[Budget 20242]],"") ->  | J2: 0.1679388641
A3: GAI Transfer with 15 SCH | B3: 326988958.3 | C3: 0.2885432188 | D3: 258760922.4 | E3: =IF(Table16[[#This Row],[Budget 20252]]>Table16[[#This Row],[Budget 20242]],Table16[[#This Row],[Budget 20252]]-Table16[[#This Row],[Budget 20242]],0) -> 0 | F3: =IF(Table16[[#This Row],[Budget 20242]]>Table16[[#This Row],[Budget 20252]],Table16[[#This Row],[Budget 20242]]-Table16[[#This Row],[Budget 20252]],0) -> 68228035.97 | G3: =MAX(Table16[[#This Row],[Budget 20242]:[Budget 20252]]) -> 326988958.3 | H3: =IF(Table16[[#This Row],[Budget 20252]]>Table16[[#This Row],[Budget 20242]],Table16[[#This Row],[Diff +]]/Table16[[#This Row],[Budget 20252]],"") ->  | I3: =IF(Table16[[#This Row],[Budget 20242]]>Table16[[#This Row],[Budget 20252]],Table16[[#This Row],[Diff -]]/Table16[[#This Row],[Budget 20242]],"") -> 0.2086554736 | J3: 0.2196550433
A4: GAI Co-Enrollment with 15 SCH | B4: 4841958.333 | C4: 0.004272664893 | D4: 3355927.473 | E4: =IF(Table16[[#This Row],[Budget 20252]]>Table16[[#This Row],[Budget 20242]],Table16[[#This Row],[Budget 20252]]-Table16[[#This Row],[Budget 20242]],0) -> 0 | F4: =IF(Table16[[#This Row],[Budget 20242]]>Table16[[#This Row],[Budget 20252]],Table16[[#This Row],[Budget 20242]]-Table16[[#This Row],[Budget 20252]],0) -> 1486030.861 | G4: =MAX(Table16[[#This Row],[Budget 20242]:[Budget 20252]]) -> 4841958.333 | H4: =IF(Table16[[#This Row],[Budget 20252]]>Table16[[#This Row],[Budget 20242]],Table16[[#This Row],[Diff +]]/Table16[[#This Row],[Budget 20252]],"") ->  | I4: =IF(Table16[[#This Row],[Budget 20242]]>Table16[[#This Row],[Budget 20252]],Table16[[#This Row],[Diff -]]/Table16[[#This Row],[Budget 20242]],"") -> 0.3069069906 | J4: 0.002848754702
A5: Licensure/Certification (no credential) | B5: 284000 | C5: 0.0002506086889 | E5: =IF(Table16[[#This Row],[Budget 20252]]>Table16[[#This Row],[Budget 20242]],Table16[[#This Row],[Budget 20252]]-Table16[[#This Row],[Budget 20242]],0) -> 0 | F5: =IF(Table16[[#This Row],[Budget 20242]]>Table16[[#This Row],[Budget 20252]],Table16[[#This Row],[Budget 20242]]-Table16[[#This Row],[Budget 20252]],0) -> 284000 | G5: =MAX(Table16[[#This Row],[Budget 20242]:[Budget 20252]]) -> 284000 | H5: =IF(Table16[[#This Row],[Budget 20252]]>Table16[[#This Row],[Budget 20242]],Table16[[#This Row],[Diff +]]/Table16[[#This Row],[Budget 20252]],"") ->  | I5: =IF(Table16[[#This Row],[Budget 20242]]>Table16[[#This Row],[Budget 20252]],Table16[[#This Row],[Diff -]]/Table16[[#This Row],[Budget 20242]],"") -> 1
A6: High-Demand Licensure/Certification | B6: 3918750 | C6: 0.003458002815 | E6: =IF(Table16[[#This Row],[Budget 20252]]>Table16[[#This Row],[Budget 20242]],Table16[[#This Row],[Budget 20252]]-Table16[[#This Row],[Budget 20242]],0) -> 0 | F6: =IF(Table16[[#This Row],[Budget 20242]]>Table16[[#This Row],[Budget 20252]],Table16[[#This Row],[Budget 20242]]-Table16[[#This Row],[Budget 20252]],0) -> 3918750 | G6: =MAX(Table16[[#This Row],[Budget 20242]:[Budget 20252]]) -> 3918750 | H6: =IF(Table16[[#This Row],[Budget 20252]]>Table16[[#This Row],[Budget 20242]],Table16[[#This Row],[Diff +]]/Table16[[#This Row],[Budget 20252]],"") ->  | I6: =IF(Table16[[#This Row],[Budget 20242]]>Table16[[#This Row],[Budget 20252]],Table16[[#This Row],[Diff -]]/Table16[[#This Row],[Budget 20242]],"") -> 1
A7: Institutional Credential leading to Licensure | B7: 2244000 | C7: 0.001980161612 | D7: 1518596.833 | E7: =IF(Table16[[#This Row],[Budget 20252]]>Table16[[#This Row],[Budget 20242]],Table16[[#This Row],[Budget 20252]]-Table16[[#This Row],[Budget 20242]],0) -> 0 | F7: =IF(Table16[[#This Row],[Budget 20242]]>Table16[[#This Row],[Budget 20252]],Table16[[#This Row],[Budget 20242]]-Table16[[#This Row],[Budget 20252]],0) -> 725403.1674 | G7: =MAX(Table16[[#This Row],[Budget 20242]:[Budget 20252]]) -> 2244000 | H7: =IF(Table16[[#This Row],[Budget 20252]]>Table16[[#This Row],[Budget 20242]],Table16[[#This Row],[Diff +]]/Table16[[#This Row],[Budget 20252]],"") ->  | I7: =IF(Table16[[#This Row],[Budget 20242]]>Table16[[#This Row],[Budget 20252]],Table16[[#This Row],[Diff -]]/Table16[[#This Row],[Budget 20242]],"") -> 0.3232634436 | J7: 0.001289095162
A8: High-Demand Institutional Credential | B8: 10305833.33 | C8: 0.009094124576 | D8: 15825771.65 | E8: =IF(Table16[[#This Row],[Budget 20252]]>Table16[[#This Row],[Budget 20242]],Table16[[#This Row],[Budget 20252]]-Table16[[#This Row],[Budget 20242]],0) -> 5519938.32 | F8: =IF(Table16[[#This Row],[Budget 20242]]>Table16[[#This Row],[Budget 20252]],Table16[[#This Row],[Budget 20242]]-Table16[[#This Row],[Budget 20252]],0) -> 0 | G8: =MAX(Table16[[#This Row],[Budget 20242]:[Budget 20252]]) -> 15825771.65 | H8: =IF(Table16[[#This Row],[Budget 20252]]>Table16[[#This Row],[Budget 20242]],Table16[[#This Row],[Diff +]]/Table16[[#This Row],[Budget 20252]],"") -> 0.3487942605 | I8: =IF(Table16[[#This Row],[Budget 20242]]>Table16[[#This Row],[Budget 20252]],Table16[[#This Row],[Diff -]]/Table16[[#This Row],[Budget 20242]],"") ->  | J8: 0.0134340631
A9: Occupational Skills Award (OSA) | B9: 1668750 | C9: 0.001472546653 | D9: 3854690.445 | E9: =IF(Table16[[#This Row],[Budget 20252]]>Table16[[#This Row],[Budget 20242]],Table16[[#This Row],[Budget 20252]]-Table16[[#This Row],[Budget 20242]],0) -> 2185940.445 | F9: =IF(Table16[[#This Row],[Budget 20242]]>Table16[[#This Row],[Budget 20252]],Table16[[#This Row],[Budget 20242]]-Table16[[#This Row],[Budget 20252]],0) -> 0 | G9: =MAX(Table16[[#This Row],[Budget 20242]:[Budget 20252]]) -> 3854690.445 | H9: =IF(Table16[[#This Row],[Budget 20252]]>Table16[[#This Row],[Budget 20242]],Table16[[#This Row],[Diff +]]/Table16[[#This Row],[Budget 20252]],"") -> 0.5670858597 | I9: =IF(Table16[[#This Row],[Budget 20242]]>Table16[[#This Row],[Budget 20252]],Table16[[#This Row],[Diff -]]/Table16[[#This Row],[Budget 20242]],"") ->  | J9: 0.003272140897
A10: High-Demand OSA | B10: 7371000 | C10: 0.006504354387 | D10: 13743594.94 | E10: =IF(Table16[[#This Row],[Budget 20252]]>Table16[[#This Row],[Budget 20242]],Table16[[#This Row],[Budget 20252]]-Table16[[#This Row],[Budget 20242]],0) -> 6372594.944 | F10: =IF(Table16[[#This Row],[Budget 20242]]>Table16[[#This Row],[Budget 20252]],Table16[[#This Row],[Budget 20242]]-Table16[[#This Row],[Budget 20252]],0) -> 0 | G10: =MAX(Table16[[#This Row],[Budget 20242]:[Budget 20252]]) -> 13743594.94 | H10: =IF(Table16[[#This Row],[Budget 20252]]>Table16[[#This Row],[Budget 20242]],Table16[[#This Row],[Diff +]]/Table16[[#This Row],[Budget 20252]],"") -> 0.4636774417 | I10: =IF(Table16[[#This Row],[Budget 20242]]>Table16[[#This Row],[Budget 20252]],Table16[[#This Row],[Diff -]]/Table16[[#This Row],[Budget 20242]],"") ->  | J10: 0.01166656045
A11: Certificate I or II | B11: 46243750 | C11: 0.04080663928 | D11: 47596967.03 | E11: =IF(Table16[[#This Row],[Budget 20252]]>Table16[[#This Row],[Budget 20242]],Table16[[#This Row],[Budget 20252]]-Table16[[#This Row],[Budget 20242]],0) -> 1353217.035 | F11: =IF(Table16[[#This Row],[Budget 20242]]>Table16[[#This Row],[Budget 20252]],Table16[[#This Row],[Budget 20242]]-Table16[[#This Row],[Budget 20252]],0) -> 0 | G11: =MAX(Table16[[#This Row],[Budget 20242]:[Budget 20252]]) -> 47596967.03 | H11: =IF(Table16[[#This Row],[Budget 20252]]>Table16[[#This Row],[Budget 20242]],Table16[[#This Row],[Diff +]]/Table16[[#This Row],[Budget 20252]],"") -> 0.02843074084 | I11: =IF(Table16[[#This Row],[Budget 20242]]>Table16[[#This Row],[Budget 20252]],Table16[[#This Row],[Diff -]]/Table16[[#This Row],[Budget 20242]],"") ->  | J11: 0.04040375865
A12: High-Demand Cert I or II | B12: 100344416.7 | C12: 0.08854641795 | D12: 106835013.2 | E12: =IF(Table16[[#This Row],[Budget 20252]]>Table16[[#This Row],[Budget 20242]],Table16[[#This Row],[Budget 20252]]-Table16[[#This Row],[Budget 20242]],0) -> 6490596.567 | F12: =IF(Table16[[#This Row],[Budget 20242]]>Table16[[#This Row],[Budget 20252]],Table16[[#This Row],[Budget 20242]]-Table16[[#This Row],[Budget 20252]],0) -> 0 | G12: =MAX(Table16[[#This Row],[Budget 20242]:[Budget 20252]]) -> 106835013.2 | H12: =IF(Table16[[#This Row],[Budget 20252]]>Table16[[#This Row],[Budget 20242]],Table16[[#This Row],[Diff +]]/Table16[[#This Row],[Budget 20252]],"") -> 0.06075345873 | I12: =IF(Table16[[#This Row],[Budget 20242]]>Table16[[#This Row],[Budget 20252]],Table16[[#This Row],[Diff -]]/Table16[[#This Row],[Budget 20242]],"") ->  | J12: 0.09068930983
A13: Advanced Technical Certificate | B13: 75687.5 | C13: 6.678853923e-05 | D13: 147499.1834 | E13: =IF(Table16[[#This Row],[Budget 20252]]>Table16[[#This Row],[Budget 20242]],Table16[[#This Row],[Budget 20252]]-Table16[[#This Row],[Budget 20242]],0) -> 71811.68343 | F13: =IF(Table16[[#This Row],[Budget 20242]]>Table16[[#This Row],[Budget 20252]],Table16[[#This Row],[Budget 20242]]-Table16[[#This Row],[Budget 20252]],0) -> 0 | G13: =MAX(Table16[[#This Row],[Budget 20242]:[Budget 20252]]) -> 147499.1834 | H13: =IF(Table16[[#This Row],[Budget 20252]]>Table16[[#This Row],[Budget 20242]],Table16[[#This Row],[Diff +]]/Table16[[#This Row],[Budget 20252]],"") -> 0.486861566 | I13: =IF(Table16[[#This Row],[Budget 20242]]>Table16[[#This Row],[Budget 20252]],Table16[[#This Row],[Diff -]]/Table16[[#This Row],[Budget 20242]],"") ->  | J13: 0.0001252080076
A14: High-Demand ATC | B14: 2689166.667 | C14: 0.002372987791 | D14: 1926163.026 | E14: =IF(Table16[[#This Row],[Budget 20252]]>Table16[[#This Row],[Budget 20242]],Table16[[#This Row],[Budget 20252]]-Table16[[#This Row],[Budget 20242]],0) -> 0 | F14: =IF(Table16[[#This Row],[Budget 20242]]>Table16[[#This Row],[Budget 20252]],Table16[[#This Row],[Budget 20242]]-Table16[[#This Row],[Budget 20252]],0) -> 763003.6402 | G14: =MAX(Table16[[#This Row],[Budget 20242]:[Budget 20252]]) -> 2689166.667 | H14: =IF(Table16[[#This Row],[Budget 20252]]>Table16[[#This Row],[Budget 20242]],Table16[[#This Row],[Diff +]]/Table16[[#This Row],[Budget 20252]],"") ->  | I14: =IF(Table16[[#This Row],[Budget 20242]]>Table16[[#This Row],[Budget 20252]],Table16[[#This Row],[Diff -]]/Table16[[#This Row],[Budget 20242]],"") -> 0.2837323732 | J14: 0.001635066915
A15: Associate Degree | B15: 331236500 | C15: 0.2922913556 | D15: 328789908.3 | E15: =IF(Table16[[#This Row],[Budget 20252]]>Table16[[#This Row],[Budget 20242]],Table16[[#This Row],[Budget 20252]]-Table16[[#This Row],[Budget 20242]],0) -> 0 | F15: =IF(Table16[[#This Row],[Budget 20242]]>Table16[[#This Row],[Budget 20252]],Table16[[#This Row],[Budget 20242]]-Table16[[#This Row],[Budget 20252]],0) -> 2446591.747 | G15: =MAX(Table16[[#This Row],[Budget 20242]:[Budget 20252]]) -> 331236500 | H15: =IF(Table16[[#This Row],[Budget 20252]]>Table16[[#This Row],[Budget 20242]],Table16[[#This Row],[Diff +]]/Table16[[#This Row],[Budget 20252]],"") ->  | I15: =IF(Table16[[#This Row],[Budget 20242]]>Table16[[#This Row],[Budget 20252]],Table16[[#This Row],[Diff -]]/Table16[[#This Row],[Budget 20242]],"") -> 0.007386238374 | J15: 0.279100727
A16: High-Demand Associate | B16: 141953625 | C16: 0.125263422 | D16: 115257202.2 | E16: =IF(Table16[[#This Row],[Budget 20252]]>Table16[[#This Row],[Budget 20242]],Table16[[#This Row],[Budget 20252]]-Table16[[#This Row],[Budget 20242]],0) -> 0 | F16: =IF(Table16[[#This Row],[Budget 20242]]>Table16[[#This Row],[Budget 20252]],Table16[[#This Row],[Budget 20242]]-Table16[[#This Row],[Budget 20252]],0) -> 26696422.85 | G16: =MAX(Table16[[#This Row],[Budget 20242]:[Budget 20252]]) -> 141953625 | H16: =IF(Table16[[#This Row],[Budget 20252]]>Table16[[#This Row],[Budget 20242]],Table16[[#This Row],[Diff +]]/Table16[[#This Row],[Budget 20252]],"") ->  | I16: =IF(Table16[[#This Row],[Budget 20242]]>Table16[[#This Row],[Budget 20252]],Table16[[#This Row],[Diff -]]/Table16[[#This Row],[Budget 20242]],"") -> 0.1880643967 | J16: 0.09783867479
A17: Bachelor's Degree | B17: 2537500 | C17: 0.002239153338 | D17: 3744738.457 | E17: =IF(Table16[[#This Row],[Budget 20252]]>Table16[[#This Row],[Budget 20242]],Table16[[#This Row],[Budget 20252]]-Table16[[#This Row],[Budget 20242]],0) -> 1207238.457 | F17: =IF(Table16[[#This Row],[Budget 20242]]>Table16[[#This Row],[Budget 20252]],Table16[[#This Row],[Budget 20242]]-Table16[[#This Row],[Budget 20252]],0) -> 0 | G17: =MAX(Table16[[#This Row],[Budget 20242]:[Budget 20252]]) -> 3744738.457 | H17: =IF(Table16[[#This Row],[Budget 20252]]>Table16[[#This Row],[Budget 20242]],Table16[[#This Row],[Diff +]]/Table16[[#This Row],[Budget 20252]],"") -> 0.3223825832 | I17: =IF(Table16[[#This Row],[Budget 20242]]>Table16[[#This Row],[Budget 20252]],Table16[[#This Row],[Diff -]]/Table16[[#This Row],[Budget 20242]],"") ->  | J17: 0.003178805673
A18: High-Demand Bachelor's | B18: 4221375 | C18: 0.003725046669 | D18: 7379817.477 | E18: =IF(Table16[[#This Row],[Budget 20252]]>Table16[[#This Row],[Budget 20242]],Table16[[#This Row],[Budget 20252]]-Table16[[#This Row],[Budget 20242]],0) -> 3158442.477 | F18: =IF(Table16[[#This Row],[Budget 20242]]>Table16[[#This Row],[Budget 20252]],Table16[[#This Row],[Budget 20242]]-Table16[[#This Row],[Budget 20252]],0) -> 0 | G18: =MAX(Table16[[#This Row],[Budget 20242]:[Budget 20252]]) -> 7379817.477 | H18: =IF(Table16[[#This Row],[Budget 20252]]>Table16[[#This Row],[Budget 20242]],Table16[[#This Row],[Diff +]]/Table16[[#This Row],[Budget 20252]],"") -> 0.4279838203 | I18: =IF(Table16[[#This Row],[Budget 20242]]>Table16[[#This Row],[Budget 20252]],Table16[[#This Row],[Diff -]]/Table16[[#This Row],[Budget 20242]],"") ->  | J18: 0.006264524461
A19: CoV Premium: Certificate | B19: 0 | C19: 0 | D19: 9059443.986 | E19: =IF(Table16[[#This Row],[Budget 20252]]>Table16[[#This Row],[Budget 20242]],Table16[[#This Row],[Budget 20252]]-Table16[[#This Row],[Budget 20242]],0) -> 9059443.986 | F19: =IF(Table16[[#This Row],[Budget 20242]]>Table16[[#This Row],[Budget 20252]],Table16[[#This Row],[Budget 20242]]-Table16[[#This Row],[Budget 20252]],0) -> 0 | G19: =MAX(Table16[[#This Row],[Budget 20242]:[Budget 20252]]) -> 9059443.986 | H19: =IF(Table16[[#This Row],[Budget 20252]]>Table16[[#This Row],[Budget 20242]],Table16[[#This Row],[Diff +]]/Table16[[#This Row],[Budget 20252]],"") -> 1 | I19: =IF(Table16[[#This Row],[Budget 20242]]>Table16[[#This Row],[Budget 20252]],Table16[[#This Row],[Diff -]]/Table16[[#This Row],[Budget 20242]],"") ->  | J19: 0.007690313294
A20: CoV Premium: Associate | B20: 0 | C20: 0 | D20: 2108783.754 | E20: =IF(Table16[[#This Row],[Budget 20252]]>Table16[[#This Row],[Budget 20242]],Table16[[#This Row],[Budget 20252]]-Table16[[#This Row],[Budget 20242]],0) -> 2108783.754 | F20: =IF(Table16[[#This Row],[Budget 20242]]>Table16[[#This Row],[Budget 20252]],Table16[[#This Row],[Budget 20242]]-Table16[[#This Row],[Budget 20252]],0) -> 0 | G20: =MAX(Table16[[#This Row],[Budget 20242]:[Budget 20252]]) -> 2108783.754 | H20: =IF(Table16[[#This Row],[Budget 20252]]>Table16[[#This Row],[Budget 20242]],Table16[[#This Row],[Diff +]]/Table16[[#This Row],[Budget 20252]],"") -> 1 | I20: =IF(Table16[[#This Row],[Budget 20242]]>Table16[[#This Row],[Budget 20252]],Table16[[#This Row],[Diff -]]/Table16[[#This Row],[Budget 20242]],"") ->  | J20: 0.001790088638
A21: CoV Premium: Bachelor's | B21: 0 | C21: 0 | D21: 26702.23205 | E21: =IF(Table16[[#This Row],[Budget 20252]]>Table16[[#This Row],[Budget 20242]],Table16[[#This Row],[Budget 20252]]-Table16[[#This Row],[Budget 20242]],0) -> 26702.23205 | F21: =IF(Table16[[#This Row],[Budget 20242]]>Table16[[#This Row],[Budget 20252]],Table16[[#This Row],[Budget 20242]]-Table16[[#This Row],[Budget 20252]],0) -> 0 | G21: =MAX(Table16[[#This Row],[Budget 20242]:[Budget 20252]]) -> 26702.23205 | H21: =IF(Table16[[#This Row],[Budget 20252]]>Table16[[#This Row],[Budget 20242]],Table16[[#This Row],[Diff +]]/Table16[[#This Row],[Budget 20252]],"") -> 1 | I21: =IF(Table16[[#This Row],[Budget 20242]]>Table16[[#This Row],[Budget 20252]],Table16[[#This Row],[Diff -]]/Table16[[#This Row],[Budget 20242]],"") ->  | J21: 2.266679174e-05
A22: Transition Funding | B22: 317765.799 | C22: 0.0002804044727 | D22: 1433894.802 | E22: =IF(Table16[[#This Row],[Budget 20252]]>Table16[[#This Row],[Budget 20242]],Table16[[#This Row],[Budget 20252]]-Table16[[#This Row],[Budget 20242]],0) -> 1116129.003 | F22: =IF(Table16[[#This Row],[Budget 20242]]>Table16[[#This Row],[Budget 20252]],Table16[[#This Row],[Budget 20242]]-Table16[[#This Row],[Budget 20252]],0) -> 0 | G22: =MAX(Table16[[#This Row],[Budget 20242]:[Budget 20252]]) -> 1433894.802 | H22: =IF(Table16[[#This Row],[Budget 20252]]>Table16[[#This Row],[Budget 20242]],Table16[[#This Row],[Diff +]]/Table16[[#This Row],[Budget 20252]],"") -> 0.7783897406 | I22: =IF(Table16[[#This Row],[Budget 20242]]>Table16[[#This Row],[Budget 20252]],Table16[[#This Row],[Diff -]]/Table16[[#This Row],[Budget 20242]],"") ->  | J22: 0.001217193933
A23: Total | B23: =SUBTOTAL(109,Table16[Budget 20242]) -> 1077396303 | C23: =SUBTOTAL(109,Table16[% Share]) -> 0.9507213908 | D23: =SUBTOTAL(109,Table16[Budget 20252]) -> 1119203186 | E23: =SUBTOTAL(109,Table16[Diff +]) -> 146355121.1 | F23: =SUBTOTAL(109,Table16[Diff -]) -> 104548238.2 | G23: =SUBTOTAL(109,Table16[MAX]) -> 1223751424 | H23: =SUBTOTAL(109,Table16[Data Label + ]) -> 7.028666065 | I23: =SUBTOTAL(109,Table16[Data Label -]) -> 3.318008916 | J23: =SUBTOTAL(109,Table16[Share]) -> 0.9500608597
A25: Outcomes | B25: Diff+ | C25: Diff - | F25: Outcomes | G25: Budget 20242 | H25: Budget 20252 | I25: =IF(B25>D25,F25/B25,"") -> 
A26: 15 SCH Dual Credit | B26: 107684282.2 | C26: 0 | F26: 15 SCH Dual Credit | G26: 90153266.67 | H26: 197837548.9
A27: GAI Transfer with 15 SCH | B27: 0 | C27: 68228035.97 | F27: GAI Transfer with 15 SCH | G27: 326988958.3 | H27: 258760922.4
A28: GAI Co-Enrollment with 15 SCH | B28: 0 | C28: 1486030.861 | F28: GAI Co-Enrollment with 15 SCH | G28: 4841958.333 | H28: 3355927.473
A29: Licensure/Certification (no credential) | B29: 0 | C29: 284000 | F29: Licensure/Certification (no credential) | G29: 284000
A30: High-Demand Licensure/Certification | B30: 0 | C30: 3918750 | F30: High-Demand Licensure/Certification | G30: 3918750
A31: Institutional Credential leading to Licensure | B31: 0 | C31: 725403.1674 | F31: Institutional Credential leading to Licensure | G31: 2244000 | H31: 1518596.833
A32: High-Demand Institutional Credential | B32: 5519938.32 | C32: 0 | F32: High-Demand Institutional Credential | G32: 10305833.33 | H32: 15825771.65
A33: Occupational Skills Award (OSA) | B33: 2185940.445 | C33: 0 | F33: Occupational Skills Award (OSA) | G33: 1668750 | H33: 3854690.445
A34: High-Demand OSA | B34: 6372594.944 | C34: 0 | F34: High-Demand OSA | G34: 7371000 | H34: 13743594.94
A35: Certificate I or II | B35: 1353217.035 | C35: 0 | F35: Certificate I or II | G35: 46243750 | H35: 47596967.03
A36: High-Demand Cert I or II | B36: 6490596.567 | C36: 0 | F36: High-Demand Cert I or II | G36: 100344416.7 | H36: 106835013.2
A37: Advanced Technical Certificate | B37: 71811.68343 | C37: 0 | F37: Advanced Technical Certificate | G37: 75687.5 | H37: 147499.1834
A38: High-Demand ATC | B38: 0 | C38: 763003.6402 | F38: High-Demand ATC | G38: 2689166.667 | H38: 1926163.026
A39: Associate Degree | B39: 0 | C39: 2446591.747 | F39: Associate Degree | G39: 331236500 | H39: 328789908.3
A40: High-Demand Associate | B40: 0 | C40: 26696422.85 | F40: High-Demand Associate | G40: 141953625 | H40: 115257202.2
A41: Bachelor's Degree | B41: 1207238.457 | C41: 0 | F41: Bachelor's Degree | G41: 2537500 | H41: 3744738.457
A42: High-Demand Bachelor's | B42: 3158442.477 | C42: 0 | F42: High-Demand Bachelor's | G42: 4221375 | H42: 7379817.477
A43: CoV Premium: Certificate | B43: 9059443.986 | C43: 0 | F43: CoV Premium: Certificate | G43: 0 | H43: 9059443.986
A44: CoV Premium: Associate | B44: 2108783.754 | C44: 0 | F44: CoV Premium: Associate | G44: 0 | H44: 2108783.754
A45: CoV Premium: Bachelor's | B45: 26702.23205 | C45: 0 | F45: CoV Premium: Bachelor's | G45: 0 | H45: 26702.23205
A46: Transition Funding | B46: 1116129.003 | C46: 0 | F46: Transition Funding | G46: 317765.799 | H46: 1433894.802
B49: FY24 | C49: FY25 | D49: FY24 | E49: FY25
A50: 15 SCH Dual Credit | B50: 0.07955349281 | C50: 0.1680487061 | D50: 90153266.67 | E50: 197837548.9
A51: Transfer /Co-enroll | B51: 0.2928158837 | C51: 0.2226493287 | D51: 331830916.7 | E51: 262116849.8
A52: ICLC/OSA | B52: 0.02275979873 | C52: 0.02902720085 | D52: 25792333.33 | E52: 34172653.87
A53: Certificate | B53: 0.1317928336 | C53: 0.1329402374 | D53: 149353020.8 | E53: 156505642.5
A54: Associate | B54: 0.4175547775 | C54: 0.3771859425 | D54: 473190125 | E54: 444047110.4
A55: Bachelors | B55: 0.005964200008 | C55: 0.009449506632 | D55: 6758875 | E55: 11124555.93
A56: Premium | B56: 0 | C56: 0.009509284295 | D56: 0 | E56: 11194929.97
A57: Transition Funding | B57: 0.0002804044727 | C57: 0.00121799005 | D57: 317765.799 | E57: 1433894.802
A58: Base | B58: 0.0492786092 | C58: 0.0499391403
D59: 1077396303 | E59: 1118433186
B62: FY24 | C62: FY25 | D62: YOY Change | E62: YOY Change %
A63: 15 SCH Dual Credit | B63: 90153266.67 | C63: 197837548.9 | D63: =C63-B63 -> 107684282.2 | E63: =B63/C63 -> 0.4556934069
A64: Transfer /Co-enroll | B64: 331830916.7 | C64: 262116849.8 | D64: =C64-B64 -> -69714066.83 | E64: =B64/C64 -> 1.265965606
A65: ICLC/OSA | B65: 25792333.33 | C65: 34172653.87 | D65: 8380320.541 | E65: 0.7547652994
A66: Certificate | B66: 149353020.8 | C66: 156505642.5 | D66: 7152621.645 | E66: 0.9542979951
A67: Associate | B67: 473190125 | C67: 444047110.4 | D67: -29143014.6 | E67: 1.065630457
A68: Bachelors | B68: 6758875 | C68: 11124555.93 | D68: 4365680.934 | E68: 0.6075635774
A69: Premium | B69: 0 | C69: 11194929.97 | D69: 11194929.97 | E69: 0
A70: Transition Funding | B70: 317765.799 | C70: 1433894.802 | D70: 1116129.003 | E70: 0.2216102594
B72: YOY Change | C72: YOY Change %
A73: 15 SCH Dual Credit | B73: 107684282.2 | C73: 0.4556934069
A74: Transfer /Co-enroll | B74: -69714066.83 | C74: 1.265965606
A75: ICLC/OSA | B75: 8380320.541 | C75: 0.7547652994
A76: Certificate | B76: 7152621.645 | C76: 0.9542979951
A77: Associate | B77: -29143014.6 | C77: 1.065630457
A78: Bachelors | B78: 4365680.934 | C78: 0.6075635774
A79: Premium | B79: 11194929.97 | C79: 0
A80: Transition Funding | B80: 1116129.003 | C80: 0.2216102594

Sheet Pivots (hidden)
A7: Total Allocation
A8: 2195489582
B11: Column Labels | S11: Fiscal Year | T11: $ Total Allocation
A12: Values | B12: 2024 | C12: 2025 | S12: 2024 | T12: 1079667321
A13: Associate Degree | B13: 473623375 | C13: 444022370.9 | S13: 2025 | T13: 1115822261
A14: GAI Transfer (after 15 SCH) | B14: 326924500 | C14: 258724027.3
A15: Dual Credit (15 SCH) | B15: 92132633.33 | C15: 198356516.2
A16: Certificate | B16: 146704541.7 | C16: 154424255.2
A17: ICLC | B17: 16754833.33 | C17: 19059399.59
A18: OSA | B18: 9039750 | C18: 16590618.79
A19: Bachelor's Degree | B19: 6758875 | C19: 11124555.93
A20: GAI Co-Enrollment (after 15 SCH) | B20: 4841958.333 | C20: 4625642.037
A21: ATC | B21: 2889104.167 | C21: 2092440.606
A22: CoV Premium | C22: 6802434.342
A27: Fiscal Year | B27: Associate Degree | C27: GAI Transfer (after 15 SCH) | D27: Certificate | E27: Dual Credit (15 SCH ) | F27: ICLC | G27: OSA | H27: Bachelor's Degree | I27: GAI Co-Enrollment (after 15 SCH) | J27: ATC | K27: CoV Premium
A28: 2024 | B28: 0.4060346409 | C28: 0.2910701505 | D28: 0.1621683726 | E28: 0.09655733344 | F28: 0.02228584965 | G28: 0.008991664504 | H28: 0.005803651339 | I28: 0.002909873211 | J28: 0.002546332971
A29: 2025 | B29: 0.3708518091 | C29: 0.2084412139 | D29: 0.1659665494 | E29: 0.1909100374 | F29: 0.02680479657 | G29: 0.01820807341 | H29: 0.008419443853 | I29: 0.002882404508 | J29: 0.001819467358 | K29: 0.005696204566
A47: Fiscal Year | B47: Weighted Dual Credit (15 SCH) | C47: Daul Credit (15 SCH) Allocation ($) | D47: % Change ($)
A48: 2024 | B48: 54195.66667 | C48: 92132633.33
A49: 2025 | B49: 56673.29034 | C49: 198356516.2 | D49: 1.15294526
A52: Fiscal Year | B52: Weighted GAI Transfer (after 15 SCH) | C52: GAI Transfer (after 15 SCH) Allocation ($) | D52: % Change ($)
A53: 2024 | B53: 93407 | C53: 326924500
A54: 2025 | B54: 73921.15066 | C54: 258724027.3 | D54: -0.2086123025
A72: Fiscal Year | B72: Weighted GAI Co-Enrollment (after 15 SCH) | C72: GAI Co-Enrollment (after 15 SCH) Allocation ($) | D72: %Change ($)
A73: 2024 | B73: 1383.416667 | C73: 4841958.333
A74: 2025 | B74: 1321.612011 | C74: 4625642.037 | D74: -0.04467537326
D78: Fiscal Year | E78: Weighted OSA | F78: OSA Allocation ($) | G78: % Change ($)
D79: 2024 | E79: 9596 | F79: 9039750
D80: 2025 | E80: 14038.12572 | F80: 16590618.79 | G80: 0.835296196
E84: Fiscal Year | F84: Weighted ICLC | G84: ICLC Allocation ($) | H84: % Change ($)
E85: 2024 | F85: 13907.66667 | G85: 16754833.33
E86: 2025 | F86: 15638.95194 | G86: 19059399.59 | H86: 0.1375463553
A98: Fiscal Year | B98: Weighted Certificate | C98: Certificate Allocation ($) | D98: % Change ($)
A99: 2024 | B99: 55135.08333 | C99: 146704541.7
A100: 2025 | B100: 57725.89751 | C100: 154424255.2 | D100: 0.0526208218
A105: Fiscal Year | B105: Weighted ATC | C105: ATC Allocation ($) | D105: % Change ($)
A106: 2024 | B106: 847.0833333 | C106: 2889104.167
A107: 2025 | B107: 642.9683743 | C107: 2092440.606 | D107: -0.2757476073
C110: Row Labels | D110: Weighted Associate Degree | E110: Associate Degree Allocation ($) | F110: % Change ($)
C111: 2024 | D111: 126307.75 | E111: 473623375
C112: 2025 | D112: 119552.6854 | E112: 444022370.9 | F112: -0.06249903544
D131: Row Labels | E131: Weighted Bachelor's Degree Count | F131: Bachelor's Degree Allocation ($) | G131: % Change ($)
D132: 2024 | E132: 1338.583333 | F132: 6758875
D133: 2025 | E133: 2709.884713 | F133: 11124555.93 | G133: 0.6459182828

Sheet Instructions
A1: Community College Finance Dashboard (Sep. 30, 2024)
A2: INSTRUCTIONS
A4: Navigating the Community College Finance Dashboard with Outcome Performance and Financial Analysis tabs can be straightforward. Here's a step-by-step guide:
A6: Access the Dashboard: You should see the "Instructions" tab once you open the Excel file. This tab has all the instructions needed to navigate through the dashboard worksheets.
A8: The instructions tab contains essential information about the data tool and its functionalities. Take your time to read through the instructions carefully. They provide valuable insights into how to use the data tool efficiently. Familiarize yourself with the different features and functions explained in the instructions. Refer to the Instructions tab for guidance if you encounter difficulties or have questions while using the data tool. Also, feel free to contact Noor Abdulaziz at noor.abdulaziz@highered.texas.gov for assistance.
A10: Financial Analysis at Glance tab: Click on this tab to navigate to it. This section of the dashboard should provide you with weighted outcomes and financial data based on the community college finance model.
A12: Performance Outcomes at Glance tabs: This tab is a statewide data tool presenting performance outcome measures. The menu bar at the top contains the performance outcome measures (Dual Credit, Transfer, Co-enrollment, etc.) Click on the name of the performance measure to navigate through the workbook, or click the worksheets tabs at the bottom (Dual Credit Outcome, Transfer Outcome, Co-enrollment Outcome, etc.) to get more information about each performance measure. After exploring the performance outcomes tab, use the menu options to return to the dashboard's main page or explore other sections as needed.
A13: Master Data Sheet tabs: The data used to generate the dashboard is in two tabs at the second and third to the end. The two sheets that contain the data are view only; attempting to make changes prompts a message indicating that the sheet is protected and can only be modified with a password.
A15: Data Notes tab: To maintain data credibility and reliability, this tab provides context and explanation for the data presented in the dashboard. It helps understand the significance of the data points, any relevant trends, and the story behind the numbers. It includes information about the sources of the data used in the dashboard and compliance.
A17: Dashboard Filter: The dashboard filter is added to provide users with an interactive way to enhance data exploration, analysis, and decision-making by providing users with intuitive, interactive, and flexible filtering capabilities within the dashboard environment.
A19: - Locating the filters: The interactive filters are located at the top as a bar of each dashboard, "Institutions," which is set to explore different aspects of each institution's data.
A20: - Filtering data: Click on the institution within the interactive filter to filter the data displayed on the charts.
A22: - Multiple selections: You can select multiple options within the filter to see data from multiple categories simultaneously by pressing "Ctrl" and the institutions' name or selecting the checklist icon next to the filter icon at the top right corner. Then, select as many institutions as you need.
A24: - Resetting the filter: To reset the filter and view statewide data again, click the "Clear Filter" button at the top right corner or deselect all options.
A26: - Reset the filter or restart Excel: Excel may occasionally encounter temporary glitches affecting filter functionality. To fix this, you can reset the filter or close and reopen Excel.
A28: Navigation: For smooth and effective navigation, always keep the worksheet view size at 100% and use the scroll up and down to view the charts. This ensures the content is displayed at its intended size and layout, enabling smooth navigation and readability. There is no need to click anything in the worksheet except for the interactive filter "Institutions."
A30: Interact with Data: Once on any tab, interact with the data and visualizations provided. This could include hovering over graphs for more detailed information, clicking on specific data points to see underlying details, or adjusting filters to focus on a particular institution.
A32: We value your feedback! Please let us know if you have any suggestions for improving the data tool. Your input helps us enhance everyone's user experience.

Sheet Financial Analysis at Glance
A1: Community College Finance - Performance Tier Outcomes Analysis (2018 – 2025; Forecasted 24-25)
A7: Total Allocation
A8: 2195489582
B11: Column Labels | S11: Fiscal Year | T11: $ Total Allocation
A12: Values | B12: 2025 | C12: 2024 | S12: 2024 | T12: 1079667321
A13: Associate Degree | B13: 444022370.9 | C13: 473623375 | S13: 2025 | T13: 1115822261
A14: GAI Transfer (after 15 SCH) | B14: 258724027.3 | C14: 326924500
A15: Dual Credit (15 SCH) | B15: 198356516.2 | C15: 92132633.33
... 3 more rows

Sheet Performance Outcomes at Glance
A1: Community College Finance - Performance Tier Outcomes Analysis (2018 – 2025; Forecasted 24-25)

Sheet Dual Credit Outcome
A1: Community College Finance - Performance Tier Outcomes Analysis (2018 – 2025; Forecasted 24-25)
A8: Row Labels | B8: Total Dual Credit (15 SCH ) | C8: YOY Change
A9: 2018 | B9: 42329
A10: 2019 | B10: 50561 | C10: 0.1944766
A11: 2020 | B11: 53442 | C11: 0.05698067681
A12: 2021 | B12: 52702 | C12: -0.01384678717
A13: 2022 | B13: 52130 | C13: -0.01085347805
A14: 2023 | B14: 53099 | C14: 0.01858814502
A15: 2024 | B15: 54670.29852 | C15: 0.02959186653
A16: 2025 | B16: 56046.73546 | C16: 0.02517705181
A17: Grand Total | B17: 414980.034
A26: Data Notes:
A27: - 15 SCH dual credit
A28: - Outcome Weight = 1

Sheet Transfer Outcome
A1: Community College Finance - Performance Tier Outcomes Analysis (2018 – 2025; Forecasted 24-25)
A10: Row Labels | B10: Total GAI Transfer (15 SCH) | C10: YOY Change
A11: 2018 | B11: 61152
A12: 2019 | B12: 60694 | C12: -0.007489534275
A13: 2020 | B13: 61746 | C13: 0.01733285003
A14: 2021 | B14: 61593 | C14: -0.002477893305
A15: 2022 | B15: 59047 | C15: -0.04133586609
A16: 2023 | B16: 55742 | C16: -0.055972361
A17: 2024 | B17: 56118.76842 | C17: 0.006759147948
A18: 2025 | B18: 55531.62621 | C18: -0.01046249286
A19: Grand Total | B19: 471624.3946
A22: Row Labels | B22: Total GAI Transfer (15 SCH) | C22: % of Academic Disadvantage | D22: % of Economic Disadvantage | E22: % of Adult Learner
A23: 2018 | B23: 61152 | C23: 0.4624276251 | D23: 0.4132011257 | E23: 0.1946336039
A24: 2019 | B24: 60694 | C24: 0.4972147279 | D24: 0.4046601162 | E24: 0.1930850106
A25: 2020 | B25: 61746 | C25: 0.5215387882 | D25: 0.4070334024 | E25: 0.1841721994
A26: 2021 | B26: 61593 | C26: 0.5171859706 | D26: 0.3989028692 | E26: 0.184449056
A27: 2022 | B27: 59047 | C27: 0.5272236016 | D27: 0.3759448401 | E27: 0.1658839636
A28: 2023 | B28: 55742 | C28: 0.5476062098 | D28: 0.3682310018 | E28: 0.1614987614
A29: 2024 | B29: 56118.76842 | C29: 0.5121994872 | D29: 0.3946622259 | E29: 0.1806204325
A30: 2025 | B30: 55531.62621 | C30: 0.5121994872 | D30: 0.3946622259 | E30: 0.1806204325
A31: Grand Total | B31: 471624.3946 | C31: 0.5121994872 | D31: 0.3946622259 | E31: 0.1806204325
A40: Data Notes:
A41: - 15 SCH GAI Transfer
A42: - GAI Transfer with 15 SCH Weight = 1
A43: - GAI Transfer with 15 SCH - Academic Disadvantage Weight = .25
A44: - GAI Transfer with 15 SCH - Economic Disadvantage Weight = .25
A45: - Outcome value = $3500

Sheet Co-enrollment Outcome
A1: Community College Finance - Performance Tier Outcomes Analysis (2018 – 2025; Forecasted 24-25)
A11: Row Labels | B11: Total GAI Co-enrollment (15 SCH) | C11: % of Academic Disadvantage | D11: % of Economic Disadvantage | E11: % of Adult Learner
A12: 2018 | B12: 1275 | C12: 0.419908444 | D12: 0.2822526536 | E12: 0
A13: 2019 | B13: 1267 | C13: 0.2876352941 | D13: 0.2981877952 | E13: 0.1123184466
A14: 2020 | B14: 1560 | C14: 0.2230709019 | D14: 0.5675833439 | E14: 0.0001806358382
A15: 2021 | B15: 1125 | C15: 0.2706271733 | D15: 0.3054837784 | E15: 0.01851851852
A16: 2022 | B16: 1053 | C16: 0.2622272366 | D16: 0.3965381176 | E16: 0
A17: 2023 | B17: 1226 | C17: 0.4690268893 | D17: 0.2354475662 | E17: 0
A18: 2024 | B18: 1189.039399 | C18: 0.3121327217 | D18: 0.305793313 | E18: 0.01714212958
A19: 2025 | B19: 1168.995494 | C19: 0.3121327217 | D19: 0.305793313 | E19: 0.01714212958
A22: Row Labels | B22: Total GAI Co-enrollment (15 SCH) | C22: YOY Change
A23: 2018 | B23: 1275
A24: 2019 | B24: 1267 | C24: -0.006274509804
A25: 2020 | B25: 1560 | C25: 0.2312549329
A26: 2021 | B26: 1125 | C26: -0.2788461538
A27: 2022 | B27: 1053 | C27: -0.064
A28: 2023 | B28: 1226 | C28: 0.1642924976
A29: 2024 | B29: 1189.039399 | C29: -0.03014730954
A30: 2025 | B30: 1168.995494 | C30: -0.01685722499
A31: Grand Total | B31: 9864.034892

Sheet ICLC Outcome
A1: Community College Finance - Performance Tier Outcomes Analysis (2018 – 2025; Forecasted 24-25)
A11: Row Labels | B11: YOY Change | C11: Total ICLC
A12: 2018 | C12: 0
A13: 2019 | C13: 0
A14: 2020 | C14: 9869
A15: 2021 | B15: 0.1464180768 | C15: 11314
A16: 2022 | B16: 0.131872017 | C16: 12806
A17: 2023 | B17: 0.04216773387 | C17: 13346
A18: 2024 | B18: 0.04208501923 | C18: 13907.66667
A19: 2025 | B19: 0.1096598196 | C19: 15432.77888
A20: Grand Total | C20: 76675.44555
A22: Row Labels | B22: Total ICLC | C22: % of Total ICLC - HDF | D22: YOY Change
A23: 2018 | B23: 0 | C23: 0
A24: 2019 | B24: 0 | C24: 0
A25: 2020 | B25: 9869 | C25: 0.1189144722
A26: 2021 | B26: 11314 | C26: 0.1506041244 | D26: 0.1464180768
A27: 2022 | B27: 12806 | C27: 0.1772511174 | D27: 0.131872017
A28: 2023 | B28: 13346 | C28: 0.1930547453 | D28: 0.04216773387
A29: 2024 | B29: 13907.66667 | C29: 0.1358661565 | D29: 0.04208501923
A30: 2025 | B30: 15432.77888 | C30: 0.224309384 | D30: 0.1096598196
A31: Grand Total | B31: 76675.44555 | C31: 1

Sheet OSAs Outcome
A1: Community College Finance - Performance Tier Outcomes Analysis (2018 – 2025; Forecasted 24-25)
A6: Fiscal Year | B6: TOTAL OSAs | C6: YOY Change | D6: % HDF
A7: 2018 | D7: 0
A8: 2019 | D8: 0
A9: 2020 | B9: 6840 | D9: 0.1304075236
A10: 2021 | B10: 6801 | C10: -0.005701754386 | D10: 0.1392265999
A11: 2022 | B11: 9309 | C11: 0.3687692986 | D11: 0.1889317484
A12: 2023 | B12: 8957 | C12: -0.03781286927 | D12: 0.1702238264
A13: 2024 | B13: 9571.627313 | C13: 0.06861977366 | D13: 0.1807195283
A14: 2025 | B14: 10132.22248 | C14: 0.05856842825 | D14: 0.1904907734
A30: Fiscal Year | B30: Total OSAs | C30: % of Academic Disadvantage | D30: % of Economic Disadvantage | E30: % of Adult Learner | F30: YOY Change
A31: 2018
A32: 2019
A33: 2020 | B33: 6840 | C33: 0 | D33: 0 | E33: 0
A34: 2021 | B34: 6801 | C34: 0 | D34: 0 | E34: 0 | F34: -0.005701754386
A35: 2022 | B35: 9309 | C35: 0 | D35: 0 | E35: 0 | F35: 0.3687692986
A36: 2023 | B36: 8957 | C36: 0.4288972667 | D36: 0.3197467971 | E36: 0.4651346291 | F36: -0.03781286927
A37: 2024 | B37: 9571.627313 | C37: 0.4084735874 | D37: 0.3045207592 | E37: 0.442985361 | F37: 0.06861977366
A38: 2025 | B38: 10132.22248 | C38: 0.4084735874 | D38: 0.3045207592 | E38: 0.442985361 | F38: 0.05856842825
A41: Fiscal Year | B41: Total OSAs | C41: % of HDF Academic Disadvantage | D41: % of HDF Economic Disadvantage | E41: % of HDF - Adult Learner | F41: % of nonHDF Academic Disadvantage | G41: % of nonHDF Economic Disadvantage | H41: % of nonHDF Adult Learner
A42: 2018
A43: 2019
A44: 2020 | B44: 6840
A45: 2021 | B45: 6801
A46: 2022 | B46: 9309
A47: 2023 | B47: 8957 | C47: 0.6669727665 | D47: 0.6907043362 | E47: 0.6984480203 | F47: 0.3330272335 | G47: 0.3092956638 | H47: 0.3015519797
A48: 2024 | B48: 9571.627313 | C48: 0.6669727665 | D48: 0.6907043362 | E48: 0.6984480203 | F48: 0.3330272335 | G48: 0.3092956638 | H48: 0.3015519797
A49: 2025 | B49: 10132.22248 | C49: 0.6669727665 | D49: 0.6907043362 | E49: 0.6984480203 | F49: 0.3330272335 | G49: 0.3092956638 | H49: 0.3015519797
A52: Row Labels | B52: TOTAL OSA. | C52: YOY Change
A53: 2018
A54: 2019
A55: 2020 | B55: 6840
A56: 2021 | B56: 6801 | C56: -0.005701754386
A57: 2022 | B57: 9309 | C57: 0.3687692986
A58: 2023 | B58: 8957 | C58: -0.03781286927
A59: 2024 | B59: 9571.627313 | C59: 0.06861977366
A60: 2025 | B60: 10132.22248 | C60: 0.05856842825
A61: Grand Total | B61: 51610.84979
A64: Fiscal Year | B64: Total OSA: Academic Disadvantage | C64: YOY Change | D64: % of HDF
A65: 2018
A66: 2019
A67: 2020
A68: 2021
A69: 2022
A70: 2023 | B70: 3354 | D70: 0.6669727665
A71: 2024 | B71: 3567.108122 | C71: 0.06353849781 | D71: 0.6669727665
A72: 2025 | B72: 3807.707565 | C72: 0.06744943955 | D72: 0.6669727665
A73: Grand Total | B73: 10728.81569 | D73: 0.6669727665
A89: Row Labels | B89: Total OSA: Economic Disadvantage | C89: YOY Change | D89: % of HDF
A90: 2018
A91: 2019
A92: 2020
A93: 2021
A94: 2022
A95: 2023 | B95: 2251 | D95: 0.6907043362
A96: 2024 | B96: 2382.327536 | C96: 0.05834186426 | D96: 0.6907043362
A97: 2025 | B97: 2530.263595 | C97: 0.06209727915 | D97: 0.6907043362
A101: Row Labels | B101: TOTAL OSA: Adult Learner | C101: YOY Change | D101: % of HDF
A102: 2018
A103: 2019
A104: 2020
A105: 2021
A106: 2022
A107: 2023 | B107: 4165 | D107: 0.6984480203
A108: 2024 | B108: 4409.985467 | C108: 0.05882004006 | D108: 0.6984480203
A109: 2025 | B109: 4625.02401 | C109: 0.04876173505 | D109: 0.6984480203

Sheet Certificate Outcome
A1: Community College Finance - Performance Tier Outcomes Analysis (2018 – 2025; Forecasted 24-25)
A9: Fiscal Year | B9: Total Certificate | C9: YOY Change
A10: 2018 | B10: 36027
A11: 2019 | B11: 38543 | C11: 0.06983651151
A12: 2020 | B12: 34425 | C12: -0.1068417093
A13: 2021 | B13: 34547 | C13: 0.003543936093
A14: 2022 | B14: 35406 | C14: 0.02486467711
A15: 2023 | B15: 38205 | C15: 0.07905439756
A16: 2024 | B16: 37977.0517 | C16: -0.005966452054
A17: 2025 | B17: 37983.14076 | C17: 0.0001603353355
A18: Grand Total | B18: 293113.1925
A21: Fiscal Year | B21: Total Certificate I or II. | C21: YOY Change | D21: % of Total Certificate - Academic Disadvantage | E21: % of Total Certificate - Economic Disadvantage | F21: % of Total Certificate - Adult Learner
A22: 2018 | B22: 36027 | D22: 0.9306930693 | E22: 0.690647482 | F22: 0.8448471121
A23: 2019 | B23: 38543 | C23: 0.06983651151 | D23: 0.9952718676 | E23: 0.6956521739 | F23: 0.8374310085
A24: 2020 | B24: 34425 | C24: -0.1068417093 | D24: 0.9926335175 | E24: 0.6901408451 | F24: 0.7950089127
A25: 2021 | B25: 34547 | C25: 0.003543936093 | D25: 0.9841269841 | E25: 0.6925795053 | F25: 0.8103927013
A26: 2022 | B26: 35406 | C26: 0.02486467711 | D26: 0.9852941176 | E26: 0.6738461538 | F26: 0.768115942
A27: 2023 | B27: 38205 | C27: 0.07905439756 | D27: 0.9635416667 | E27: 0.7041072925 | F27: 0.7857142857
A28: 2024 | B28: 37977.0517 | C28: -0.005966452054 | D28: 0.9401712242 | E28: 0.6297272202 | F28: 0.7925355415
A29: 2025 | B29: 37983.14076 | C29: 0.0001603353355 | D29: 0.9401712242 | E29: 0.6297272202 | F29: 0.7925355415
A30: Grand Total | B30: 293113.1925 | D30: 0.9952718676 | E30: 0.7041072925 | F30: 0.8448471121
A34: Fiscal Year | B34: Total Certificate | C34: % of HDF | D34: YOY Change
A35: 2018 | B35: 36027 | C35: 0.5800856662
A36: 2019 | B36: 38543 | C36: 0.5704794976 | D36: 0.06983651151
A37: 2020 | B37: 34425 | C37: 0.5780576174 | D37: -0.1068417093
A38: 2021 | B38: 34547 | C38: 0.5632896202 | D38: 0.003543936093
A39: 2022 | B39: 35406 | C39: 0.5682241914 | D39: 0.02486467711
A40: 2023 | B40: 38205 | C40: 0.5644862401 | D40: 0.07905439756
A41: 2024 | B41: 37977.0517 | C41: 0.5707704722 | D41: -0.005966452054
A42: 2025 | B42: 37983.14076 | C42: 0.5707704722 | D42: 0.0001603353355
A43: Grand Total | B43: 293113.1925 | C43: 0.5707704722
A48: Row Labels | B48: Total Certificate - COV Premium | C48: YOY Change
A49: 2018 | B49: 1096
A50: 2019 | B50: 1100 | C50: 0.003649635036
A51: 2020 | B51: 955 | C51: -0.1318181818
A52: 2021 | B52: 1286 | C52: 0.3465968586
A53: 2022 | B53: 1563 | C53: 0.2153965785
A54: 2023 | B54: 1454 | C54: -0.06973768394
A55: 2024 | B55: 1549.516896 | C55: 0.06569250048
A56: 2025 | B56: 1645.782052 | C56: 0.06212591606
A59: Fiscal Year | B59: YOY Change | C59: % of HDF | D59: Total Certificate - Academic Disadvantage
A60: 2018 | C60: 0.5587845 | D60: 16608
A61: 2019 | B61: 0.1237957611 | C61: 0.5554180355 | D61: 18664
A62: 2020 | B62: -0.05850835834 | C62: 0.5827869069 | D62: 17572
A63: 2021 | B63: -0.02714545868 | C63: 0.5675205546 | D63: 17095
A64: 2022 | B64: 0.05808715999 | C64: 0.5628486959 | D64: 18088
A65: 2023 | B65: 0.101227333 | C65: 0.5517073832 | D65: 19919
A66: 2024 | B66: -0.061169052 | C66: 0.5631776793 | D66: 18700.57365
A67: 2025 | B67: -0.002884117478 | C67: 0.5631776793 | D67: 18646.639
A71: Fiscal Year | B71: % of HDF - Economic Disadvantage | C71: YOY Change | D71: Total Certificate - Economic Disadvantage
A72: 2018 | B72: 0.6309415453 | D72: 15748
A73: 2019 | B73: 0.6301919498 | C73: 0.03295656591 | D73: 16267
A74: 2020 | B74: 0.643335734 | C74: -0.08520317207 | D74: 14881
A75: 2021 | B75: 0.6302602949 | C75: 0.009273570325 | D75: 15019
A76: 2022 | B76: 0.6340478165 | C76: 0.03748585126 | D76: 15582
A77: 2023 | B77: 0.627005073 | C77: 0.09562315492 | D77: 17072
A78: 2024 | B78: 0.6326304022 | C78: -0.04328729671 | D78: 16332.99927
A79: 2025 | B79: 0.6326304022 | C79: -0.003272253942 | D79: 16279.55355
A82: Row Labels | B82: Total Certificate - Adult Learner | C82: YOY Change | D82: % of HDF
A83: 2018 | B83: 19330 | D83: 0.6061207206
A84: 2019 | B84: 20252 | C84: 0.04769787894 | D84: 0.6012438387
A85: 2020 | B85: 17040 | C85: -0.1586016196 | D85: 0.611826208
A86: 2021 | B86: 17940 | C86: 0.05281690141 | D86: 0.592804609
A87: 2022 | B87: 16843 | C87: -0.06114827202 | D87: 0.6056598193
A88: 2023 | B88: 16961 | C88: 0.007005877813 | D88: 0.5978682222
A89: 2024 | B89: 19088.25686 | C89: 0.125420486 | D89: 0.6025872363
A90: 2025 | B90: 19154.50171 | C90: 0.00347045029 | D90: 0.6025872363
A92: Fiscal Year | B92: Total Certificate | C92: % of Academic Disadvantage | D92: % of Economic Disadvantage | E92: % of Adult Learner | F92: YOY Change
A93: 2018 | B93: 36027 | C93: 0.4629434672 | D93: 0.4623334587 | E93: 0.5082484847
A94: 2019 | B94: 38543 | C94: 0.4817899408 | D94: 0.4407153557 | E94: 0.4908770503 | F94: 0.06983651151
A95: 2020 | B95: 34425 | C95: 0.477782385 | D95: 0.4574140287 | E95: 0.4747432459 | F95: -0.1068417093
A96: 2021 | B96: 34547 | C96: 0.4921082307 | D96: 0.4485552439 | E96: 0.47267677 | F96: 0.003543936093
A97: 2022 | B97: 35406 | C97: 0.502917627 | D97: 0.4453234881 | E97: 0.4510520061 | F97: 0.02486467711
A98: 2023 | B98: 38205 | C98: 0.5042192383 | D98: 0.4478668571 | E98: 0.418132524 | F98: 0.07905439756
A99: 2024 | B99: 37977.0517 | C99: 0.4869601482 | D99: 0.450368072 | E99: 0.4692883468 | F99: -0.005966452054
A100: 2025 | B100: 37983.14076 | C100: 0.4869601482 | D100: 0.450368072 | E100: 0.4692883468 | F100: 0.0001603353355

Sheet ATC Outcome
A1: Community College Finance - Performance Tier Outcomes Analysis (2018 – 2025; Forecasted 24-25)
F11: Row Labels | G11: Total ATC | H11: YOY Change | I11: % of HDF | M11: Fiscal Year | N11: Total ATC | O11: % of ATC - Academic Disadvantage | P11: % of ATC - Economic Disadvantage | Q11: % of ATC - Adult Learner | R11: YOY Change
A12: Row Labels | B12: Total ATC Certificate | C12: YOY Change | F12: 2018 | G12: 424 | I12: 0.765380117 | M12: 2018 | N12: 424 | O12: 0.1444470727 | P12: 0.1432382454 | Q12: 0.8496189913
A13: 2018 | B13: 424 | F13: 2019 | G13: 533 | H13: 0.2570754717 | I13: 0.8141517714 | M13: 2019 | N13: 533 | O13: 0.1551240536 | P13: 0.1831542206 | Q13: 0.8351596778 | R13: 0.2570754717
A14: 2019 | B14: 533 | C14: 0.2570754717 | F14: 2020 | G14: 575 | H14: 0.07879924953 | I14: 0.8384434936 | M14: 2020 | N14: 575 | O14: 0.117480272 | P14: 0.294073496 | Q14: 0.8245647794 | R14: 0.07879924953
A15: 2020 | B15: 575 | C15: 0.07879924953 | F15: 2021 | G15: 525 | H15: -0.08695652174 | I15: 0.7855729992 | M15: 2021 | N15: 525 | O15: 0.1122667694 | P15: 0.3488050914 | Q15: 0.7686124259 | R15: -0.08695652174
A16: 2021 | B16: 525 | C16: -0.08695652174 | F16: 2022 | G16: 484 | H16: -0.0780952381 | I16: 0.8282141836 | M16: 2022 | N16: 484 | O16: 0.09615466224 | P16: 0.2619762799 | Q16: 0.8226214207 | R16: -0.0780952381
A17: 2022 | B17: 484 | C17: -0.0780952381 | F17: 2023 | G17: 419 | H17: -0.1342975207 | I17: 0.7461013298 | M17: 2023 | N17: 419 | O17: 0.1609700827 | P17: 0.226138452 | Q17: 0.780275989 | R17: -0.1342975207
A18: 2023 | B18: 419 | C18: -0.1342975207 | F18: 2024 | G18: 413.5617298 | H18: -0.01297916519 | I18: 0.6444545178 | M18: 2024 | N18: 413.5617298 | O18: 0.1082364168 | P18: 0.2504341632 | Q18: 0.6615671148 | R18: -0.01297916519
A19: 2024 | B19: 413.5617298 | C19: -0.01297916519 | F19: 2025 | G19: 413.9010214 | H19: 0.0008204133749 | I19: 0.6444545178 | M19: 2025 | N19: 413.9010214 | O19: 0.1082364168 | P19: 0.2504341632 | Q19: 0.6615671148 | R19: 0.0008204133749
A20: 2025 | B20: 413.9010214 | C20: 0.0008204133749
A29: Row Labels | B29: Total - Academic Disadvantage | C29: % of HDF ATC - Academic Disadvantage | D29: YOY Change
A30: 2018 | B30: 45 | C30: 0.9236111111
A31: 2019 | B31: 59 | C31: 0.7818181818 | D31: 0.3111111111 | F31: Row Labels | G31: % of HDF | H31: YOY Change | I31: Total ATC - Economic Disadvantage
A32: 2020 | B32: 73 | C32: 0.7801075269 | D32: 0.2372881356 | F32: 2018 | G32: 0.8544973545 | I32: 62
A33: 2021 | B33: 80 | C33: 0.7047619048 | D33: 0.09589041096 | F33: 2019 | G33: 0.7083333333 | H33: 0.5 | I33: 93
A34: 2022 | B34: 64 | C34: 0.8869047619 | D34: -0.2 | F34: 2020 | G34: 0.8614285714 | H34: 0.1397849462 | I34: 106
A35: 2023 | B35: 71 | C35: 0.8831168831 | D35: 0.109375 | F35: 2021 | G35: 0.7648574406 | H35: 0.1320754717 | I35: 120
A36: 2024 | B36: 59.36336847 | C36: 0.7990958507 | D36: -0.1638962187 | F36: 2022 | G36: 0.9001984127 | H36: -0.3 | I36: 84
A37: 2025 | B37: 59.92343383 | C37: 0.7990958507 | D37: 0.009434527877 | F37: 2023 | G37: 0.9090909091 | H37: -0.0119047619 | I37: 83
F38: 2024 | G38: 0.7744861638 | H38: -0.1096091171 | I38: 73.90244328
F39: 2025 | G39: 0.7744861638 | H39: 0.007581533191 | I39: 74.46273711
F40: Grand Total | G40: 0.8155889082 | I40: 696.3651804
A62: Fiscal Year | B62: Total ATC - Adult Learner | C62: YOY Change | D62: % of HDF
A63: 2018 | B63: 366 | D63: 0.6869211152
A64: 2019 | B64: 454 | C64: 0.2404371585 | D64: 0.6956835637
A65: 2020 | B65: 482 | C65: 0.06167400881 | D65: 0.6765082956
A66: 2021 | B66: 436 | C66: -0.09543568465 | D66: 0.6296518741
A67: 2022 | B67: 406 | C67: -0.06880733945 | D67: 0.6965785765
A68: 2023 | B68: 331 | C68: -0.184729064 | D68: 0.6686848615
A69: 2024 | B69: 353.6162253 | C69: 0.06832696474 | D69: 0.6504515086
A70: 2025 | B70: 353.8861845 | C70: 0.0007634241403 | D70: 0.6504515086
A71: Grand Total | B71: 3182.50241 | D71: 0.6678817868

Sheet Associate Degree Outcome
A1: Community College Finance - Performance Tier Outcomes Analysis (2018 – 2025; Forecasted 24-25)
A9: Fiscal Year | B9: Total Associate Degree. | C9: YOY Change | H9: Fiscal Year | I9: Sum of TOTAL Associate: CoV Premium | J9: YOY Change
A10: 2018 | B10: 82976 | H10: 2018 | I10: 4360 | M10: Row Labels | N10: Total Associate Degree. | O10: YOY Change | P10: % of HDF Associate Degree
A11: 2019 | B11: 86157 | C11: 0.03833638642 | H11: 2019 | I11: 4451 | J11: 0.02087155963 | M11: 2018 | N11: 82976 | P11: 0.2466713854
A12: 2020 | B12: 88309 | C12: 0.02497765707 | H12: 2020 | I12: 4405 | J12: -0.01033475623 | M12: 2019 | N12: 86157 | O12: 0.03833638642 | P12: 0.244863469
A13: 2021 | B13: 88674 | C13: 0.004133214055 | H13: 2021 | I13: 5268 | J13: 0.1959137344 | M13: 2020 | N13: 88309 | O13: 0.02497765707 | P13: 0.2457395261
A14: 2022 | B14: 85458 | C14: -0.03626767711 | H14: 2022 | I14: 6279 | J14: 0.1919134396 | M14: 2021 | N14: 88674 | O14: 0.004133214055 | P14: 0.249529189
A15: 2023 | B15: 84997 | C15: -0.005394462777 | H15: 2023 | I15: 6026 | J15: -0.04029304029 | M15: 2022 | N15: 85458 | O15: -0.03626767711 | P15: 0.2497534484
A16: 2024 | B16: 85444.53415 | C16: 0.00526529343 | H16: 2024 | I16: 6487.291638 | J16: 0.07655022197 | M16: 2023 | N16: 84997 | O16: -0.005394462777 | P16: 0.2471687522
A17: 2025 | B17: 85438.78951 | C17: -6.723231327e-05 | H17: 2025 | I17: 6906.698204 | J17: 0.06465048736 | M17: 2024 | N17: 85444.53415 | O17: 0.00526529343 | P17: 0.2472876283
M18: 2025 | N18: 85438.78951 | O18: -6.723231327e-05 | P18: 0.2472876283
A27: Row Labels | B27: Total Associate Degree. | C27: % of Academic Disadvantage | D27: % of Economic Disadvantage | E27: % of Adult Learner | F27: YOY Change
A28: 2018 | B28: 82976 | C28: 0.4180877727 | D28: 0.4833465063 | E28: 0.3473579697
A29: 2019 | B29: 86157 | C29: 0.4679490036 | D29: 0.4829649337 | E29: 0.3304296406 | F29: 0.03833638642
A30: 2020 | B30: 88309 | C30: 0.4870700397 | D30: 0.4820704907 | E30: 0.326390129 | F30: 0.02497765707
A31: 2021 | B31: 88674 | C31: 0.503378027 | D31: 0.4687991394 | E31: 0.3180868363 | F31: 0.004133214055
A32: 2022 | B32: 85458 | C32: 0.5102329924 | D32: 0.4640461393 | E32: 0.30866026 | F32: -0.03626767711
A33: 2023 | B33: 84997 | C33: 0.5041944013 | D33: 0.4557736385 | E33: 0.289534364 | F33: -0.005394462777
A34: 2024 | B34: 85444.53415 | C34: 0.4818187061 | D34: 0.4728334747 | E34: 0.3200765333 | F34: 0.00526529343
A35: 2025 | B35: 85438.78951 | C35: 0.4818187061 | D35: 0.4728334747 | E35: 0.3200765333 | F35: -6.723231327e-05
A36: Grand Total | B36: 687454.3237 | C36: 0.4818187061 | D36: 0.4728334747 | E36: 0.3200765333
A44: Fiscal Year | B44: Associate Degree: Academic Disadvantage | C44: % of HDF | D44: YOY Change
A45: 2018 | B45: 32601 | C45: 0.1901215487
A46: 2019 | B46: 37647 | C46: 0.1781374125 | D46: 0.1547805282
A47: 2020 | B47: 39845 | C47: 0.1932937634 | D47: 0.05838446623
A48: 2021 | B48: 40800 | C48: 0.1961410292 | D48: 0.02396787552
A49: 2022 | B49: 39805 | C49: 0.1990254387 | D49: -0.0243872549
A50: 2023 | B50: 40265 | C50: 0.18488912 | D50: 0.01155633714
A51: 2024 | B51: 37707.42245 | C51: 0.1902680521 | D51: -0.06351862773
A52: 2025 | B52: 37581.58341 | C52: 0.1902680521 | D52: -0.003337248568
A53: Grand Total | B53: 306252.0059 | C53: 0.1902680521
A55: Fiscal Year | B55: Associate Degree: Economic Disadvantage | C55: YOY Change | D55: % of HDF Economic Disadvantage
A56: 2018 | B56: 37891 | D56: 0.2700277256
A57: 2019 | B57: 38762 | C57: 0.02298698899 | D57: 0.2632117828
A58: 2020 | B58: 38731 | C58: -0.0007997523348 | D58: 0.2664809721
A59: 2021 | B59: 38662 | C59: -0.00178151868 | D59: 0.2783835224
A60: 2022 | B60: 37439 | C60: -0.03163312814 | D60: 0.2857878575
A61: 2023 | B61: 36515 | C61: -0.02468014637 | D61: 0.288748913
A62: 2024 | B62: 37475.044 | C62: 0.02629177055 | D62: 0.2754401289
A63: 2025 | B63: 37385.01562 | C63: -0.002402355584 | D63: 0.2754401289
A66: Fiscal Year | B66: Associate Degree: Adult Learner | C66: % of HDF | D66: YOY Change
A67: 2018 | B67: 28913 | C67: 0.3772921258
A68: 2019 | B68: 29102 | C68: 0.3921282676 | D68: 0.006536851935
A69: 2020 | B69: 28094 | C69: 0.3968756318 | D69: -0.03463679472
A70: 2021 | B70: 28050 | C70: 0.4044420193 | D70: -0.001566170713
A71: 2022 | B71: 26284 | C71: 0.418754895 | D71: -0.06295900178
A72: 2023 | B72: 24404 | C72: 0.4185441756 | D72: -0.0715264039
A73: 2024 | B73: 27155.65125 | C73: 0.4013395192 | D73: 0.1127541078
A74: 2025 | B74: 27108.73369 | C74: 0.4013395192 | D74: -0.001727727272
A75: Grand Total | B75: 219111.3849 | C75: 0.4013395192

Sheet Bachelor's Degree Outcome
A1: Community College Finance - Performance Tier Outcomes Analysis (2018 – 2025; Forecasted 24-25)
B9: Fiscal Year | C9: Total Bachelor's Degree. | D9: YOY Change
B10: 2018 | C10: 450
B11: 2019 | C11: 437 | D11: -0.02888888889 | F11: Row Labels | G11: Total Bachelor's Degree - CoV Premium | H11: YOY Change | J11: Fiscal Year | K11: Total Bachelor's Degree | L11: YOY Change | M11: % of HDF
B12: 2020 | C12: 639 | D12: 0.4622425629 | F12: 2018 | G12: 10 | J12: 2018 | K12: 450 | M12: 0.3820648756
B13: 2021 | C13: 853 | D13: 0.3348982786 | F13: 2019 | G13: 16 | H13: 0.6 | J13: 2019 | K13: 437 | L13: -0.02888888889 | M13: 0.517610766
B14: 2022 | C14: 1038 | D14: 0.2168815944 | F14: 2020 | G14: 13 | H14: -0.1875 | J14: 2020 | K14: 639 | L14: 0.4622425629 | M14: 0.6990512593
B15: 2023 | C15: 1522 | D15: 0.4662813102 | F15: 2021 | G15: 12 | H15: -0.07692307692 | J15: 2021 | K15: 853 | L15: 0.3348982786 | M15: 0.7471303132
B16: 2024 | C16: 1618.692257 | D16: 0.06352973516 | F16: 2022 | G16: 14 | H16: 0.1666666667 | J16: 2022 | K16: 1038 | L16: 0.2168815944 | M16: 0.7822341584
B17: 2025 | C17: 1753.346166 | D17: 0.08318684952 | F17: 2023 | G17: 24 | H17: 0.7142857143 | J17: 2023 | K17: 1522 | L17: 0.4662813102 | M17: 0.7624546255
B18: Grand Total | C18: 8311.038423 | F18: 2024 | G18: 22.8 | H18: -0.05 | J18: 2024 | K18: 1618.692257 | L18: 0.06352973516 | M18: 0.7920167085
F19: 2025 | G19: 21.9352013 | H19: -0.03792976743 | J19: 2025 | K19: 1753.346166 | L19: 0.08318684952 | M19: 0.7920167085
F20: Grand Total | G20: 133.7352013 | J20: Grand Total | K20: 8311.038423 | M20: 0.742170682
A29: Row Labels | B29: TotaI Bachelor's Degree | C29: % of Academic Disadvantage | D29: % of Economic Disadvantage | E29: % of Adult Learner | F29: YOY Change
A30: 2018 | B30: 450 | C30: 0.09922728734 | D30: 0.4352725165 | E30: 0.682786159
A31: 2019 | B31: 437 | C31: 0.1604151139 | D31: 0.5114182195 | E31: 0.7261428571 | F31: -0.02888888889
A32: 2020 | B32: 639 | C32: 0.1514845403 | D32: 0.4185479568 | E32: 0.7559761974 | F32: 0.4622425629
A33: 2021 | B33: 853 | C33: 0.1726741525 | D33: 0.3501290596 | E33: 0.7724581492 | F33: 0.3348982786
A34: 2022 | B34: 1038 | C34: 0.2117329482 | D34: 0.4144495441 | E34: 0.7683293589 | F34: 0.2168815944
A35: 2023 | B35: 1522 | C35: 0.2039097339 | D35: 0.3962704261 | E35: 0.7166332667 | F35: 0.4662813102
A36: 2024 | B36: 1618.692257 | C36: 0.1944884006 | D36: 0.3942383609 | E36: 0.7532721857 | F36: 0.06352973516
A37: 2025 | B37: 1753.346166 | C37: 0.1957921837 | D37: 0.3942383609 | E37: 0.7532721857 | F37: 0.08318684952
A38: Grand Total | B38: 8311.038423 | C38: 0.1877504382 | D38: 0.4013771314 | E38: 0.7475365199
A45: Fiscal Year | B45: Total Bachelor's Degree - Academic Disadvantage | C45: YOY Change | D45: % of HDF
A46: 2018 | B46: 128.5655571 | D46: 0.1928571429
A47: 2019 | B47: 96 | C47: -0.2532992335 | D47: 0.1017932489
A48: 2020 | B48: 128 | C48: 0.3333333333 | D48: 0.7635738832
A49: 2021 | B49: 179 | C49: 0.3984375 | D49: 0.4780835882
A50: 2022 | B50: 207 | C50: 0.156424581 | D50: 0.6019204311
A51: 2023 | B51: 336 | C51: 0.6231884058 | D51: 0.5960272877
A52: 2024 | B52: 335.456289 | C52: -0.001618187464 | D52: 0.6937456261
A53: 2025 | B53: 364.4247434 | C53: 0.08635537713 | D53: 0.6678317503
A54: Grand Total | B54: 1774.446589 | D54: 0.5793106684
A56: Row Labels | B56: Total Bachelor's Degree: Economic Disadvantage | C56: % of HDF | D56: YOY Change
A57: 2018 | B57: 302 | C57: 0.4008955224
A58: 2019 | B58: 317 | C58: 0.5095377129 | D58: 0.5887484533
A59: 2020 | B59: 404 | C59: 0.7021407376 | D59: 0.9291938708
A60: 2021 | B60: 465 | C60: 0.7680924204 | D60: 1.031583236
A61: 2022 | B61: 547 | C61: 0.790130176 | D61: 0.2660818973
A62: 2023 | B62: 779 | C62: 0.7554612923 | D62: 0.07563788808
A63: 2024 | B63: 814.79234 | C63: 0.7964545315 | D63: 0.05426252758
A64: 2025 | B64: 879.1574871 | C64: 0.7964545315 | D64: 0
A65: Grand Total | B65: 4507.949827 | C65: 0.7471131969
A67: Row Labels | B67: Total Bachelor's Degree: Adult Learner | C67: YOY Change | D67: % of HDF
A68: 2018 | B68: 284 | D68: 0.3693181818
A69: 2019 | B69: 261 | C69: 0.6652881169 | D69: 0.4920169436
A70: 2020 | B70: 405 | C70: 0.9853244338 | D70: 0.6977237572
A71: 2021 | B71: 567 | C71: 0.9936522026 | D71: 0.7490099644
A72: 2022 | B72: 748 | C72: 0.2836814479 | D72: 0.7812107839
A73: 2023 | B73: 1043 | C73: 0.06980896777 | D73: 0.7428856021
A74: 2024 | B74: 1130.972613 | C74: 0.05931169939 | D74: 0.7869474096
A75: 2025 | B75: 1228.049632 | C75: 0 | D75: 0.7869474096
A76: Grand Total | B76: 5667.022245 | D76: 0.7349492263

Sheet Perf. Outcomes MasterDataSheet
A1: FICE | B1: Institution | C1: Year | D1: 15 SCH Dual Credit Total | E1: GAI Transfer with 15 SCH Total | F1: GAI Transfer with 15 SCH - Academic Disadvantage | G1: GAI Transfer with 15 SCH - Academic Disadvantage% | H1: GAI Transfer with 15 SCH - Economic Disadvantage | I1: GAI Transfer with 15 SCH - Economic Disadvantage% | J1: GAI Transfer with 15 SCH - Adult Learner | K1: GAI Transfer with 15 SCH - Adult Learner% | L1: GAI Co-enrollment with 15 SCH Total | M1: GAI Co-enrollment with 15 SCH -Academic Disadvantage | N1: GAI Co-enrollment with 15 SCH -Academic Disadvantage% | O1: GAI Co-enrollment with 15 SCH - Economic Disadvantage | P1: GAI Co-enrollment with 15 SCH - Economic Disadvantage% | Q1: GAI Co-enrollment with 15 SCH - Adult Learner | R1: GAI Co-enrollment with 15 SCH - Adult Learner% | S1: TOTAL ICLC | T1: TOTAL ICLC - nonHDF | U1: TOTAL ICLC - HDF | V1: Licensure/ Certification (no credential) | W1: Licensure/ Certification (no credential): High-Demand Field | X1: TOTAL OSA | Y1: TOTAL OSA - Academic Disadvantage | Z1: TOTAL OSA - Academic Disadvantage% | AA1: TOTAL OSA - Economic Disadvantage | AB1: TOTAL OSA - Economic Disadvantage% | AC1: TOTAL OSA - Adult Learner | AD1: TOTAL OSA - Adult Learner% | AE1: OSA nonHDF | AF1: OSA nonHDF % | AG1: OSA - nonHDF Academic Disadvantage | AH1: OSA - nonHDF Academic Disadvantage% | AI1: OSA - nonHDF Economic Disadvantage | AJ1: OSA - nonHDF Economic Disadvantage% | AK1: OSA - nonHDF Adult Learner | AL1: OSA - nonHDF Adult Learner% | AM1: OSA: HDF | AN1: OSA: HDF % | AO1: OSA: HDF Academic Disadvantage | AP1: OSA: HDF Academic Disadvantage% | AQ1: OSA: HDF Economic Disadvantage | AR1: OSA: HDF Economic Disadvantage% | AS1: OSA: HDF - Adult Learner | AT1: OSA: HDF - Adult Learner % | AU1: TOTAL Certificate I or II | AV1: TOTAL Certificate I or II - Academic Disadvantage | AW1: TOTAL Certificate I or II - Academic Disadvantage% | AX1: TOTAL Certificate I or II - Economic Disadvantage | AY1: TOTAL Certificate I or II - Economic Disadvantage % | AZ1: TOTAL Certificate I or II - Adult Learner | BA1: TOTAL Certificate I or II - Adult Learner % | BB1: Certificate I or II nonHDF | BC1: Certificate I or II nonHDF % | BD1: Certificate I or II - nonHDF Academic Disadvantage | BE1: Certificate I or II - nonHDF Academic Disadvantage% | BF1: Certificate I or II - nonHDF Economic Disadvantage | BG1: Certificate I or II - nonHDF Economic Disadvantage% | BH1: Certificate I or II - nonHDF Adult Learner | BI1: Certificate I or II - nonHDF Adult Learner% | BJ1: Certificate I or II: HDF | BK1: Certificate I or II: HDF % | BL1: Certificate I or II: HDF Academic Disadvantage | BM1: Certificate I or II: HDF Academic Disadvantage % | BN1: Certificate I or II: HDF Economic Disadvantage | BO1: Certificate I or II: HDF Economic Disadvantage % | BP1: Certificate I or II: HDF Adult Learner | BQ1: Certificate I or II: HDF - Adult Learner % | BR1: TOTAL Cert I or II: COV Premium | BS1: TOTAL Cert I or II: COV Premium% | BT1: TOTAL Advanced Technical Certificate | BU1: TOTAL Advanced Technical Certificate - Academic Disadvantage | BV1: TOTAL Advanced Technical Certificate - Academic Disadvantage% | BW1: TOTAL Advanced Technical Certificate - Economic Disadvantage | BX1: TOTAL Advanced Technical Certificate - Economic Disadvantage% | BY1: TOTAL Advanced Technical Certificate - Adult Learner | BZ1: TOTAL Advanced Technical Certificate - Adult Learner % | CA1: Advanced Technical Certificate nonHDF | CB1: Advanced Technical Certificate nonHDF % | CC1: Advanced Technical Certificate nonHDF - Academic Disadvantage | CD1: Advanced Technical Certificate nonHDF - Academic Disadvantage% | CE1: Advanced Technical Certificate - nonHDF Economic Disadvantage | CF1: Advanced Technical Certificate - nonHDF Economic Disadvantage % | CG1: Advanced Technical Certificate - nonHDF Adult Learner | CH1: Advanced Technical Certificate - nonHDF Adult Learner % | CI1: Advanced Technical Certificate: HDF | CJ1: Advanced Technical Certificate: HDF % | CK1: Advanced Technical Certificate: HDF Academic Disadvantage | CL1: Advanced Technical Certificate: HDF - Academic Disadvantage% | CM1: Advanced Technical Certificate: HDF Economic Disadvantage | CN1: Advanced Technical Certificate: HDF Economic Disadvantage% | CO1: Advanced Technical Certificate: HDF Adult Learner | CP1: Advanced Technical Certificate: HDF - Adult Learner% | CQ1: TOTAL Associate Degree | CR1: TOTAL Associate Degree - Academic Disadvantage | CS1: TOTAL Associate Degree - Academic Disadvantage% | CT1: TOTAL Associate Degree - Economic Disadvantage | CU1: TOTAL Associate Degree - Economic Disadvantage% | CV1: TOTAL Associate Degree - Adult Learner | CW1: TOTAL Associate Degree - Adult Learner % | CX1: Associate Degree nonHDF | CY1: Associate Degree nonHDF % | CZ1: Associate Degree - nonHDF Academic Disadvantage | DA1: Associate Degree - nonHDF Academic Disadvantage % | DB1: Associate Degree - nonHDF Economic Disadvantage | DC1: Associate Degree - nonHDF Economic Disadvantage % | DD1: Associate Degree - nonHDF Adult Learner | DE1: Associate Degree - nonHDF Adult Learner% | DF1: Associate Degree: HDF | DG1: Associate Degree: HDF % | DH1: Associate Degree: HDF Academic Disadvantage | DI1: Associate Degree: HDF Academic Disadvantage% | DJ1: Associate Degree: HDF Economic Disadvantage | DK1: Associate Degree: HDF - Economic Disadvantage % | DL1: Associate Degree: HDF Adult Learner | DM1: Associate Degree: HDF - Adult Learner % | DN1: TOTAL Associate: CoV Premium | DO1: TOTAL Associate: CoV Premium % | DP1: TOTAL Bachelor's Degree | DQ1: TOTAL Bachelor's Degree - Academic Disadvantage | DR1: TOTAL Bachelor's Degree - Academic Disadvantage % | DS1: TOTAL Bachelor's Degree - Economic Disadvantage | DT1: TOTAL Bachelor's Degree - Economic Disadvantage % | DU1: TOTAL Bachelor's Degree - Adult Learner | DV1: TOTAL Bachelor's Degree - Adult Learner % | DW1: Bachelor's Degree nonHDF | DX1: Bachelor's Degree nonHDF % | DY1: Bachelor's Degree - nonHDF Academic Disadvantage | DZ1: Bachelor's Degree - nonHDF Academic Disadvantage % | EA1: Bachelor's Degree - nonHDF Economic Disadvantage | EB1: Bachelor's Degree - nonHDF Economic Disadvantage % | EC1: Bachelor's Degree - nonHDF Adult Learner | ED1: Bachelor's Degree - nonHDF Adult Learner % | EE1: Bachelor's Degree: HDF | EF1: Bachelor's Degree: HDF% | EG1: Bachelor's Degree: HDF - Academic Disadvantage | EH1: Bachelor's Degree: HDF- Academic Disadvantage % | EI1: Bachelor's Degree: HDF - Economic Disadvantage | EJ1: Bachelor's Degree: HDF - Economic Disadvantage% | EK1: Bachelor's Degree: HDF - Adult Learner | EL1: Bachelor's Degree: HDF - Adult Learner % | EM1: TOTAL Bachelor's Degree: CoV Premium | EN1: TOTAL Bachelor's Degree: CoV Premium %
A2: 003607 | B2: Alamo Community College District | C2: 2018 | D2: 4233 | E2: 4832 | F2: 2133 | G2: =IF(OR(Table2[[#This Row],[GAI Transfer with 15 SCH Total]]="",Table2[[#This Row],[GAI Transfer with 15 SCH Total]]=0 ),"",Table2[[#This Row],[GAI Transfer with 15 SCH - Academic Disadvantage]]/Table2[[#This Row],[GAI Transfer with 15 SCH Total]]) -> 0.4414321192 | H2: 2367 | I2: =IF(OR(Table2[[#This Row],[GAI Transfer with 15 SCH Total]]="",Table2[[#This Row],[GAI Transfer with 15 SCH Total]]=0 ),"",Table2[[#This Row],[GAI Transfer with 15 SCH - Economic Disadvantage]]/Table2[[#This Row],[GAI Transfer with 15 SCH Total]]) -> 0.4898592715 | J2: 1232 | K2: =IF(OR(Table2[[#This Row],[GAI Transfer with 15 SCH Total]]="",Table2[[#This Row],[GAI Transfer with 15 SCH Total]]=0 ),"",Table2[[#This Row],[GAI Transfer with 15 SCH - Adult Learner]]/Table2[[#This Row],[GAI Transfer with 15 SCH Total]]) -> 0.2549668874 | L2: 10 | M2: 4 | N2: =IF(OR(Table2[[#This Row],[GAI Co-enrollment with 15 SCH Total]]="", Table2[[#This Row],[GAI Co-enrollment with 15 SCH Total]]=0),"",Table2[[#This Row],[GAI Co-enrollment with 15 SCH -Academic Disadvantage]]/Table2[[#This Row],[GAI Co-enrollment with 15 SCH Total]]) -> 0.4 | O2: 3 | P2: =IF(OR(Table2[[#This Row],[GAI Co-enrollment with 15 SCH Total]]="", Table2[[#This Row],[GAI Co-enrollment with 15 SCH Total]]=0),"",Table2[[#This Row],[GAI Co-enrollment with 15 SCH - Economic Disadvantage]]/Table2[[#This Row],[GAI Co-enrollment with 15 SCH Total]]) -> 0.3 | Q2: 0 | R2: =IF(OR(Table2[[#This Row],[GAI Co-enrollment with 15 SCH Total]]="",Table2[[#This Row],[GAI Co-enrollment with 15 SCH Total]]=0 ),"",Table2[[#This Row],[GAI Co-enrollment with 15 SCH - Adult Learner]]/Table2[[#This Row],[GAI Co-enrollment with 15 SCH Total]]) -> 0 | S2: =T2+U2+V2+W2 -> 0 | T2: 0 | U2: 0 | V2: 0 | W2: 0 | Z2: =IF(OR(Table2[[#This Row],[TOTAL OSA]]="",Table2[[#This Row],[TOTAL OSA]]=0 ),"",Table2[[#This Row],[TOTAL OSA - Academic Disadvantage]]/Table2[[#This Row],[TOTAL OSA]]) ->  | AB2: =IF(OR(Table2[[#This Row],[TOTAL OSA]]="",Table2[[#This Row],[TOTAL OSA]]=0 ),"",Table2[[#This Row],[TOTAL OSA - Economic Disadvantage]]/Table2[[#This Row],[TOTAL OSA]]) ->  | AD2: =IF(OR(Table2[[#This Row],[TOTAL OSA]]="",Table2[[#This Row],[TOTAL OSA]]=0 ),"",Table2[[#This Row],[TOTAL OSA - Adult Learner]]/Table2[[#This Row],[TOTAL OSA]]) ->  | AF2: =IF(OR(Table2[[#This Row],[TOTAL OSA]]="",Table2[[#This Row],[TOTAL OSA]]=0 ),"",Table2[[#This Row],[OSA nonHDF]]/Table2[[#This Row],[TOTAL OSA]]) ->  | AH2: =IF(OR(Table2[[#This Row],[TOTAL OSA - Academic Disadvantage]]="",Table2[[#This Row],[TOTAL OSA - Academic Disadvantage]]=0 ),"",Table2[[#This Row],[OSA - nonHDF Academic Disadvantage]]/Table2[[#This Row],[TOTAL OSA - Academic Disadvantage]]) ->  | AJ2: =IF(OR(Table2[[#This Row],[TOTAL OSA - Economic Disadvantage]]="",Table2[[#This Row],[TOTAL OSA - Economic Disadvantage]]=0 ),"",Table2[[#This Row],[OSA - nonHDF Economic Disadvantage]]/Table2[[#This Row],[TOTAL OSA - Economic Disadvantage]]) ->  | AL2: =IF(OR(Table2[[#This Row],[TOTAL OSA - Adult Learner]]="",Table2[[#This Row],[TOTAL OSA - Adult Learner]]=0 ),"",Table2[[#This Row],[OSA - nonHDF Adult Learner]]/Table2[[#This Row],[TOTAL OSA - Adult Learner]]) ->  | AN2: =IF(OR(Table2[[#This Row],[TOTAL OSA]]="",Table2[[#This Row],[TOTAL OSA]]=0 ),"",Table2[[#This Row],[OSA: HDF]]/Table2[[#This Row],[TOTAL OSA]]) ->  | AP2: =IF(OR(Table2[[#This Row],[TOTAL OSA - Academic Disadvantage]]="",Table2[[#This Row],[TOTAL OSA - Academic Disadvantage]]=0 ),"",Table2[[#This Row],[OSA: HDF Academic Disadvantage]]/Table2[[#This Row],[TOTAL OSA - Academic Disadvantage]]) ->  | AR2: =IF(OR(Table2[[#This Row],[TOTAL OSA - Economic Disadvantage]]="",Table2[[#This Row],[TOTAL OSA - Economic Disadvantage]]=0 ),"",Table2[[#This Row],[OSA: HDF Economic Disadvantage]]/Table2[[#This Row],[TOTAL OSA - Economic Disadvantage]]) ->  | AT2: =IF(OR(Table2[[#This Row],[TOTAL OSA - Adult Learner]]="",Table2[[#This Row],[TOTAL OSA - Adult Learner]]=0 ),"",Table2[[#This Row],[OSA: HDF - Adult Learner]]/Table2[[#This Row],[TOTAL OSA - Adult Learner]]) ->  | AU2: 1902 | AV2: 940 | AW2: =IF(OR(Table2[[#This Row],[TOTAL Certificate I or II]]="",Table2[[#This Row],[TOTAL Certificate I or II]]=0 ),"",Table2[[#This Row],[TOTAL Certificate I or II - Academic Disadvantage]]/Table2[[#This Row],[TOTAL Certificate I or II]]) -> 0.4942166141 | AX2: 928 | AY2: =IF(OR(Table2[[#This Row],[TOTAL Certificate I or II]]="",Table2[[#This Row],[TOTAL Certificate I or II]]=0 ),"",Table2[[#This Row],[TOTAL Certificate I or II - Economic Disadvantage]]/Table2[[#This Row],[TOTAL Certificate I or II]]) -> 0.4879074658 | AZ2: 1016 | BA2: =IF(OR(Table2[[#This Row],[TOTAL Certificate I or II]]="",Table2[[#This Row],[TOTAL Certificate I or II]]=0 ),"",Table2[[#This Row],[TOTAL Certificate I or II - Adult Learner]]/Table2[[#This Row],[TOTAL Certificate I or II]]) -> 0.5341745531 | BB2: 869 | BC2: =IF(OR(Table2[[#This Row],[TOTAL Certificate I or II]]="",Table2[[#This Row],[TOTAL Certificate I or II]]=0 ),"",Table2[[#This Row],[Certificate I or II nonHDF]]/Table2[[#This Row],[TOTAL Certificate I or II]]) -> 0.4568874869 | BD2: 419 | BE2: =IF(OR(Table2[[#This Row],[OSA: HDF Academic Disadvantage]]="",Table2[[#This Row],[OSA: HDF Academic Disadvantage]]=0 ),"",Table2[[#This Row],[Certificate I or II - nonHDF Academic Disadvantage]]/Table2[[#This Row],[OSA: HDF Academic Disadvantage]]) ->  | BF2: 421 | BG2: =IF(OR(Table2[[#This Row],[TOTAL Certificate I or II - Economic Disadvantage]]="",Table2[[#This Row],[TOTAL Certificate I or II - Economic Disadvantage]]=0 ),"",Table2[[#This Row],[Certificate I or II - nonHDF Economic Disadvantage]]/Table2[[#This Row],[TOTAL Certificate I or II - Economic Disadvantage]]) -> 0.4536637931 | BH2: 468 | BI2: =IF(OR(Table2[[#This Row],[TOTAL Certificate I or II - Adult Learner]]="",Table2[[#This Row],[TOTAL Certificate I or II - Adult Learner]]=0 ),"",Table2[[#This Row],[Certificate I or II - nonHDF Adult Learner]]/Table2[[#This Row],[TOTAL Certificate I or II - Adult Learner]]) -> 0.4606299213 | BJ2: 1033 | BK2: =IF(OR(Table2[[#This Row],[TOTAL Certificate I or II]]="",Table2[[#This Row],[TOTAL Certificate I or II]]=0 ),"",Table2[[#This Row],[Certificate I or II: HDF]]/Table2[[#This Row],[TOTAL Certificate I or II]]) -> 0.5431125131 | BL2: 521 | BM2: =IF(OR(Table2[[#This Row],[TOTAL Certificate I or II - Academic Disadvantage]]="",Table2[[#This Row],[TOTAL Certificate I or II - Academic Disadvantage]]=0 ),"",Table2[[#This Row],[Certificate I or II: HDF Academic Disadvantage]]/Table2[[#This Row],[TOTAL Certificate I or II - Academic Disadvantage]]) -> 0.5542553191 | BN2: 507 | BO2: =IF(OR(Table2[[#This Row],[TOTAL Certificate I or II - Economic Disadvantage]]="",Table2[[#This Row],[TOTAL Certificate I or II - Economic Disadvantage]]=0 ),"",Table2[[#This Row],[Certificate I or II: HDF Economic Disadvantage]]/Table2[[#This Row],[TOTAL Certificate I or II - Economic Disadvantage]]) -> 0.5463362069 | BP2: 548 | BQ2: =IF(OR(Table2[[#This Row],[TOTAL Certificate I or II - Adult Learner]]="",Table2[[#This Row],[TOTAL Certificate I or II - Adult Learner]]=0 ),"",Table2[[#This Row],[Certificate I or II: HDF Adult Learner]]/Table2[[#This Row],[TOTAL Certificate I or II - Adult Learner]]) -> 0.5393700787 | BR2: 35 | BS2: =IF(OR(Table2[[#This Row],[TOTAL Certificate I or II]]="",Table2[[#This Row],[TOTAL Certificate I or II]]=0 ),"",Table2[[#This Row],[TOTAL Cert I or II: COV Premium]]/Table2[[#This Row],[TOTAL Certificate I or II]]) -> 0.01840168244 | BT2: 3 | BU2: 2 | BV2: =IF(OR(Table2[[#This Row],[TOTAL Advanced Technical Certificate]]="",Table2[[#This Row],[TOTAL Advanced Technical Certificate]]=0 ),"",Table2[[#This Row],[TOTAL Advanced Technical Certificate - Academic Disadvantage]]/Table2[[#This Row],[TOTAL Advanced Technical Certificate]]) -> 0.6666666667 | BW2: 0 | BX2: =IF(OR(Table2[[#This Row],[TOTAL Advanced Technical Certificate]]="",Table2[[#This Row],[TOTAL Advanced Technical Certificate]]=0 ),"",Table2[[#This Row],[TOTAL Advanced Technical Certificate - Economic Disadvantage]]/Table2[[#This Row],[TOTAL Advanced Technical Certificate]]) -> 0 | BY2: 3 | BZ2: =IF(OR(Table2[[#This Row],[TOTAL Advanced Technical Certificate]]="",Table2[[#This Row],[TOTAL Advanced Technical Certificate]]=0 ),"",Table2[[#This Row],[TOTAL Advanced Technical Certificate - Adult Learner]]/Table2[[#This Row],[TOTAL Advanced Technical Certificate]]) -> 1 | CA2: 2 | CB2: =IF(OR(Table2[[#This Row],[TOTAL Advanced Technical Certificate]]="",Table2[[#This Row],[TOTAL Advanced Technical Certificate]]=0 ),"",Table2[[#This Row],[Advanced Technical Certificate nonHDF]]/Table2[[#This Row],[TOTAL Advanced Technical Certificate]]) -> 0.6666666667 | CC2: 1 | CD2: =IF(OR(Table2[[#This Row],[TOTAL Advanced Technical Certificate - Academic Disadvantage]]="",Table2[[#This Row],[TOTAL Advanced Technical Certificate - Academic Disadvantage]]=0 ),"",Table2[[#This Row],[Advanced Technical Certificate nonHDF - Academic Disadvantage]]/Table2[[#This Row],[TOTAL Advanced Technical Certificate - Academic Disadvantage]]) -> 0.5 | CE2: 0 | CF2: =IF(OR(Table2[[#This Row],[TOTAL Advanced Technical Certificate - Economic Disadvantage]]="",Table2[[#This Row],[TOTAL Advanced Technical Certificate - Economic Disadvantage]]=0 ),"",Table2[[#This Row],[Advanced Technical Certificate - nonHDF Economic Disadvantage]]/Table2[[#This Row],[TOTAL Advanced Technical Certificate - Economic Disadvantage]]) ->  | CG2: 2 | CH2: =IF(OR(Table2[[#This Row],[TOTAL Advanced Technical Certificate - Adult Learner]]="",Table2[[#This Row],[TOTAL Advanced Technical Certificate - Adult Learner]]=0 ),"",Table2[[#This Row],[Advanced Technical Certificate - nonHDF Adult Learner]]/Table2[[#This Row],[TOTAL Advanced Technical Certificate - Adult Learner]]) -> 0.6666666667 | CI2: 1 | CJ2: =IF(OR(Table2[[#This Row],[TOTAL Advanced Technical Certificate]]="",Table2[[#This Row],[TOTAL Advanced Technical Certificate]]=0 ),"",Table2[[#This Row],[Advanced Technical Certificate: HDF]]/Table2[[#This Row],[TOTAL Advanced Technical Certificate]]) -> 0.3333333333 | CK2: 1 | CL2: =IF(OR(Table2[[#This Row],[TOTAL Advanced Technical Certificate - Academic Disadvantage]]="",Table2[[#This Row],[TOTAL Advanced Technical Certificate - Academic Disadvantage]]=0 ),"",Table2[[#This Row],[Advanced Technical Certificate: HDF Academic Disadvantage]]/Table2[[#This Row],[TOTAL Advanced Technical Certificate - Academic Disadvantage]]) -> 0.5 | CM2: 0 | CN2: =IF(OR(Table2[[#This Row],[TOTAL Advanced Technical Certificate - Economic Disadvantage]]="",Table2[[#This Row],[TOTAL Advanced Technical Certificate - Economic Disadvantage]]=0 ),"",Table2[[#This Row],[Advanced Technical Certificate: HDF Economic Disadvantage]]/Table2[[#This Row],[TOTAL Advanced Technical Certificate - Economic Disadvantage]]) ->  | CO2: 3 | CP2: =IF(OR(Table2[[#This Row],[TOTAL Advanced Technical Certificate - Adult Learner]]="",Table2[[#This Row],[TOTAL Advanced Technical Certificate - Adult Learner]]=0 ),"",Table2[[#This Row],[Advanced Technical Certificate: HDF Adult Learner]]/Table2[[#This Row],[TOTAL Advanced Technical Certificate - Adult Learner]]) -> 1 | CQ2: 8749 | CR2: 3827 | CS2: =IF(OR(Table2[[#This Row],[TOTAL Associate Degree]]="",Table2[[#This Row],[TOTAL Associate Degree]]=0 ),"",Table2[[#This Row],[TOTAL Associate Degree - Academic Disadvantage]]/Table2[[#This Row],[TOTAL Associate Degree]]) -> 0.4374214196 | CT2: 4526 | CU2: =IF(OR(Table2[[#This Row],[TOTAL Associate Degree]]="",Table2[[#This Row],[TOTAL Associate Degree]]=0 ),"",Table2[[#This Row],[TOTAL Associate Degree - Economic Disadvantage]]/Table2[[#This Row],[TOTAL Associate Degree]]) -> 0.5173162647 | CV2: 2911 | CW2: =IF(OR(Table2[[#This Row],[TOTAL Associate Degree]]="",Table2[[#This Row],[TOTAL Associate Degree]]=0 ),"",Table2[[#This Row],[TOTAL Associate Degree - Adult Learner]]/Table2[[#This Row],[TOTAL Associate Degree]]) -> 0.3327237399 | CX2: 7829 | CY2: =IF(OR(Table2[[#This Row],[TOTAL Associate Degree]]="",Table2[[#This Row],[TOTAL Associate Degree]]=0 ),"",Table2[[#This Row],[Associate Degree nonHDF]]/Table2[[#This Row],[TOTAL Associate Degree]]) -> 0.8948451252 | CZ2: 3451 | DA2: =IF(OR(Table2[[#This Row],[TOTAL Associate Degree - Academic Disadvantage]]="",Table2[[#This Row],[TOTAL Associate Degree - Academic Disadvantage]]=0 ),"",Table2[[#This Row],[Associate Degree - nonHDF Academic Disadvantage]]/Table2[[#This Row],[TOTAL Associate Degree - Academic Disadvantage]]) -> 0.9017507186 | DB2: 4040 | DC2: =IF(OR(Table2[[#This Row],[TOTAL Associate Degree - Economic Disadvantage]]="",Table2[[#This Row],[TOTAL Associate Degree - Economic Disadvantage]]=0 ),"",Table2[[#This Row],[Associate Degree - nonHDF Economic Disadvantage]]/Table2[[#This Row],[TOTAL Associate Degree - Economic Disadvantage]]) -> 0.8926204154 | DD2: 2383 | DE2: =IF(OR(Table2[[#This Row],[TOTAL Associate Degree - Adult Learner]]="",Table2[[#This Row],[TOTAL Associate Degree - Adult Learner]]=0 ),"",Table2[[#This Row],[Associate Degree - nonHDF Adult Learner]]/Table2[[#This Row],[TOTAL Associate Degree - Adult Learner]]) -> 0.8186190313 | DF2: 920 | DG2: =IF(OR(Table2[[#This Row],[TOTAL Associate Degree]]="",Table2[[#This Row],[TOTAL Associate Degree]]=0 ),"",Table2[[#This Row],[Associate Degree: HDF]]/Table2[[#This Row],[TOTAL Associate Degree]]) -> 0.1051548748 | DH2: 376 | DI2: =IF(OR(Table2[[#This Row],[TOTAL Associate Degree - Academic Disadvantage]]="",Table2[[#This Row],[TOTAL Associate Degree - Academic Disadvantage]]=0 ),"",Table2[[#This Row],[Associate Degree: HDF Academic Disadvantage]]/Table2[[#This Row],[TOTAL Associate Degree - Academic Disadvantage]]) -> 0.09824928142 | DJ2: 486 | DK2: =IF(OR(Table2[[#This Row],[TOTAL Associate Degree - Economic Disadvantage]]="",Table2[[#This Row],[TOTAL Associate Degree - Economic Disadvantage]]=0 ),"",Table2[[#This Row],[Associate Degree: HDF Economic Disadvantage]]/Table2[[#This Row],[TOTAL Associate Degree - Economic Disadvantage]]) -> 0.1073795846 | DL2: 528 | DM2: =IF(OR(Table2[[#This Row],[TOTAL Associate Degree - Adult Learner]]="",Table2[[#This Row],[TOTAL Associate Degree - Adult Learner]]=0 ),"",Table2[[#This Row],[Associate Degree: HDF Adult Learner]]/Table2[[#This Row],[TOTAL Associate Degree - Adult Learner]]) -> 0.1813809687 | DN2: 238 | DO2: =IF(OR(Table2[[#This Row],[TOTAL Associate Degree]]="",Table2[[#This Row],[TOTAL Associate Degree]]=0 ),"",Table2[[#This Row],[TOTAL Associate: CoV Premium]]/Table2[[#This Row],[TOTAL Associate Degree]]) -> 0.02720310893 | DP2: 0 | DQ2: 22.58666667 | DR2: =IF(OR(Table2[[#This Row],[TOTAL Bachelor''s Degree]]="",Table2[[#This Row],[TOTAL Bachelor''s Degree]]=0 ),"",Table2[[#This Row],[TOTAL Bachelor''s Degree - Academic Disadvantage]]/Table2[[#This Row],[TOTAL Bachelor''s Degree]]) ->  | DS2: 0 | DT2: =IF(OR(Table2[[#This Row],[TOTAL Bachelor''s Degree]]="",Table2[[#This Row],[TOTAL Bachelor''s Degree]]=0 ),"",Table2[[#This Row],[TOTAL Bachelor''s Degree - Economic Disadvantage]]/Table2[[#This Row],[TOTAL Bachelor''s Degree]]) ->  | DU2: 0 | DV2: =IF(OR(Table2[[#This Row],[TOTAL Bachelor''s Degree]]="",Table2[[#This Row],[TOTAL Bachelor''s Degree]]=0 ),"",Table2[[#This Row],[TOTAL Bachelor''s Degree - Adult Learner]]/Table2[[#This Row],[TOTAL Bachelor''s Degree]]) ->  | DW2: 0 | DX2: =IF(OR(Table2[[#This Row],[TOTAL Bachelor''s Degree]]="",Table2[[#This Row],[TOTAL Bachelor''s Degree]]=0 ),"",Table2[[#This Row],[Bachelor''s Degree nonHDF]]/Table2[[#This Row],[TOTAL Bachelor''s Degree]]) ->  | DY2: 0 | DZ2: =IF(OR(Table2[[#This Row],[TOTAL Bachelor''s Degree - Academic Disadvantage]]="",Table2[[#This Row],[TOTAL Bachelor''s Degree - Academic Disadvantage]]=0 ),"",Table2[[#This Row],[Bachelor''s Degree - nonHDF Academic Disadvantage]]/Table2[[#This Row],[TOTAL Bachelor''s Degree - Academic Disadvantage]]) -> 0 | EA2: 0 | EB2: =IF(OR(Table2[[#This Row],[TOTAL Bachelor''s Degree - Economic Disadvantage]]="",Table2[[#This Row],[TOTAL Bachelor''s Degree - Economic Disadvantage]]=0 ),"",Table2[[#This Row],[Bachelor''s Degree - nonHDF Economic Disadvantage]]/Table2[[#This Row],[TOTAL Bachelor''s Degree - Economic Disadvantage]]) ->  | EC2: 0 | ED2: =IF(OR(Table2[[#This Row],[TOTAL Bachelor''s Degree - Adult Learner]]="",Table2[[#This Row],[TOTAL Bachelor''s Degree - Adult Learner]]=0 ),"",Table2[[#This Row],[Bachelor''s Degree - nonHDF Adult Learner]]/Table2[[#This Row],[TOTAL Bachelor''s Degree - Adult Learner]]) ->  | EE2: 0 | EF2: =IF(OR(Table2[[#This Row],[TOTAL Bachelor''s Degree]]="",Table2[[#This Row],[TOTAL Bachelor''s Degree]]=0 ),"",Table2[[#This Row],[Bachelor''s Degree: HDF]]/Table2[[#This Row],[TOTAL Bachelor''s Degree]]) ->  | EG2: 0 | EH2: =IF(OR(Table2[[#This Row],[TOTAL Bachelor''s Degree - Academic Disadvantage]]="",Table2[[#This Row],[TOTAL Bachelor''s Degree - Academic Disadvantage]]=0 ),"",Table2[[#This Row],[Bachelor''s Degree: HDF - Academic Disadvantage]]/Table2[[#This Row],[TOTAL Bachelor''s Degree - Academic Disadvantage]]) -> 0 | EI2: 0 | EJ2: =IF(OR(Table2[[#This Row],[TOTAL Bachelor''s Degree - Economic Disadvantage]]="",Table2[[#This Row],[TOTAL Bachelor''s Degree - Economic Disadvantage]]=0 ),"",Table2[[#This Row],[Bachelor''s Degree: HDF - Economic Disadvantage]]/Table2[[#This Row],[TOTAL Bachelor''s Degree - Economic Disadvantage]]) ->  | EK2: 0 | EL2: =IF(OR(Table2[[#This Row],[TOTAL Bachelor''s Degree - Adult Learner]]="",Table2[[#This Row],[TOTAL Bachelor''s Degree - Adult Learner]]=0 ),"",Table2[[#This Row],[Bachelor''s Degree: HDF - Adult Learner]]/Table2[[#This Row],[TOTAL Bachelor''s Degree - Adult Learner]]) ->  | EM2: 0 | EN2: =IF(OR(Table2[[#This Row],[TOTAL Bachelor''s Degree]]="",Table2[[#This Row],[TOTAL Bachelor''s Degree]]=0 ),"",Table2[[#This Row],[TOTAL Bachelor''s Degree: CoV Premium]]/Table2[[#This Row],[TOTAL Bachelor''s Degree]]) -> 
A3: 003539 | B3: Alvin Community College | C3: 2018 | D3: 545 | E3: 477 | F3: 119 | G3: =IF(OR(Table2[[#This Row],[GAI Transfer with 15 SCH Total]]="",Table2[[#This Row],[GAI Transfer with 15 SCH Total]]=0 ),"",Table2[[#This Row],[GAI Transfer with 15 SCH - Academic Disadvantage]]/Table2[[#This Row],[GAI Transfer with 15 SCH Total]]) -> 0.249475891 | H3: 97 | I3: =IF(OR(Table2[[#This Row],[GAI Transfer with 15 SCH Total]]="",Table2[[#This Row],[GAI Transfer with 15 SCH Total]]=0 ),"",Table2[[#This Row],[GAI Transfer with 15 SCH - Economic Disadvantage]]/Table2[[#This Row],[GAI Transfer with 15 SCH Total]]) -> 0.2033542977 | J3: 81 | K3: =IF(OR(Table2[[#This Row],[GAI Transfer with 15 SCH Total]]="",Table2[[#This Row],[GAI Transfer with 15 SCH Total]]=0 ),"",Table2[[#This Row],[GAI Transfer with 15 SCH - Adult Learner]]/Table2[[#This Row],[GAI Transfer with 15 SCH Total]]) -> 0.1698113208 | N3: =IF(OR(Table2[[#This Row],[GAI Co-enrollment with 15 SCH Total]]="", Table2[[#This Row],[GAI Co-enrollment with 15 SCH Total]]=0),"",Table2[[#This Row],[GAI Co-enrollment with 15 SCH -Academic Disadvantage]]/Table2[[#This Row],[GAI Co-enrollment with 15 SCH Total]]) ->  | P3: =IF(OR(Table2[[#This Row],[GAI Co-enrollment with 15 SCH Total]]="", Table2[[#This Row],[GAI Co-enrollment with 15 SCH Total]]=0),"",Table2[[#This Row],[GAI Co-enrollment with 15 SCH - Economic Disadvantage]]/Table2[[#This Row],[GAI Co-enrollment with 15 SCH Total]]) ->  | R3: =IF(OR(Table2[[#This Row],[GAI Co-enrollment with 15 SCH Total]]="",Table2[[#This Row],[GAI Co-enrollment with 15 SCH Total]]=0 ),"",Table2[[#This Row],[GAI Co-enrollment with 15 SCH - Adult Learner]]/Table2[[#This Row],[GAI Co-enrollment with 15 SCH Total]]) ->  | V3: 0 | W3: 0 | Z3: =IF(OR(Table2[[#This Row],[TOTAL OSA]]="",Table2[[#This Row],[TOTAL OSA]]=0 ),"",Table2[[#This Row],[TOTAL OSA - Academic Disadvantage]]/Table2[[#This Row],[TOTAL OSA]]) ->  | AB3: =IF(OR(Table2[[#This Row],[TOTAL OSA]]="",Table2[[#This Row],[TOTAL OSA]]=0 ),"",Table2[[#This Row],[TOTAL OSA - Economic Disadvantage]]/Table2[[#This Row],[TOTAL OSA]]) ->  | AD3: =IF(OR(Table2[[#This Row],[TOTAL OSA]]="",Table2[[#This Row],[TOTAL OSA]]=0 ),"",Table2[[#This Row],[TOTAL OSA - Adult Learner]]/Table2[[#This Row],[TOTAL OSA]]) ->  | AF3: =IF(OR(Table2[[#This Row],[TOTAL OSA]]="",Table2[[#This Row],[TOTAL OSA]]=0 ),"",Table2[[#This Row],[OSA nonHDF]]/Table2[[#This Row],[TOTAL OSA]]) ->  | AH3: =IF(OR(Table2[[#This Row],[TOTAL OSA - Academic Disadvantage]]="",Table2[[#This Row],[TOTAL OSA - Academic Disadvantage]]=0 ),"",Table2[[#This Row],[OSA - nonHDF Academic Disadvantage]]/Table2[[#This Row],[TOTAL OSA - Academic Disadvantage]]) ->  | AJ3: =IF(OR(Table2[[#This Row],[TOTAL OSA - Economic Disadvantage]]="",Table2[[#This Row],[TOTAL OSA - Economic Disadvantage]]=0 ),"",Table2[[#This Row],[OSA - nonHDF Economic Disadvantage]]/Table2[[#This Row],[TOTAL OSA - Economic Disadvantage]]) ->  | AL3: =IF(OR(Table2[[#This Row],[TOTAL OSA - Adult Learner]]="",Table2[[#This Row],[TOTAL OSA - Adult Learner]]=0 ),"",Table2[[#This Row],[OSA - nonHDF Adult Learner]]/Table2[[#This Row],[TOTAL OSA - Adult Learner]]) ->  | AN3: =IF(OR(Table2[[#This Row],[TOTAL OSA]]="",Table2[[#This Row],[TOTAL OSA]]=0 ),"",Table2[[#This Row],[OSA: HDF]]/Table2[[#This Row],[TOTAL OSA]]) ->  | AP3: =IF(OR(Table2[[#This Row],[TOTAL OSA - Academic Disadvantage]]="",Table2[[#This Row],[TOTAL OSA - Academic Disadvantage]]=0 ),"",Table2[[#This Row],[OSA: HDF Academic Disadvantage]]/Table2[[#This Row],[TOTAL OSA - Academic Disadvantage]]) ->  | AR3: =IF(OR(Table2[[#This Row],[TOTAL OSA - Economic Disadvantage]]="",Table2[[#This Row],[TOTAL OSA - Economic Disadvantage]]=0 ),"",Table2[[#This Row],[OSA: HDF Economic Disadvantage]]/Table2[[#This Row],[TOTAL OSA - Economic Disadvantage]]) ->  | AT3: =IF(OR(Table2[[#This Row],[TOTAL OSA - Adult Learner]]="",Table2[[#This Row],[TOTAL OSA - Adult Learner]]=0 ),"",Table2[[#This Row],[OSA: HDF - Adult Learner]]/Table2[[#This Row],[TOTAL OSA - Adult Learner]]) ->  | AU3: 357 | AV3: 121 | AW3: =IF(OR(Table2[[#This Row],[TOTAL Certificate I or II]]="",Table2[[#This Row],[TOTAL Certificate I or II]]=0 ),"",Table2[[#This Row],[TOTAL Certificate I or II - Academic Disadvantage]]/Table2[[#This Row],[TOTAL Certificate I or II]]) -> 0.3389355742 | AX3: 107 | AY3: =IF(OR(Table2[[#This Row],[TOTAL Certificate I or II]]="",Table2[[#This Row],[TOTAL Certificate I or II]]=0 ),"",Table2[[#This Row],[TOTAL Certificate I or II - Economic Disadvantage]]/Table2[[#This Row],[TOTAL Certificate I or II]]) -> 0.299719888 | AZ3: 230 | BA3: =IF(OR(Table2[[#This Row],[TOTAL Certificate I or II]]="",Table2[[#This Row],[TOTAL Certificate I or II]]=0 ),"",Table2[[#This Row],[TOTAL Certificate I or II - Adult Learner]]/Table2[[#This Row],[TOTAL Certificate I or II]]) -> 0.6442577031 | BB3: 157 | BC3: =IF(OR(Table2[[#This Row],[TOTAL Certificate I or II]]="",Table2[[#This Row],[TOTAL Certificate I or II]]=0 ),"",Table2[[#This Row],[Certificate I or II nonHDF]]/Table2[[#This Row],[TOTAL Certificate I or II]]) -> 0.4397759104 | BD3: 54 | BE3: =IF(OR(Table2[[#This Row],[OSA: HDF Academic Disadvantage]]="",Table2[[#This Row],[OSA: HDF Academic Disadvantage]]=0 ),"",Table2[[#This Row],[Certificate I or II - nonHDF Academic Disadvantage]]/Table2[[#This Row],[OSA: HDF Academic Disadvantage]]) ->  | BF3: 49 | BG3: =IF(OR(Table2[[#This Row],[TOTAL Certificate I or II - Economic Disadvantage]]="",Table2[[#This Row],[TOTAL Certificate I or II - Economic Disadvantage]]=0 ),"",Table2[[#This Row],[Certificate I or II - nonHDF Economic Disadvantage]]/Table2[[#This Row],[TOTAL Certificate I or II - Economic Disadvantage]]) -> 0.4579439252 | BH3: 92 | BI3: =IF(OR(Table2[[#This Row],[TOTAL Certificate I or II - Adult Learner]]="",Table2[[#This Row],[TOTAL Certificate I or II - Adult Learner]]=0 ),"",Table2[[#This Row],[Certificate I or II - nonHDF Adult Learner]]/Table2[[#This Row],[TOTAL Certificate I or II - Adult Learner]]) -> 0.4 | BJ3: 200 | BK3: =IF(OR(Table2[[#This Row],[TOTAL Certificate I or II]]="",Table2[[#This Row],[TOTAL Certificate I or II]]=0 ),"",Table2[[#This Row],[Certificate I or II: HDF]]/Table2[[#This Row],[TOTAL Certificate I or II]]) -> 0.5602240896 | BL3: 67 | BM3: =IF(OR(Table2[[#This Row],[TOTAL Certificate I or II - Academic Disadvantage]]="",Table2[[#This Row],[TOTAL Certificate I or II - Academic Disadvantage]]=0 ),"",Table2[[#This Row],[Certificate I or II: HDF Academic Disadvantage]]/Table2[[#This Row],[TOTAL Certificate I or II - Academic Disadvantage]]) -> 0.5537190083 | BN3: 58 | BO3: =IF(OR(Table2[[#This Row],[TOTAL Certificate I or II - Economic Disadvantage]]="",Table2[[#This Row],[TOTAL Certificate I or II - Economic Disadvantage]]=0 ),"",Table2[[#This Row],[Certificate I or II: HDF Economic Disadvantage]]/Table2[[#This Row],[TOTAL Certificate I or II - Economic Disadvantage]]) -> 0.5420560748 | BP3: 138 | BQ3: =IF(OR(Table2[[#This Row],[TOTAL Certificate I or II - Adult Learner]]="",Table2[[#This Row],[TOTAL Certificate I or II - Adult Learner]]=0 ),"",Table2[[#This Row],[Certificate I or II: HDF Adult Learner]]/Table2[[#This Row],[TOTAL Certificate I or II - Adult Learner]]) -> 0.6 | BR3: 16 | BS3: =IF(OR(Table2[[#This Row],[TOTAL Certificate I or II]]="",Table2[[#This Row],[TOTAL Certificate I or II]]=0 ),"",Table2[[#This Row],[TOTAL Cert I or II: COV Premium]]/Table2[[#This Row],[TOTAL Certificate I or II]]) -> 0.04481792717 | BT3: 7 | BU3: 0 | BV3: =IF(OR(Table2[[#This Row],[TOTAL Advanced Technical Certificate]]="",Table2[[#This Row],[TOTAL Advanced Technical Certificate]]=0 ),"",Table2[[#This Row],[TOTAL Advanced Technical Certificate - Academic Disadvantage]]/Table2[[#This Row],[TOTAL Advanced Technical Certificate]]) -> 0 | BW3: 1 | BX3: =IF(OR(Table2[[#This Row],[TOTAL Advanced Technical Certificate]]="",Table2[[#This Row],[TOTAL Advanced Technical Certificate]]=0 ),"",Table2[[#This Row],[TOTAL Advanced Technical Certificate - Economic Disadvantage]]/Table2[[#This Row],[TOTAL Advanced Technical Certificate]]) -> 0.1428571429 | BY3: 5 | BZ3: =IF(OR(Table2[[#This Row],[TOTAL Advanced Technical Certificate]]="",Table2[[#This Row],[TOTAL Advanced Technical Certificate]]=0 ),"",Table2[[#This Row],[TOTAL Advanced Technical Certificate - Adult Learner]]/Table2[[#This Row],[TOTAL Advanced Technical Certificate]]) -> 0.7142857143 | CA3: 0 | CB3: =IF(OR(Table2[[#This Row],[TOTAL Advanced Technical Certificate]]="",Table2[[#This Row],[TOTAL Advanced Technical Certificate]]=0 ),"",Table2[[#This Row],[Advanced Technical Certificate nonHDF]]/Table2[[#This Row],[TOTAL Advanced Technical Certificate]]) -> 0 | CC3: 0 | CD3: =IF(OR(Table2[[#This Row],[TOTAL Advanced Technical Certificate - Academic Disadvantage]]="",Table2[[#This Row],[TOTAL Advanced Technical Certificate - Academic Disadvantage]]=0 ),"",Table2[[#This Row],[Advanced Technical Certificate nonHDF - Academic Disadvantage]]/Table2[[#This Row],[TOTAL Advanced Technical Certificate - Academic Disadvantage]]) ->  | CE3: 0 | CF3: =IF(OR(Table2[[#This Row],[TOTAL Advanced Technical Certificate - Economic Disadvantage]]="",Table2[[#This Row],[TOTAL Advanced Technical Certificate - Economic Disadvantage]]=0 ),"",Table2[[#This Row],[Advanced Technical Certificate - nonHDF Economic Disadvantage]]/Table2[[#This Row],[TOTAL Advanced Technical Certificate - Economic Disadvantage]]) -> 0 | CG3: 0 | CH3: =IF(OR(Table2[[#This Row],[TOTAL Advanced Technical Certificate - Adult Learner]]="",Table2[[#This Row],[TOTAL Advanced Technical Certificate - Adult Learner]]=0 ),"",Table2[[#This Row],[Advanced Technical Certificate - nonHDF Adult Learner]]/Table2[[#This Row],[TOTAL Advanced Technical Certificate - Adult Learner]]) -> 0 | CI3: 7 | CJ3: =IF(OR(Table2[[#This Row],[TOTAL Advanced Technical Certificate]]="",Table2[[#This Row],[TOTAL Advanced Technical Certificate]]=0 ),"",Table2[[#This Row],[Advanced Technical Certificate: HDF]]/Table2[[#This Row],[TOTAL Advanced Technical Certificate]]) -> 1 | CK3: 0 | CL3: =IF(OR(Table2[[#This Row],[TOTAL Advanced Technical Certificate - Academic Disadvantage]]="",Table2[[#This Row],[TOTAL Advanced Technical Certificate - Academic Disadvantage]]=0 ),"",Table2[[#This Row],[Advanced Technical Certificate: HDF Academic Disadvantage]]/Table2[[#This Row],[TOTAL Advanced Technical Certificate - Academic Disadvantage]]) ->  | CM3: 1 | CN3: =IF(OR(Table2[[#This Row],[TOTAL Advanced Technical Certificate - Economic Disadvantage]]="",Table2[[#This Row],[TOTAL Advanced Technical Certificate - Economic Disadvantage]]=0 ),"",Table2[[#This Row],[Advanced Technical Certificate: HDF Economic Disadvantage]]/Table2[[#This Row],[TOTAL Advanced Technical Certificate - Economic Disadvantage]]) -> 1 | CO3: 0 | CP3: =IF(OR(Table2[[#This Row],[TOTAL Advanced Technical Certificate - Adult Learner]]="",Table2[[#This Row],[TOTAL Advanced Technical Certificate - Adult Learner]]=0 ),"",Table2[[#This Row],[Advanced Technical Certificate: HDF Adult Learner]]/Table2[[#This Row],[TOTAL Advanced Technical Certificate - Adult Learner]]) -> 0 | CQ3: 868 | CR3: 189 | CS3: =IF(OR(Table2[[#This Row],[TOTAL Associate Degree]]="",Table2[[#This Row],[TOTAL Associate Degree]]=0 ),"",Table2[[#This Row],[TOTAL Associate Degree - Academic Disadvantage]]/Table2[[#This Row],[TOTAL Associate Degree]]) -> 0.2177419355 | CT3: 208 | CU3: =IF(OR(Table2[[#This Row],[TOTAL Associate Degree]]="",Table2[[#This Row],[TOTAL Associate Degree]]=0 ),"",Table2[[#This Row],[TOTAL Associate Degree - Economic Disadvantage]]/Table2[[#This Row],[TOTAL Associate Degree]]) -> 0.2396313364 | CV3: 288 | CW3: =IF(OR(Table2[[#This Row],[TOTAL Associate Degree]]="",Table2[[#This Row],[TOTAL Associate Degree]]=0 ),"",Table2[[#This Row],[TOTAL Associate Degree - Adult Learner]]/Table2[[#This Row],[TOTAL Associate Degree]]) -> 0.331797235 | CX3: 665 | CY3: =IF(OR(Table2[[#This Row],[TOTAL Associate Degree]]="",Table2[[#This Row],[TOTAL Associate Degree]]=0 ),"",Table2[[#This Row],[Associate Degree nonHDF]]/Table2[[#This Row],[TOTAL Associate Degree]]) -> 0.7661290323 | CZ3: 165 | DA3: =IF(OR(Table2[[#This Row],[TOTAL Associate Degree - Academic Disadvantage]]="",Table2[[#This Row],[TOTAL Associate Degree - Academic Disadvantage]]=0 ),"",Table2[[#This Row],[Associate Degree - nonHDF Academic Disadvantage]]/Table2[[#This Row],[TOTAL Associate Degree - Academic Disadvantage]]) -> 0.873015873 | DB3: 149 | DC3: =IF(OR(Table2[[#This Row],[TOTAL Associate Degree - Economic Disadvantage]]="",Table2[[#This Row],[TOTAL Associate Degree - Economic Disadvantage]]=0 ),"",Table2[[#This Row],[Associate Degree - nonHDF Economic Disadvantage]]/Table2[[#This Row],[TOTAL Associate Degree - Economic Disadvantage]]) -> 0.7163461538 | DD3: 184 | DE3: =IF(OR(Table2[[#This Row],[TOTAL Associate Degree - Adult Learner]]="",Table2[[#This Row],[TOTAL Associate Degree - Adult Learner]]=0 ),"",Table2[[#This Row],[Associate Degree - nonHDF Adult Learner]]/Table2[[#This Row],[TOTAL Associate Degree - Adult Learner]]) -> 0.6388888889 | DF3: 203 | DG3: =IF(OR(Table2[[#This Row],[TOTAL Associate Degree]]="",Table2[[#This Row],[TOTAL Associate Degree]]=0 ),"",Table2[[#This Row],[Associate Degree: HDF]]/Table2[[#This Row],[TOTAL Associate Degree]]) -> 0.2338709677 | DH3: 24 | DI3: =IF(OR(Table2[[#This Row],[TOTAL Associate Degree - Academic Disadvantage]]="",Table2[[#This Row],[TOTAL Associate Degree - Academic Disadvantage]]=0 ),"",Table2[[#This Row],[Associate Degree: HDF Academic Disadvantage]]/Table2[[#This Row],[TOTAL Associate Degree - Academic Disadvantage]]) -> 0.126984127 | DJ3: 59 | DK3: =IF(OR(Table2[[#This Row],[TOTAL Associate Degree - Economic Disadvantage]]="",Table2[[#This Row],[TOTAL Associate Degree - Economic Disadvantage]]=0 ),"",Table2[[#This Row],[Associate Degree: HDF Economic Disadvantage]]/Table2[[#This Row],[TOTAL Associate Degree - Economic Disadvantage]]) -> 0.2836538462 | DL3: 104 | DM3: =IF(OR(Table2[[#This Row],[TOTAL Associate Degree - Adult Learner]]="",Table2[[#This Row],[TOTAL Associate Degree - Adult Learner]]=0 ),"",Table2[[#This Row],[Associate Degree: HDF Adult Learner]]/Table2[[#This Row],[TOTAL Associate Degree - Adult Learner]]) -> 0.3611111111 | DN3: 52 | DO3: =IF(OR(Table2[[#This Row],[TOTAL Associate Degree]]="",Table2[[#This Row],[TOTAL Associate Degree]]=0 ),"",Table2[[#This Row],[TOTAL Associate: CoV Premium]]/Table2[[#This Row],[TOTAL Associate Degree]]) -> 0.0599078341 | DP3: 0 | DQ3: 1.928428851 | DR3: =IF(OR(Table2[[#This Row],[TOTAL Bachelor''s Degree]]="",Table2[[#This Row],[TOTAL Bachelor''s Degree]]=0 ),"",Table2[[#This Row],[TOTAL Bachelor''s Degree - Academic Disadvantage]]/Table2[[#This Row],[TOTAL Bachelor''s Degree]]) ->  | DS3: 0 | DT3: =IF(OR(Table2[[#This Row],[TOTAL Bachelor''s Degree]]="",Table2[[#This Row],[TOTAL Bachelor''s Degree]]=0 ),"",Table2[[#This Row],[TOTAL Bachelor''s Degree - Economic Disadvantage]]/Table2[[#This Row],[TOTAL Bachelor''s Degree]]) ->  | DU3: 0 | DV3: =IF(OR(Table2[[#This Row],[TOTAL Bachelor''s Degree]]="",Table2[[#This Row],[TOTAL Bachelor''s Degree]]=0 ),"",Table2[[#This Row],[TOTAL Bachelor''s Degree - Adult Learner]]/Table2[[#This Row],[TOTAL Bachelor''s Degree]]) ->  | DW3: 0 | DX3: =IF(OR(Table2[[#This Row],[TOTAL Bachelor''s Degree]]="",Table2[[#This Row],[TOTAL Bachelor''s Degree]]=0 ),"",Table2[[#This Row],[Bachelor''s Degree nonHDF]]/Table2[[#This Row],[TOTAL Bachelor''s Degree]]) ->  | DY3: 0 | DZ3: =IF(OR(Table2[[#This Row],[TOTAL Bachelor''s Degree - Academic Disadvantage]]="",Table2[[#This Row],[TOTAL Bachelor''s Degree - Academic Disadvantage]]=0 ),"",Table2[[#This Row],[Bachelor''s Degree - nonHDF Academic Disadvantage]]/Table2[[#This Row],[TOTAL Bachelor''s Degree - Academic Disadvantage]]) -> 0 | EA3: 0 | EB3: =IF(OR(Table2[[#This Row],[TOTAL Bachelor''s Degree - Economic Disadvantage]]="",Table2[[#This Row],[TOTAL Bachelor''s Degree - Economic Disadvantage]]=0 ),"",Table2[[#This Row],[Bachelor''s Degree - nonHDF Economic Disadvantage]]/Table2[[#This Row],[TOTAL Bachelor''s Degree - Economic Disadvantage]]) ->  | EC3: 0 | ED3: =IF(OR(Table2[[#This Row],[TOTAL Bachelor''s Degree - Adult Learner]]="",Table2[[#This Row],[TOTAL Bachelor''s Degree - Adult Learner]]=0 ),"",Table2[[#This Row],[Bachelor''s Degree - nonHDF Adult Learner]]/Table2[[#This Row],[TOTAL Bachelor''s Degree - Adult Learner]]) ->  | EE3: 0 | EF3: =IF(OR(Table2[[#This Row],[TOTAL Bachelor''s Degree]]="",Table2[[#This Row],[TOTAL Bachelor''s Degree]]=0 ),"",Table2[[#This Row],[Bachelor''s Degree: HDF]]/Table2[[#This Row],[TOTAL Bachelor''s Degree]]) ->  | EG3: 0 | EH3: =IF(OR(Table2[[#This Row],[TOTAL Bachelor''s Degree - Academic Disadvantage]]="",Table2[[#This Row],[TOTAL Bachelor''s Degree - Academic Disadvantage]]=0 ),"",Table2[[#This Row],[Bachelor''s Degree: HDF - Academic Disadvantage]]/Table2[[#This Row],[TOTAL Bachelor''s Degree - Academic Disadvantage]]) -> 0 | EI3: 0 | EJ3: =IF(OR(Table2[[#This Row],[TOTAL Bachelor''s Degree - Economic Disadvantage]]="",Table2[[#This Row],[TOTAL Bachelor''s Degree - Economic Disadvantage]]=0 ),"",Table2[[#This Row],[Bachelor''s Degree: HDF - Economic Disadvantage]]/Table2[[#This Row],[TOTAL Bachelor''s Degree - Economic Disadvantage]]) ->  | EK3: 0 | EL3: =IF(OR(Table2[[#This Row],[TOTAL Bachelor''s Degree - Adult Learner]]="",Table2[[#This Row],[TOTAL Bachelor''s Degree - Adult Learner]]=0 ),"",Table2[[#This Row],[Bachelor''s Degree: HDF - Adult Learner]]/Table2[[#This Row],[TOTAL Bachelor''s Degree - Adult Learner]]) ->  | EM3: 0 | EN3: =IF(OR(Table2[[#This Row],[TOTAL Bachelor''s Degree]]="",Table2[[#This Row],[TOTAL Bachelor''s Degree]]=0 ),"",Table2[[#This Row],[TOTAL Bachelor''s Degree: CoV Premium]]/Table2[[#This Row],[TOTAL Bachelor''s Degree]]) -> 
A4: 003540 | B4: Amarillo College | C4: 2018 | D4: 766 | E4: 836 | F4: 375 | G4: =IF(OR(Table2[[#This Row],[GAI Transfer with 15 SCH Total]]="",Table2[[#This Row],[GAI Transfer with 15 SCH Total]]=0 ),"",Table2[[#This Row],[GAI Transfer with 15 SCH - Academic Disadvantage]]/Table2[[#This Row],[GAI Transfer with 15 SCH Total]]) -> 0.4485645933 | H4: 440 | I4: =IF(OR(Table2[[#This Row],[GAI Transfer with 15 SCH Total]]="",Table2[[#This Row],[GAI Transfer with 15 SCH Total]]=0 ),"",Table2[[#This Row],[GAI Transfer with 15 SCH - Economic Disadvantage]]/Table2[[#This Row],[GAI Transfer with 15 SCH Total]]) -> 0.5263157895 | J4: 210 | K4: =IF(OR(Table2[[#This Row],[GAI Transfer with 15 SCH Total]]="",Table2[[#This Row],[GAI Transfer with 15 SCH Total]]=0 ),"",Table2[[#This Row],[GAI Transfer with 15 SCH - Adult Learner]]/Table2[[#This Row],[GAI Transfer with 15 SCH Total]]) -> 0.2511961722 | N4: =IF(OR(Table2[[#This Row],[GAI Co-enrollment with 15 SCH Total]]="", Table2[[#This Row],[GAI Co-enrollment with 15 SCH Total]]=0),"",Table2[[#This Row],[GAI Co-enrollment with 15 SCH -Academic Disadvantage]]/Table2[[#This Row],[GAI Co-enrollment with 15 SCH Total]]) ->  | P4: =IF(OR(Table2[[#This Row],[GAI Co-enrollment with 15 SCH Total]]="", Table2[[#This Row],[GAI Co-enrollment with 15 SCH Total]]=0),"",Table2[[#This Row],[GAI Co-enrollment with 15 SCH - Economic Disadvantage]]/Table2[[#This Row],[GAI Co-enrollment with 15 SCH Total]]) ->  | R4: =IF(OR(Table2[[#This Row],[GAI Co-enrollment with 15 SCH Total]]="",Table2[[#This Row],[GAI Co-enrollment with 15 SCH Total]]=0 ),"",Table2[[#This Row],[GAI Co-enrollment with 15 SCH - Adult Learner]]/Table2[[#This Row],[GAI Co-enrollment with 15 SCH Total]]) ->  | V4: 9 | W4: 0 | Z4: =IF(OR(Table2[[#This Row],[TOTAL OSA]]="",Table2[[#This Row],[TOTAL OSA]]=0 ),"",Table2[[#This Row],[TOTAL OSA - Academic Disadvantage]]/Table2[[#This Row],[TOTAL OSA]]) ->  | AB4: =IF(OR(Table2[[#This Row],[TOTAL OSA]]="",Table2[[#This Row],[TOTAL OSA]]=0 ),"",Table2[[#This Row],[TOTAL OSA - Economic Disadvantage]]/Table2[[#This Row],[TOTAL OSA]]) ->  | AD4: =IF(OR(Table2[[#This Row],[TOTAL OSA]]="",Table2[[#This Row],[TOTAL OSA]]=0 ),"",Table2[[#This Row],[TOTAL OSA - Adult Learner]]/Table2[[#This Row],[TOTAL OSA]]) ->  | AF4: =IF(OR(Table2[[#This Row],[TOTAL OSA]]="",Table2[[#This Row],[TOTAL OSA]]=0 ),"",Table2[[#This Row],[OSA nonHDF]]/Table2[[#This Row],[TOTAL OSA]]) ->  | AH4: =IF(OR(Table2[[#This Row],[TOTAL OSA - Academic Disadvantage]]="",Table2[[#This Row],[TOTAL OSA - Academic Disadvantage]]=0 ),"",Table2[[#This Row],[OSA - nonHDF Academic Disadvantage]]/Table2[[#This Row],[TOTAL OSA - Academic Disadvantage]]) ->  | AJ4: =IF(OR(Table2[[#This Row],[TOTAL OSA - Economic Disadvantage]]="",Table2[[#This Row],[TOTAL OSA - Economic Disadvantage]]=0 ),"",Table2[[#This Row],[OSA - nonHDF Economic Disadvantage]]/Table2[[#This Row],[TOTAL OSA - Economic Disadvantage]]) ->  | AL4: =IF(OR(Table2[[#This Row],[TOTAL OSA - Adult Learner]]="",Table2[[#This Row],[TOTAL OSA - Adult Learner]]=0 ),"",Table2[[#This Row],[OSA - nonHDF Adult Learner]]/Table2[[#This Row],[TOTAL OSA - Adult Learner]]) ->  | AN4: =IF(OR(Table2[[#This Row],[TOTAL OSA]]="",Table2[[#This Row],[TOTAL OSA]]=0 ),"",Table2[[#This Row],[OSA: HDF]]/Table2[[#This Row],[TOTAL OSA]]) ->  | AP4: =IF(OR(Table2[[#This Row],[TOTAL OSA - Academic Disadvantage]]="",Table2[[#This Row],[TOTAL OSA - Academic Disadvantage]]=0 ),"",Table2[[#This Row],[OSA: HDF Academic Disadvantage]]/Table2[[#This Row],[TOTAL OSA - Academic Disadvantage]]) ->  | AR4: =IF(OR(Table2[[#This Row],[TOTAL OSA - Economic Disadvantage]]="",Table2[[#This Row],[TOTAL OSA - Economic Disadvantage]]=0 ),"",Table2[[#This Row],[OSA: HDF Economic Disadvantage]]/Table2[[#This Row],[TOTAL OSA - Economic Disadvantage]]) ->  | AT4: =IF(OR(Table2[[#This Row],[TOTAL OSA - Adult Learner]]="",Table2[[#This Row],[TOTAL OSA - Adult Learner]]=0 ),"",Table2[[#This Row],[OSA: HDF - Adult Learner]]/Table2[[#This Row],[TOTAL OSA - Adult Learner]]) ->  | AU4: 928 | AV4: 358 | AW4: =IF(OR(Table2[[#This Row],[TOTAL Certificate I or II]]="",Table2[[#This Row],[TOTAL Certificate I or II]]=0 ),"",Table2[[#This Row],[TOTAL Certificate I or II - Academic Disadvantage]]/Table2[[#This Row],[TOTAL Certificate I or II]]) -> 0.3857758621 | AX4: 486 | AY4: =IF(OR(Table2[[#This Row],[TOTAL Certificate I or II]]="",Table2[[#This Row],[TOTAL Certificate I or II]]=0 ),"",Table2[[#This Row],[TOTAL Certificate I or II - Economic Disadvantage]]/Table2[[#This Row],[TOTAL Certificate I or II]]) -> 0.5237068966 | AZ4: 489 | BA4: =IF(OR(Table2[[#This Row],[TOTAL Certificate I or II]]="",Table2[[#This Row],[TOTAL Certificate I or II]]=0 ),"",Table2[[#This Row],[TOTAL Certificate I or II - Adult Learner]]/Table2[[#This Row],[TOTAL Certificate I or II]]) -> 0.5269396552 | BB4: 305 | BC4: =IF(OR(Table2[[#This Row],[TOTAL Certificate I or II]]="",Table2[[#This Row],[TOTAL Certificate I or II]]=0 ),"",Table2[[#This Row],[Certificate I or II nonHDF]]/Table2[[#This Row],[TOTAL Certificate I or II]]) -> 0.3286637931 | BD4: 150 | BE4: =IF(OR(Table2[[#This Row],[OSA: HDF Academic Disadvantage]]="",Table2[[#This Row],[OSA: HDF Academic Disadvantage]]=0 ),"",Table2[[#This Row],[Certificate I or II - nonHDF Academic Disadvantage]]/Table2[[#This Row],[OSA: HDF Academic Disadvantage]]) ->  | BF4: 178 | BG4: =IF(OR(Table2[[#This Row],[TOTAL Certificate I or II - Economic Disadvantage]]="",Table2[[#This Row],[TOTAL Certificate I or II - Economic Disadvantage]]=0 ),"",Table2[[#This Row],[Certificate I or II - nonHDF Economic Disadvantage]]/Table2[[#This Row],[TOTAL Certificate I or II - Economic Disadvantage]]) -> 0.366255144 | BH4: 182 | BI4: =IF(OR(Table2[[#This Row],[TOTAL Certificate I or II - Adult Learner]]="",Table2[[#This Row],[TOTAL Certificate I or II - Adult Learner]]=0 ),"",Table2[[#This Row],[Certificate I or II - nonHDF Adult Learner]]/Table2[[#This Row],[TOTAL Certificate I or II - Adult Learner]]) -> 0.3721881391 | BJ4: 623 | BK4: =IF(OR(Table2[[#This Row],[TOTAL Certificate I or II]]="",Table2[[#This Row],[TOTAL Certificate I or II]]=0 ),"",Table2[[#This Row],[Certificate I or II: HDF]]/Table2[[#This Row],[TOTAL Certificate I or II]]) -> 0.6713362069 | BL4: 208 | BM4: =IF(OR(Table2[[#This Row],[TOTAL Certificate I or II - Academic Disadvantage]]="",Table2[[#This Row],[TOTAL Certificate I or II - Academic Disadvantage]]=0 ),"",Table2[[#This Row],[Certificate I or II: HDF Academic Disadvantage]]/Table2[[#This Row],[TOTAL Certificate I or II - Academic Disadvantage]]) -> 0.5810055866 | BN4: 308 | BO4: =IF(OR(Table2[[#This Row],[TOTAL Certificate I or II - Economic Disadvantage]]="",Table2[[#This Row],[TOTAL Certificate I or II - Economic Disadvantage]]=0 ),"",Table2[[#This Row],[Certificate I or II: HDF Economic Disadvantage]]/Table2[[#This Row],[TOTAL Certificate I or II - Economic Disadvantage]]) -> 0.633744856 | BP4: 307 | BQ4: =IF(OR(Table2[[#This Row],[TOTAL Certificate I or II - Adult Learner]]="",Table2[[#This Row],[TOTAL Certificate I or II - Adult Learner]]=0 ),"",Table2[[#This Row],[Certificate I or II: HDF Adult Learner]]/Table2[[#This Row],[TOTAL Certificate I or II - Adult Learner]]) -> 0.6278118609 | BR4: 25 | BS4: =IF(OR(Table2[[#This Row],[TOTAL Certificate I or II]]="",Table2[[#This Row],[TOTAL Certificate I or II]]=0 ),"",Table2[[#This Row],[TOTAL Cert I or II: COV Premium]]/Table2[[#This Row],[TOTAL Certificate I or II]]) -> 0.02693965517 | BT4: 6 | BU4: 0 | BV4: =IF(OR(Table2[[#This Row],[TOTAL Advanced Technical Certificate]]="",Table2[[#This Row],[TOTAL Advanced Technical Certificate]]=0 ),"",Table2[[#This Row],[TOTAL Advanced Technical Certificate - Academic Disadvantage]]/Table2[[#This Row],[TOTAL Advanced Technical Certificate]]) -> 0 | BW4: 2 | BX4: =IF(OR(Table2[[#This Row],[TOTAL Advanced Technical Certificate]]="",Table2[[#This Row],[TOTAL Advanced Technical Certificate]]=0 ),"",Table2[[#This Row],[TOTAL Advanced Technical Certificate - Economic Disadvantage]]/Table2[[#This Row],[TOTAL Advanced Technical Certificate]]) -> 0.3333333333 | BY4: 5 | BZ4: =IF(OR(Table2[[#This Row],[TOTAL Advanced Technical Certificate]]="",Table2[[#This Row],[TOTAL Advanced Technical Certificate]]=0 ),"",Table2[[#This Row],[TOTAL Advanced Technical Certificate - Adult Learner]]/Table2[[#This Row],[TOTAL Advanced Technical Certificate]]) -> 0.8333333333 | CA4: 6 | CB4: =IF(OR(Table2[[#This Row],[TOTAL Advanced Technical Certificate]]="",Table2[[#This Row],[TOTAL Advanced Technical Certificate]]=0 ),"",Table2[[#This Row],[Advanced Technical Certificate nonHDF]]/Table2[[#This Row],[TOTAL Advanced Technical Certificate]]) -> 1 | CC4: 0 | CD4: =IF(OR(Table2[[#This Row],[TOTAL Advanced Technical Certificate - Academic Disadvantage]]="",Table2[[#This Row],[TOTAL Advanced Technical Certificate - Academic Disadvantage]]=0 ),"",Table2[[#This Row],[Advanced Technical Certificate nonHDF - Academic Disadvantage]]/Table2[[#This Row],[TOTAL Advanced Technical Certificate - Academic Disadvantage]]) ->  | CE4: 2 | CF4: =IF(OR(Table2[[#This Row],[TOTAL Advanced Technical Certificate - Economic Disadvantage]]="",Table2[[#This Row],[TOTAL Advanced Technical Certificate - Economic Disadvantage]]=0 ),"",Table2[[#This Row],[Advanced Technical Certificate - nonHDF Economic Disadvantage]]/Table2[[#This Row],[TOTAL Advanced Technical Certificate - Economic Disadvantage]]) -> 1 | CG4: 5 | CH4: =IF(OR(Table2[[#This Row],[TOTAL Advanced Technical Certificate - Adult Learner]]="",Table2[[#This Row],[TOTAL Advanced Technical Certificate - Adult Learner]]=0 ),"",Table2[[#This Row],[Advanced Technical Certificate - nonHDF Adult Learner]]/Table2[[#This Row],[TOTAL Advanced Technical Certificate - Adult Learner]]) -> 1 | CI4: 0 | CJ4: =IF(OR(Table2[[#This Row],[TOTAL Advanced Technical Certificate]]="",Table2[[#This Row],[TOTAL Advanced Technical Certificate]]=0 ),"",Table2[[#This Row],[Advanced Technical Certificate: HDF]]/Table2[[#This Row],[TOTAL Advanced Technical Certificate]]) -> 0 | CK4: 0 | CL4: =IF(OR(Table2[[#This Row],[TOTAL Advanced Technical Certificate - Academic Disadvantage]]="",Table2[[#This Row],[TOTAL Advanced Technical Certificate - Academic Disadvantage]]=0 ),"",Table2[[#This Row],[Advanced Technical Certificate: HDF Academic Disadvantage]]/Table2[[#This Row],[TOTAL Advanced Technical Certificate - Academic Disadvantage]]) ->  | CM4: 0 | CN4: =IF(OR(Table2[[#This Row],[TOTAL Advanced Technical Certificate - Economic Disadvantage]]="",Table2[[#This Row],[TOTAL Advanced Technical Certificate - Economic Disadvantage]]=0 ),"",Table2[[#This Row],[Advanced Technical Certificate: HDF Economic Disadvantage]]/Table2[[#This Row],[TOTAL Advanced Technical Certificate - Economic Disadvantage]]) -> 0 | CO4: 0 | CP4: =IF(OR(Table2[[#This Row],[TOTAL Advanced Technical Certificate - Adult Learner]]="",Table2[[#This Row],[TOTAL Advanced Technical Certificate - Adult Learner]]=0 ),"",Table2[[#This Row],[Advanced Technical Certificate: HDF Adult Learner]]/Table2[[#This Row],[TOTAL Advanced Technical Certificate - Adult Learner]]) -> 0 | CQ4: 1200 | CR4: 417 | CS4: =IF(OR(Table2[[#This Row],[TOTAL Associate Degree]]="",Table2[[#This Row],[TOTAL Associate Degree]]=0 ),"",Table2[[#This Row],[TOTAL Associate Degree - Academic Disadvantage]]/Table2[[#This Row],[TOTAL Associate Degree]]) -> 0.3475 | CT4: 709 | CU4: =IF(OR(Table2[[#This Row],[TOTAL Associate Degree]]="",Table2[[#This Row],[TOTAL Associate Degree]]=0 ),"",Table2[[#This Row],[TOTAL Associate Degree - Economic Disadvantage]]/Table2[[#This Row],[TOTAL Associate Degree]]) -> 0.5908333333 | CV4: 508 | CW4: =IF(OR(Table2[[#This Row],[TOTAL Associate Degree]]="",Table2[[#This Row],[TOTAL Associate Degree]]=0 ),"",Table2[[#This Row],[TOTAL Associate Degree - Adult Learner]]/Table2[[#This Row],[TOTAL Associate Degree]]) -> 0.4233333333 | CX4: 794 | CY4: =IF(OR(Table2[[#This Row],[TOTAL Associate Degree]]="",Table2[[#This Row],[TOTAL Associate Degree]]=0 ),"",Table2[[#This Row],[Associate Degree nonHDF]]/Table2[[#This Row],[TOTAL Associate Degree]]) -> 0.6616666667 | CZ4: 325 | DA4: =IF(OR(Table2[[#This Row],[TOTAL Associate Degree - Academic Disadvantage]]="",Table2[[#This Row],[TOTAL Associate Degree - Academic Disadvantage]]=0 ),"",Table2[[#This Row],[Associate Degree - nonHDF Academic Disadvantage]]/Table2[[#This Row],[TOTAL Associate Degree - Academic Disadvantage]]) -> 0.7793764988 | DB4: 475 | DC4: =IF(OR(Table2[[#This Row],[TOTAL Associate Degree - Economic Disadvantage]]="",Table2[[#This Row],[TOTAL Associate Degree - Economic Disadvantage]]=0 ),"",Table2[[#This Row],[Associate Degree - nonHDF Economic Disadvantage]]/Table2[[#This Row],[TOTAL Associate Degree - Economic Disadvantage]]) -> 0.6699576869 | DD4: 314 | DE4: =IF(OR(Table2[[#This Row],[TOTAL Associate Degree - Adult Learner]]="",Table2[[#This Row],[TOTAL Associate Degree - Adult Learner]]=0 ),"",Table2[[#This Row],[Associate Degree - nonHDF Adult Learner]]/Table2[[#This Row],[TOTAL Associate Degree - Adult Learner]]) -> 0.6181102362 | DF4: 406 | DG4: =IF(OR(Table2[[#This Row],[TOTAL Associate Degree]]="",Table2[[#This Row],[TOTAL Associate Degree]]=0 ),"",Table2[[#This Row],[Associate Degree: HDF]]/Table2[[#This Row],[TOTAL Associate Degree]]) -> 0.3383333333 | DH4: 92 | DI4: =IF(OR(Table2[[#This Row],[TOTAL Associate Degree - Academic Disadvantage]]="",Table2[[#This Row],[TOTAL Associate Degree - Academic Disadvantage]]=0 ),"",Table2[[#This Row],[Associate Degree: HDF Academic Disadvantage]]/Table2[[#This Row],[TOTAL Associate Degree - Academic Disadvantage]]) -> 0.2206235012 | DJ4: 234 | DK4: =IF(OR(Table2[[#This Row],[TOTAL Associate Degree - Economic Disadvantage]]="",Table2[[#This Row],[TOTAL Associate Degree - Economic Disadvantage]]=0 ),"",Table2[[#This Row],[Associate Degree: HDF Economic Disadvantage]]/Table2[[#This Row],[TOTAL Associate Degree - Economic Disadvantage]]) -> 0.3300423131 | DL4: 194 | DM4: =IF(OR(Table2[[#This Row],[TOTAL Associate Degree - Adult Learner]]="",Table2[[#This Row],[TOTAL Associate Degree - Adult Learner]]=0 ),"",Table2[[#This Row],[Associate Degree: HDF Adult Learner]]/Table2[[#This Row],[TOTAL Associate Degree - Adult Learner]]) -> 0.3818897638 | DN4: 71 | DO4: =IF(OR(Table2[[#This Row],[TOTAL Associate Degree]]="",Table2[[#This Row],[TOTAL Associate Degree]]=0 ),"",Table2[[#This Row],[TOTAL Associate: CoV Premium]]/Table2[[#This Row],[TOTAL Associate Degree]]) -> 0.05916666667 | DP4: 0 | DR4: =IF(OR(Table2[[#This Row],[TOTAL Bachelor''s Degree]]="",Table2[[#This Row],[TOTAL Bachelor''s Degree]]=0 ),"",Table2[[#This Row],[TOTAL Bachelor''s Degree - Academic Disadvantage]]/Table2[[#This Row],[TOTAL Bachelor''s Degree]]) ->  | DS4: 0 | DT4: =IF(OR(Table2[[#This Row],[TOTAL Bachelor''s Degree]]="",Table2[[#This Row],[TOTAL Bachelor''s Degree]]=0 ),"",Table2[[#This Row],[TOTAL Bachelor''s Degree - Economic Disadvantage]]/Table2[[#This Row],[TOTAL Bachelor''s Degree]]) ->  | DU4: 0 | DV4: =IF(OR(Table2[[#This Row],[TOTAL Bachelor''s Degree]]="",Table2[[#This Row],[TOTAL Bachelor''s Degree]]=0 ),"",Table2[[#This Row],[TOTAL Bachelor''s Degree - Adult Learner]]/Table2[[#This Row],[TOTAL Bachelor''s Degree]]) ->  | DW4: 0 | DX4: =IF(OR(Table2[[#This Row],[TOTAL Bachelor''s Degree]]="",Table2[[#This Row],[TOTAL Bachelor''s Degree]]=0 ),"",Table2[[#This Row],[Bachelor''s Degree nonHDF]]/Table2[[#This Row],[TOTAL Bachelor''s Degree]]) ->  | DY4: 0 | DZ4: =IF(OR(Table2[[#This Row],[TOTAL Bachelor''s Degree - Academic Disadvantage]]="",Table2[[#This Row],[TOTAL Bachelor''s Degree - Academic Disadvantage]]=0 ),"",Table2[[#This Row],[Bachelor''s Degree - nonHDF Academic Disadvantage]]/Table2[[#This Row],[TOTAL Bachelor''s Degree - Academic Disadvantage]]) ->  | EA4: 0 | EB4: =IF(OR(Table2[[#This Row],[TOTAL Bachelor''s Degree - Economic Disadvantage]]="",Table2[[#This Row],[TOTAL Bachelor''s Degree - Economic Disadvantage]]=0 ),"",Table2[[#This Row],[Bachelor''s Degree - nonHDF Economic Disadvantage]]/Table2[[#This Row],[TOTAL Bachelor''s Degree - Economic Disadvantage]]) ->  | EC4: 0 | ED4: =IF(OR(Table2[[#This Row],[TOTAL Bachelor''s Degree - Adult Learner]]="",Table2[[#This Row],[TOTAL Bachelor''s Degree - Adult Learner]]=0 ),"",Table2[[#This Row],[Bachelor''s Degree - nonHDF Adult Learner]]/Table2[[#This Row],[TOTAL Bachelor''s Degree - Adult Learner]]) ->  | EE4: 0 | EF4: =IF(OR(Table2[[#This Row],[TOTAL Bachelor''s Degree]]="",Table2[[#This Row],[TOTAL Bachelor''s Degree]]=0 ),"",Table2[[#This Row],[Bachelor''s Degree: HDF]]/Table2[[#This Row],[TOTAL Bachelor''s Degree]]) ->  | EG4: 0 | EH4: =IF(OR(Table2[[#This Row],[TOTAL Bachelor''s Degree - Academic Disadvantage]]="",Table2[[#This Row],[TOTAL Bachelor''s Degree - Academic Disadvantage]]=0 ),"",Table2[[#This Row],[Bachelor''s Degree: HDF - Academic Disadvantage]]/Table2[[#This Row],[TOTAL Bachelor''s Degree - Academic Disadvantage]]) ->  | EI4: 0 | EJ4: =IF(OR(Table2[[#This Row],[TOTAL Bachelor''s Degree - Economic Disadvantage]]="",Table2[[#This Row],[TOTAL Bachelor''s Degree - Economic Disadvantage]]=0 ),"",Table2[[#This Row],[Bachelor''s Degree: HDF - Economic Disadvantage]]/Table2[[#This Row],[TOTAL Bachelor''s Degree - Economic Disadvantage]]) ->  | EK4: 0 | EL4: =IF(OR(Table2[[#This Row],[TOTAL Bachelor''s Degree - Adult Learner]]="",Table2[[#This Row],[TOTAL Bachelor''s Degree - Adult Learner]]=0 ),"",Table2[[#This Row],[Bachelor''s Degree: HDF - Adult Learner]]/Table2[[#This Row],[TOTAL Bachelor''s Degree - Adult Learner]]) ->  | EM4: 0 | EN4: =IF(OR(Table2[[#This Row],[TOTAL Bachelor''s Degree]]="",Table2[[#This Row],[TOTAL Bachelor''s Degree]]=0 ),"",Table2[[#This Row],[TOTAL Bachelor''s Degree: CoV Premium]]/Table2[[#This Row],[TOTAL Bachelor''s Degree]]) -> 
A5: 006661 | B5: Angelina College | C5: 2018 | D5: 466 | E5: 401 | F5: 188 | G5: =IF(OR(Table2[[#This Row],[GAI Transfer with 15 SCH Total]]="",Table2[[#This Row],[GAI Transfer with 15 SCH Total]]=0 ),"",Table2[[#This Row],[GAI Transfer with 15 SCH - Academic Disadvantage]]/Table2[[#This Row],[GAI Transfer with 15 SCH Total]]) -> 0.4688279302 | H5: 188 | I5: =IF(OR(Table2[[#This Row],[GAI Transfer with 15 SCH Total]]="",Table2[[#This Row],[GAI Transfer with 15 SCH Total]]=0 ),"",Table2[[#This Row],[GAI Transfer with 15 SCH - Economic Disadvantage]]/Table2[[#This Row],[GAI Transfer with 15 SCH Total]]) -> 0.4688279302 | J5: 57 | K5: =IF(OR(Table2[[#This Row],[GAI Transfer with 15 SCH Total]]="",Table2[[#This Row],[GAI Transfer with 15 SCH Total]]=0 ),"",Table2[[#This Row],[GAI Transfer with 15 SCH - Adult Learner]]/Table2[[#This Row],[GAI Transfer with 15 SCH Total]]) -> 0.1421446384 | N5: =IF(OR(Table2[[#This Row],[GAI Co-enrollment with 15 SCH Total]]="", Table2[[#This Row],[GAI Co-enrollment with 15 SCH Total]]=0),"",Table2[[#This Row],[GAI Co-enrollment with 15 SCH -Academic Disadvantage]]/Table2[[#This Row],[GAI Co-enrollment with 15 SCH Total]]) ->  | P5: =IF(OR(Table2[[#This Row],[GAI Co-enrollment with 15 SCH Total]]="", Table2[[#This Row],[GAI Co-enrollment with 15 SCH Total]]=0),"",Table2[[#This Row],[GAI Co-enrollment with 15 SCH - Economic Disadvantage]]/Table2[[#This Row],[GAI Co-enrollment with 15 SCH Total]]) ->  | R5: =IF(OR(Table2[[#This Row],[GAI Co-enrollment with 15 SCH Total]]="",Table2[[#This Row],[GAI Co-enrollment with 15 SCH Total]]=0 ),"",Table2[[#This Row],[GAI Co-enrollment with 15 SCH - Adult Learner]]/Table2[[#This Row],[GAI Co-enrollment with 15 SCH Total]]) ->  | V5: 70 | W5: 146 | Z5: =IF(OR(Table2[[#This Row],[TOTAL OSA]]="",Table2[[#This Row],[TOTAL OSA]]=0 ),"",Table2[[#This Row],[TOTAL OSA - Academic Disadvantage]]/Table2[[#This Row],[TOTAL OSA]]) ->  | AB5: =IF(OR(Table2[[#This Row],[TOTAL OSA]]="",Table2[[#This Row],[TOTAL OSA]]=0 ),"",Table2[[#This Row],[TOTAL OSA - Economic Disadvantage]]/Table2[[#This Row],[TOTAL OSA]]) ->  | AD5: =IF(OR(Table2[[#This Row],[TOTAL OSA]]="",Table2[[#This Row],[TOTAL OSA]]=0 ),"",Table2[[#This Row],[TOTAL OSA - Adult Learner]]/Table2[[#This Row],[TOTAL OSA]]) ->  | AF5: =IF(OR(Table2[[#This Row],[TOTAL OSA]]="",Table2[[#This Row],[TOTAL OSA]]=0 ),"",Table2[[#This Row],[OSA nonHDF]]/Table2[[#This Row],[TOTAL OSA]]) ->  | AH5: =IF(OR(Table2[[#This Row],[TOTAL OSA - Academic Disadvantage]]="",Table2[[#This Row],[TOTAL OSA - Academic Disadvantage]]=0 ),"",Table2[[#This Row],[OSA - nonHDF Academic Disadvantage]]/Table2[[#This Row],[TOTAL OSA - Academic Disadvantage]]) ->  | AJ5: =IF(OR(Table2[[#This Row],[TOTAL OSA - Economic Disadvantage]]="",Table2[[#This Row],[TOTAL OSA - Economic Disadvantage]]=0 ),"",Table2[[#This Row],[OSA - nonHDF Economic Disadvantage]]/Table2[[#This Row],[TOTAL OSA - Economic Disadvantage]]) ->  | AL5: =IF(OR(Table2[[#This Row],[TOTAL OSA - Adult Learner]]="",Table2[[#This Row],[TOTAL OSA - Adult Learner]]=0 ),"",Table2[[#This Row],[OSA - nonHDF Adult Learner]]/Table2[[#This Row],[TOTAL OSA - Adult Learner]]) ->  | AN5: =IF(OR(Table2[[#This Row],[TOTAL OSA]]="",Table2[[#This Row],[TOTAL OSA]]=0 ),"",Table2[[#This Row],[OSA: HDF]]/Table2[[#This Row],[TOTAL OSA]]) ->  | AP5: =IF(OR(Table2[[#This Row],[TOTAL OSA - Academic Disadvantage]]="",Table2[[#This Row],[TOTAL OSA - Academic Disadvantage]]=0 ),"",Table2[[#This Row],[OSA: HDF Academic Disadvantage]]/Table2[[#This Row],[TOTAL OSA - Academic Disadvantage]]) ->  | AR5: =IF(OR(Table2[[#This Row],[TOTAL OSA - Economic Disadvantage]]="",Table2[[#This Row],[TOTAL OSA - Economic Disadvantage]]=0 ),"",Table2[[#This Row],[OSA: HDF Economic Disadvantage]]/Table2[[#This Row],[TOTAL OSA - Economic Disadvantage]]) ->  | AT5: =IF(OR(Table2[[#This Row],[TOTAL OSA - Adult Learner]]="",Table2[[#This Row],[TOTAL OSA - Adult Learner]]=0 ),"",Table2[[#This Row],[OSA: HDF - Adult Learner]]/Table2[[#This Row],[TOTAL OSA - Adult Learner]]) ->  | AU5: 575 | AV5: 170 | AW5: =IF(OR(Table2[[#This Row],[TOTAL Certificate I or II]]="",Table2[[#This Row],[TOTAL Certificate I or II]]=0 ),"",Table2[[#This Row],[TOTAL Certificate I or II - Academic Disadvantage]]/Table2[[#This Row],[TOTAL Certificate I or II]]) -> 0.2956521739 | AX5: 326 | AY5: =IF(OR(Table2[[#This Row],[TOTAL Certificate I or II]]="",Table2[[#This Row],[TOTAL Certificate I or II]]=0 ),"",Table2[[#This Row],[TOTAL Certificate I or II - Economic Disadvantage]]/Table2[[#This Row],[TOTAL Certificate I or II]]) -> 0.5669565217 | AZ5: 309 | BA5: =IF(OR(Table2[[#This Row],[TOTAL Certificate I or II]]="",Table2[[#This Row],[TOTAL Certificate I or II]]=0 ),"",Table2[[#This Row],[TOTAL Certificate I or II - Adult Learner]]/Table2[[#This Row],[TOTAL Certificate I or II]]) -> 0.5373913043 | BB5: 128 | BC5: =IF(OR(Table2[[#This Row],[TOTAL Certificate I or II]]="",Table2[[#This Row],[TOTAL Certificate I or II]]=0 ),"",Table2[[#This Row],[Certificate I or II nonHDF]]/Table2[[#This Row],[TOTAL Certificate I or II]]) -> 0.2226086957 | BD5: 39 | BE5: =IF(OR(Table2[[#This Row],[OSA: HDF Academic Disadvantage]]="",Table2[[#This Row],[OSA: HDF Academic Disadvantage]]=0 ),"",Table2[[#This Row],[Certificate I or II - nonHDF Academic Disadvantage]]/Table2[[#This Row],[OSA: HDF Academic Disadvantage]]) ->  | BF5: 73 | BG5: =IF(OR(Table2[[#This Row],[TOTAL Certificate I or II - Economic Disadvantage]]="",Table2[[#This Row],[TOTAL Certificate I or II - Economic Disadvantage]]=0 ),"",Table2[[#This Row],[Certificate I or II - nonHDF Economic Disadvantage]]/Table2[[#This Row],[TOTAL Certificate I or II - Economic Disadvantage]]) -> 0.2239263804 | BH5: 66 | BI5: =IF(OR(Table2[[#This Row],[TOTAL Certificate I or II - Adult Learner]]="",Table2[[#This Row],[TOTAL Certificate I or II - Adult Learner]]=0 ),"",Table2[[#This Row],[Certificate I or II - nonHDF Adult Learner]]/Table2[[#This Row],[TOTAL Certificate I or II - Adult Learner]]) -> 0.213592233 | BJ5: 447 | BK5: =IF(OR(Table2[[#This Row],[TOTAL Certificate I or II]]="",Table2[[#This Row],[TOTAL Certificate I or II]]=0 ),"",Table2[[#This Row],[Certificate I or II: HDF]]/Table2[[#This Row],[TOTAL Certificate I or II]]) -> 0.7773913043 | BL5: 131 | BM5: =IF(OR(Table2[[#This Row],[TOTAL Certificate I or II - Academic Disadvantage]]="",Table2[[#This Row],[TOTAL Certificate I or II - Academic Disadvantage]]=0 ),"",Table2[[#This Row],[Certificate I or II: HDF Academic Disadvantage]]/Table2[[#This Row],[TOTAL Certificate I or II - Academic Disadvantage]]) -> 0.7705882353 | BN5: 253 | BO5: =IF(OR(Table2[[#This Row],[TOTAL Certificate I or II - Economic Disadvantage]]="",Table2[[#This Row],[TOTAL Certificate I or II - Economic Disadvantage]]=0 ),"",Table2[[#This Row],[Certificate I or II: HDF Economic Disadvantage]]/Table2[[#This Row],[TOTAL Certificate I or II - Economic Disadvantage]]) -> 0.7760736196 | BP5: 243 | BQ5: =IF(OR(Table2[[#This Row],[TOTAL Certificate I or II - Adult Learner]]="",Table2[[#This Row],[TOTAL Certificate I or II - Adult Learner]]=0 ),"",Table2[[#This Row],[Certificate I or II: HDF Adult Learner]]/Table2[[#This Row],[TOTAL Certificate I or II - Adult Learner]]) -> 0.786407767 | BR5: 16 | BS5: =IF(OR(Table2[[#This Row],[TOTAL Certificate I or II]]="",Table2[[#This Row],[TOTAL Certificate I or II]]=0 ),"",Table2[[#This Row],[TOTAL Cert I or II: COV Premium]]/Table2[[#This Row],[TOTAL Certificate I or II]]) -> 0.02782608696 | BT5: 0 | BU5: 0 | BV5: =IF(OR(Table2[[#This Row],[TOTAL Advanced Technical Certificate]]="",Table2[[#This Row],[TOTAL Advanced Technical Certificate]]=0 ),"",Table2[[#This Row],[TOTAL Advanced Technical Certificate - Academic Disadvantage]]/Table2[[#This Row],[TOTAL Advanced Technical Certificate]]) ->  | BW5: 0 | BX5: =IF(OR(Table2[[#This Row],[TOTAL Advanced Technical Certificate]]="",Table2[[#This Row],[TOTAL Advanced Technical Certificate]]=0 ),"",Table2[[#This Row],[TOTAL Advanced Technical Certificate - Economic Disadvantage]]/Table2[[#This Row],[TOTAL Advanced Technical Certificate]]) ->  | BY5: 0 | BZ5: =IF(OR(Table2[[#This Row],[TOTAL Advanced Technical Certificate]]="",Table2[[#This Row],[TOTAL Advanced Technical Certificate]]=0 ),"",Table2[[#This Row],[TOTAL Advanced Technical Certificate - Adult Learner]]/Table2[[#This Row],[TOTAL Advanced Technical Certificate]]) ->  | CA5: 0 | CB5: =IF(OR(Table2[[#This Row],[TOTAL Advanced Technical Certificate]]="",Table2[[#This Row],[TOTAL Advanced Technical Certificate]]=0 ),"",Table2[[#This Row],[Advanced Technical Certificate nonHDF]]/Table2[[#This Row],[TOTAL Advanced Technical Certificate]]) ->  | CC5: 0 | CD5: =IF(OR(Table2[[#This Row],[TOTAL Advanced Technical Certificate - Academic Disadvantage]]="",Table2[[#This Row],[TOTAL Advanced Technical Certificate - Academic Disadvantage]]=0 ),"",Table2[[#This Row],[Advanced Technical Certificate nonHDF - Academic Disadvantage]]/Table2[[#This Row],[TOTAL Advanced Technical Certificate - Academic Disadvantage]]) ->  | CE5: 0 | CF5: =IF(OR(Table2[[#This Row],[TOTAL Advanced Technical Certificate - Economic Disadvantage]]="",Table2[[#This Row],[TOTAL Advanced Technical Certificate - Economic Disadvantage]]=0 ),"",Table2[[#This Row],[Advanced Technical Certificate - nonHDF Economic Disadvantage]]/Table2[[#This Row],[TOTAL Advanced Technical Certificate - Economic Disadvantage]]) ->  | CG5: 0 | CH5: =IF(OR(Table2[[#This Row],[TOTAL Advanced Technical Certificate - Adult Learner]]="",Table2[[#This Row],[TOTAL Advanced Technical Certificate - Adult Learner]]=0 ),"",Table2[[#This Row],[Advanced Technical Certificate - nonHDF Adult Learner]]/Table2[[#This Row],[TOTAL Advanced Technical Certificate - Adult Learner]]) ->  | CI5: 0 | CJ5: =IF(OR(Table2[[#This Row],[TOTAL Advanced Technical Certificate]]="",Table2[[#This Row],[TOTAL Advanced Technical Certificate]]=0 ),"",Table2[[#This Row],[Advanced Technical Certificate: HDF]]/Table2[[#This Row],[TOTAL Advanced Technical Certificate]]) ->  | CK5: 0 | CL5: =IF(OR(Table2[[#This Row],[TOTAL Advanced Technical Certificate - Academic Disadvantage]]="",Table2[[#This Row],[TOTAL Advanced Technical Certificate - Academic Disadvantage]]=0 ),"",Table2[[#This Row],[Advanced Technical Certificate: HDF Academic Disadvantage]]/Table2[[#This Row],[TOTAL Advanced Technical Certificate - Academic Disadvantage]]) ->  | CM5: 0 | CN5: =IF(OR(Table2[[#This Row],[TOTAL Advanced Technical Certificate - Economic Disadvantage]]="",Table2[[#This Row],[TOTAL Advanced Technical Certificate - Economic Disadvantage]]=0 ),"",Table2[[#This Row],[Advanced Technical Certificate: HDF Economic Disadvantage]]/Table2[[#This Row],[TOTAL Advanced Technical Certificate - Economic Disadvantage]]) ->  | CO5: 0 | CP5: =IF(OR(Table2[[#This Row],[TOTAL Advanced Technical Certificate - Adult Learner]]="",Table2[[#This Row],[TOTAL Advanced Technical Certificate - Adult Learner]]=0 ),"",Table2[[#This Row],[Advanced Technical Certificate: HDF Adult Learner]]/Table2[[#This Row],[TOTAL Advanced Technical Certificate - Adult Learner]]) ->  | CQ5: 367 | CR5: 110 | CS5: =IF(OR(Table2[[#This Row],[TOTAL Associate Degree]]="",Table2[[#This Row],[TOTAL Associate Degree]]=0 ),"",Table2[[#This Row],[TOTAL Associate Degree - Academic Disadvantage]]/Table2[[#This Row],[TOTAL Associate Degree]]) -> 0.2997275204 | CT5: 211 | CU5: =IF(OR(Table2[[#This Row],[TOTAL Associate Degree]]="",Table2[[#This Row],[TOTAL Associate Degree]]=0 ),"",Table2[[#This Row],[TOTAL Associate Degree - Economic Disadvantage]]/Table2[[#This Row],[TOTAL Associate Degree]]) -> 0.5749318801 | CV5: 142 | CW5: =IF(OR(Table2[[#This Row],[TOTAL Associate Degree]]="",Table2[[#This Row],[TOTAL Associate Degree]]=0 ),"",Table2[[#This Row],[TOTAL Associate Degree - Adult Learner]]/Table2[[#This Row],[TOTAL Associate Degree]]) -> 0.3869209809 | CX5: 167 | CY5: =IF(OR(Table2[[#This Row],[TOTAL Associate Degree]]="",Table2[[#This Row],[TOTAL Associate Degree]]=0 ),"",Table2[[#This Row],[Associate Degree nonHDF]]/Table2[[#This Row],[TOTAL Associate Degree]]) -> 0.4550408719 | CZ5: 57 | DA5: =IF(OR(Table2[[#This Row],[TOTAL Associate Degree - Academic Disadvantage]]="",Table2[[#This Row],[TOTAL Associate Degree - Academic Disadvantage]]=0 ),"",Table2[[#This Row],[Associate Degree - nonHDF Academic Disadvantage]]/Table2[[#This Row],[TOTAL Associate Degree - Academic Disadvantage]]) -> 0.5181818182 | DB5: 99 | DC5: =IF(OR(Table2[[#This Row],[TOTAL Associate Degree - Economic Disadvantage]]="",Table2[[#This Row],[TOTAL Associate Degree - Economic Disadvantage]]=0 ),"",Table2[[#This Row],[Associate Degree - nonHDF Economic Disadvantage]]/Table2[[#This Row],[TOTAL Associate Degree - Economic Disadvantage]]) -> 0.4691943128 | DD5: 46 | DE5: =IF(OR(Table2[[#This Row],[TOTAL Associate Degree - Adult Learner]]="",Table2[[#This Row],[TOTAL Associate Degree - Adult Learner]]=0 ),"",Table2[[#This Row],[Associate Degree - nonHDF Adult Learner]]/Table2[[#This Row],[TOTAL Associate Degree - Adult Learner]]) -> 0.323943662 | DF5: 200 | DG5: =IF(OR(Table2[[#This Row],[TOTAL Associate Degree]]="",Table2[[#This Row],[TOTAL Associate Degree]]=0 ),"",Table2[[#This Row],[Associate Degree: HDF]]/Table2[[#This Row],[TOTAL Associate Degree]]) -> 0.5449591281 | DH5: 53 | DI5: =IF(OR(Table2[[#This Row],[TOTAL Associate Degree - Academic Disadvantage]]="",Table2[[#This Row],[TOTAL Associate Degree - Academic Disadvantage]]=0 ),"",Table2[[#This Row],[Associate Degree: HDF Academic Disadvantage]]/Table2[[#This Row],[TOTAL Associate Degree - Academic Disadvantage]]) -> 0.4818181818 | DJ5: 112 | DK5: =IF(OR(Table2[[#This Row],[TOTAL Associate Degree - Economic Disadvantage]]="",Table2[[#This Row],[TOTAL Associate Degree - Economic Disadvantage]]=0 ),"",Table2[[#This Row],[Associate Degree: HDF Economic Disadvantage]]/Table2[[#This Row],[TOTAL Associate Degree - Economic Disadvantage]]) -> 0.5308056872 | DL5: 96 | DM5: =IF(OR(Table2[[#This Row],[TOTAL Associate Degree - Adult Learner]]="",Table2[[#This Row],[TOTAL Associate Degree - Adult Learner]]=0 ),"",Table2[[#This Row],[Associate Degree: HDF Adult Learner]]/Table2[[#This Row],[TOTAL Associate Degree - Adult Learner]]) -> 0.676056338 | DN5: 15 | DO5: =IF(OR(Table2[[#This Row],[TOTAL Associate Degree]]="",Table2[[#This Row],[TOTAL Associate Degree]]=0 ),"",Table2[[#This Row],[TOTAL Associate: CoV Premium]]/Table2[[#This Row],[TOTAL Associate Degree]]) -> 0.0408719346 | DP5: 0 | DR5: =IF(OR(Table2[[#This Row],[TOTAL Bachelor''s Degree]]="",Table2[[#This Row],[TOTAL Bachelor''s Degree]]=0 ),"",Table2[[#This Row],[TOTAL Bachelor''s Degree - Academic Disadvantage]]/Table2[[#This Row],[TOTAL Bachelor''s Degree]]) ->  | DS5: 0 | DT5: =IF(OR(Table2[[#This Row],[TOTAL Bachelor''s Degree]]="",Table2[[#This Row],[TOTAL Bachelor''s Degree]]=0 ),"",Table2[[#This Row],[TOTAL Bachelor''s Degree - Economic Disadvantage]]/Table2[[#This Row],[TOTAL Bachelor''s Degree]]) ->  | DU5: 0 | DV5: =IF(OR(Table2[[#This Row],[TOTAL Bachelor''s Degree]]="",Table2[[#This Row],[TOTAL Bachelor''s Degree]]=0 ),"",Table2[[#This Row],[TOTAL Bachelor''s Degree - Adult Learner]]/Table2[[#This Row],[TOTAL Bachelor''s Degree]]) ->  | DW5: 0 | DX5: =IF(OR(Table2[[#This Row],[TOTAL Bachelor''s Degree]]="",Table2[[#This Row],[TOTAL Bachelor''s Degree]]=0 ),"",Table2[[#This Row],[Bachelor''s Degree nonHDF]]/Table2[[#This Row],[TOTAL Bachelor''s Degree]]) ->  | DY5: 0 | DZ5: =IF(OR(Table2[[#This Row],[TOTAL Bachelor''s Degree - Academic Disadvantage]]="",Table2[[#This Row],[TOTAL Bachelor''s Degree - Academic Disadvantage]]=0 ),"",Table2[[#This Row],[Bachelor''s Degree - nonHDF Academic Disadvantage]]/Table2[[#This Row],[TOTAL Bachelor''s Degree - Academic Disadvantage]]) ->  | EA5: 0 | EB5: =IF(OR(Table2[[#This Row],[TOTAL Bachelor''s Degree - Economic Disadvantage]]="",Table2[[#This Row],[TOTAL Bachelor''s Degree - Economic Disadvantage]]=0 ),"",Table2[[#This Row],[Bachelor''s Degree - nonHDF Economic Disadvantage]]/Table2[[#This Row],[TOTAL Bachelor''s Degree - Economic Disadvantage]]) ->  | EC5: 0 | ED5: =IF(OR(Table2[[#This Row],[TOTAL Bachelor''s Degree - Adult Learner]]="",Table2[[#This Row],[TOTAL Bachelor''s Degree - Adult Learner]]=0 ),"",Table2[[#This Row],[Bachelor''s Degree - nonHDF Adult Learner]]/Table2[[#This Row],[TOTAL Bachelor''s Degree - Adult Learner]]) ->  | EE5: 0 | EF5: =IF(OR(Table2[[#This Row],[TOTAL Bachelor''s Degree]]="",Table2[[#This Row],[TOTAL Bachelor''s Degree]]=0 ),"",Table2[[#This Row],[Bachelor''s Degree: HDF]]/Table2[[#This Row],[TOTAL Bachelor''s Degree]]) ->  | EG5: 0 | EH5: =IF(OR(Table2[[#This Row],[TOTAL Bachelor''s Degree - Academic Disadvantage]]="",Table2[[#This Row],[TOTAL Bachelor''s Degree - Academic Disadvantage]]=0 ),"",Table2[[#This Row],[Bachelor''s Degree: HDF - Academic Disadvantage]]/Table2[[#This Row],[TOTAL Bachelor''s Degree - Academic Disadvantage]]) ->  | EI5: 0 | EJ5: =IF(OR(Table2[[#This Row],[TOTAL Bachelor''s Degree - Economic Disadvantage]]="",Table2[[#This Row],[TOTAL Bachelor''s Degree - Economic Disadvantage]]=0 ),"",Table2[[#This Row],[Bachelor''s Degree: HDF - Economic Disadvantage]]/Table2[[#This Row],[TOTAL Bachelor''s Degree - Economic Disadvantage]]) ->  | EK5: 0 | EL5: =IF(OR(Table2[[#This Row],[TOTAL Bachelor''s Degree - Adult Learner]]="",Table2[[#This Row],[TOTAL Bachelor''s Degree - Adult Learner]]=0 ),"",Table2[[#This Row],[Bachelor''s Degree: HDF - Adult Learner]]/Table2[[#This Row],[TOTAL Bachelor''s Degree - Adult Learner]]) ->  | EM5: 0 | EN5: =IF(OR(Table2[[#This Row],[TOTAL Bachelor''s Degree]]="",Table2[[#This Row],[TOTAL Bachelor''s Degree]]=0 ),"",Table2[[#This Row],[TOTAL Bachelor''s Degree: CoV Premium]]/Table2[[#This Row],[TOTAL Bachelor''s Degree]]) -> 
A6: 012015 | B6: Austin Community College | C6: 2018 | D6: 2197 | E6: 3295 | F6: 1183 | G6: =IF(OR(Table2[[#This Row],[GAI Transfer with 15 SCH Total]]="",Table2[[#This Row],[GAI Transfer with 15 SCH Total]]=0 ),"",Table2[[#This Row],[GAI Transfer with 15 SCH - Academic Disadvantage]]/Table2[[#This Row],[GAI Transfer with 15 SCH Total]]) -> 0.3590288316 | H6: 963 | I6: =IF(OR(Table2[[#This Row],[GAI Transfer with 15 SCH Total]]="",Table2[[#This Row],[GAI Transfer with 15 SCH Total]]=0 ),"",Table2[[#This Row],[GAI Transfer with 15 SCH - Economic Disadvantage]]/Table2[[#This Row],[GAI Transfer with 15 SCH Total]]) -> 0.2922610015 | J6: 643 | K6: =IF(OR(Table2[[#This Row],[GAI Transfer with 15 SCH Total]]="",Table2[[#This Row],[GAI Transfer with 15 SCH Total]]=0 ),"",Table2[[#This Row],[GAI Transfer with 15 SCH - Adult Learner]]/Table2[[#This Row],[GAI Transfer with 15 SCH Total]]) -> 0.1951441578 | L6: 99 | M6: 52 | N6: =IF(OR(Table2[[#This Row],[GAI Co-enrollment with 15 SCH Total]]="", Table2[[#This Row],[GAI Co-enrollment with 15 SCH Total]]=0),"",Table2[[#This Row],[GAI Co-enrollment with 15 SCH -Academic Disadvantage]]/Table2[[#This Row],[GAI Co-enrollment with 15 SCH Total]]) -> 0.5252525253 | O6: 51 | P6: =IF(OR(Table2[[#This Row],[GAI Co-enrollment with 15 SCH Total]]="", Table2[[#This Row],[GAI Co-enrollment with 15 SCH Total]]=0),"",Table2[[#This Row],[GAI Co-enrollment with 15 SCH - Economic Disadvantage]]/Table2[[#This Row],[GAI Co-enrollment with 15 SCH Total]]) -> 0.5151515152 | Q6: 0 | R6: =IF(OR(Table2[[#This Row],[GAI Co-enrollment with 15 SCH Total]]="",Table2[[#This Row],[GAI Co-enrollment with 15 SCH Total]]=0 ),"",Table2[[#This Row],[GAI Co-enrollment with 15 SCH - Adult Learner]]/Table2[[#This Row],[GAI Co-enrollment with 15 SCH Total]]) -> 0 | V6: 0 | W6: 0 | Z6: =IF(OR(Table2[[#This Row],[TOTAL OSA]]="",Table2[[#This Row],[TOTAL OSA]]=0 ),"",Table2[[#This Row],[TOTAL OSA - Academic Disadvantage]]/Table2[[#This Row],[TOTAL OSA]]) ->  | AB6: =IF(OR(Table2[[#This Row],[TOTAL OSA]]="",Table2[[#This Row],[TOTAL OSA]]=0 ),"",Table2[[#This Row],[TOTAL OSA - Economic Disadvantage]]/Table2[[#This Row],[TOTAL OSA]]) ->  | AD6: =IF(OR(Table2[[#This Row],[TOTAL OSA]]="",Table2[[#This Row],[TOTAL OSA]]=0 ),"",Table2[[#This Row],[TOTAL OSA - Adult Learner]]/Table2[[#This Row],[TOTAL OSA]]) ->  | AF6: =IF(OR(Table2[[#This Row],[TOTAL OSA]]="",Table2[[#This Row],[TOTAL OSA]]=0 ),"",Table2[[#This Row],[OSA nonHDF]]/Table2[[#This Row],[TOTAL OSA]]) ->  | AH6: =IF(OR(Table2[[#This Row],[TOTAL OSA - Academic Disadvantage]]="",Table2[[#This Row],[TOTAL OSA - Academic Disadvantage]]=0 ),"",Table2[[#This Row],[OSA - nonHDF Academic Disadvantage]]/Table2[[#This Row],[TOTAL OSA - Academic Disadvantage]]) ->  | AJ6: =IF(OR(Table2[[#This Row],[TOTAL OSA - Economic Disadvantage]]="",Table2[[#This Row],[TOTAL OSA - Economic Disadvantage]]=0 ),"",Table2[[#This Row],[OSA - nonHDF Economic Disadvantage]]/Table2[[#This Row],[TOTAL OSA - Economic Disadvantage]]) ->  | AL6: =IF(OR(Table2[[#This Row],[TOTAL OSA - Adult Learner]]="",Table2[[#This Row],[TOTAL OSA - Adult Learner]]=0 ),"",Table2[[#This Row],[OSA - nonHDF Adult Learner]]/Table2[[#This Row],[TOTAL OSA - Adult Learner]]) ->  | AN6: =IF(OR(Table2[[#This Row],[TOTAL OSA]]="",Table2[[#This Row],[TOTAL OSA]]=0 ),"",Table2[[#This Row],[OSA: HDF]]/Table2[[#This Row],[TOTAL OSA]]) ->  | AP6: =IF(OR(Table2[[#This Row],[TOTAL OSA - Academic Disadvantage]]="",Table2[[#This Row],[TOTAL OSA - Academic Disadvantage]]=0 ),"",Table2[[#This Row],[OSA: HDF Academic Disadvantage]]/Table2[[#This Row],[TOTAL OSA - Academic Disadvantage]]) ->  | AR6: =IF(OR(Table2[[#This Row],[TOTAL OSA - Economic Disadvantage]]="",Table2[[#This Row],[TOTAL OSA - Economic Disadvantage]]=0 ),"",Table2[[#This Row],[OSA: HDF Economic Disadvantage]]/Table2[[#This Row],[TOTAL OSA - Economic Disadvantage]]) ->  | AT6: =IF(OR(Table2[[#This Row],[TOTAL OSA - Adult Learner]]="",Table2[[#This Row],[TOTAL OSA - Adult Learner]]=0 ),"",Table2[[#This Row],[OSA: HDF - Adult Learner]]/Table2[[#This Row],[TOTAL OSA - Adult Learner]]) ->  | AU6: 918 | AV6: 302 | AW6: =IF(OR(Table2[[#This Row],[TOTAL Certificate I or II]]="",Table2[[#This Row],[TOTAL Certificate I or II]]=0 ),"",Table2[[#This Row],[TOTAL Certificate I or II - Academic Disadvantage]]/Table2[[#This Row],[TOTAL Certificate I or II]]) -> 0.3289760349 | AX6: 249 | AY6: =IF(OR(Table2[[#This Row],[TOTAL Certificate I or II]]="",Table2[[#This Row],[TOTAL Certificate I or II]]=0 ),"",Table2[[#This Row],[TOTAL Certificate I or II - Economic Disadvantage]]/Table2[[#This Row],[TOTAL Certificate I or II]]) -> 0.2712418301 | AZ6: 591 | BA6: =IF(OR(Table2[[#This Row],[TOTAL Certificate I or II]]="",Table2[[#This Row],[TOTAL Certificate I or II]]=0 ),"",Table2[[#This Row],[TOTAL Certificate I or II - Adult Learner]]/Table2[[#This Row],[TOTAL Certificate I or II]]) -> 0.6437908497 | BB6: 427 | BC6: =IF(OR(Table2[[#This Row],[TOTAL Certificate I or II]]="",Table2[[#This Row],[TOTAL Certificate I or II]]=0 ),"",Table2[[#This Row],[Certificate I or II nonHDF]]/Table2[[#This Row],[TOTAL Certificate I or II]]) -> 0.4651416122 | BD6: 147 | BE6: =IF(OR(Table2[[#This Row],[OSA: HDF Academic Disadvantage]]="",Table2[[#This Row],[OSA: HDF Academic Disadvantage]]=0 ),"",Table2[[#This Row],[Certificate I or II - nonHDF Academic Disadvantage]]/Table2[[#This Row],[OSA: HDF Academic Disadvantage]]) ->  | BF6: 106 | BG6: =IF(OR(Table2[[#This Row],[TOTAL Certificate I or II - Economic Disadvantage]]="",Table2[[#This Row],[TOTAL Certificate I or II - Economic Disadvantage]]=0 ),"",Table2[[#This Row],[Certificate I or II - nonHDF Economic Disadvantage]]/Table2[[#This Row],[TOTAL Certificate I or II - Economic Disadvantage]]) -> 0.4257028112 | BH6: 268 | BI6: =IF(OR(Table2[[#This Row],[TOTAL Certificate I or II - Adult Learner]]="",Table2[[#This Row],[TOTAL Certificate I or II - Adult Learner]]=0 ),"",Table2[[#This Row],[Certificate I or II - nonHDF Adult Learner]]/Table2[[#This Row],[TOTAL Certificate I or II - Adult Learner]]) -> 0.4534686971 | BJ6: 491 | BK6: =IF(OR(Table2[[#This Row],[TOTAL Certificate I or II]]="",Table2[[#This Row],[TOTAL Certificate I or II]]=0 ),"",Table2[[#This Row],[Certificate I or II: HDF]]/Table2[[#This Row],[TOTAL Certificate I or II]]) -> 0.5348583878 | BL6: 155 | BM6: =IF(OR(Table2[[#This Row],[TOTAL Certificate I or II - Academic Disadvantage]]="",Table2[[#This Row],[TOTAL Certificate I or II - Academic Disadvantage]]=0 ),"",Table2[[#This Row],[Certificate I or II: HDF Academic Disadvantage]]/Table2[[#This Row],[TOTAL Certificate I or II - Academic Disadvantage]]) -> 0.5132450331 | BN6: 143 | BO6: =IF(OR(Table2[[#This Row],[TOTAL Certificate I or II - Economic Disadvantage]]="",Table2[[#This Row],[TOTAL Certificate I or II - Economic Disadvantage]]=0 ),"",Table2[[#This Row],[Certificate I or II: HDF Economic Disadvantage]]/Table2[[#This Row],[TOTAL Certificate I or II - Economic Disadvantage]]) -> 0.5742971888 | BP6: 323 | BQ6: =IF(OR(Table2[[#This Row],[TOTAL Certificate I or II - Adult Learner]]="",Table2[[#This Row],[TOTAL Certificate I or II - Adult Learner]]=0 ),"",Table2[[#This Row],[Certificate I or II: HDF Adult Learner]]/Table2[[#This Row],[TOTAL Certificate I or II - Adult Learner]]) -> 0.5465313029 | BR6: 26 | BS6: =IF(OR(Table2[[#This Row],[TOTAL Certificate I or II]]="",Table2[[#This Row],[TOTAL Certificate I or II]]=0 ),"",Table2[[#This Row],[TOTAL Cert I or II: COV Premium]]/Table2[[#This Row],[TOTAL Certificate I or II]]) -> 0.02832244009 | BT6: 76 | BU6: 6 | BV6: =IF(OR(Table2[[#This Row],[TOTAL Advanced Technical Certificate]]="",Table2[[#This Row],[TOTAL Advanced Technical Certificate]]=0 ),"",Table2[[#This Row],[TOTAL Advanced Technical Certificate - Academic Disadvantage]]/Table2[[#This Row],[TOTAL Advanced Technical Certificate]]) -> 0.07894736842 | BW6: 11 | BX6: =IF(OR(Table2[[#This Row],[TOTAL Advanced Technical Certificate]]="",Table2[[#This Row],[TOTAL Advanced Technical Certificate]]=0 ),"",Table2[[#This Row],[TOTAL Advanced Technical Certificate - Economic Disadvantage]]/Table2[[#This Row],[TOTAL Advanced Technical Certificate]]) -> 0.1447368421 | BY6: 71 | BZ6: =IF(OR(Table2[[#This Row],[TOTAL Advanced Technical Certificate]]="",Table2[[#This Row],[TOTAL Advanced Technical Certificate]]=0 ),"",Table2[[#This Row],[TOTAL Advanced Technical Certificate - Adult Learner]]/Table2[[#This Row],[TOTAL Advanced Technical Certificate]]) -> 0.9342105263 | CA6: 11 | CB6: =IF(OR(Table2[[#This Row],[TOTAL Advanced Technical Certificate]]="",Table2[[#This Row],[TOTAL Advanced Technical Certificate]]=0 ),"",Table2[[#This Row],[Advanced Technical Certificate nonHDF]]/Table2[[#This Row],[TOTAL Advanced Technical Certificate]]) -> 0.1447368421 | CC6: 0 | CD6: =IF(OR(Table2[[#This Row],[TOTAL Advanced Technical Certificate - Academic Disadvantage]]="",Table2[[#This Row],[TOTAL Advanced Technical Certificate - Academic Disadvantage]]=0 ),"",Table2[[#This Row],[Advanced Technical Certificate nonHDF - Academic Disadvantage]]/Table2[[#This Row],[TOTAL Advanced Technical Certificate - Academic Disadvantage]]) -> 0 | CE6: 0 | CF6: =IF(OR(Table2[[#This Row],[TOTAL Advanced Technical Certificate - Economic Disadvantage]]="",Table2[[#This Row],[TOTAL Advanced Technical Certificate - Economic Disadvantage]]=0 ),"",Table2[[#This Row],[Advanced Technical Certificate - nonHDF Economic Disadvantage]]/Table2[[#This Row],[TOTAL Advanced Technical Certificate - Economic Disadvantage]]) -> 0 | CG6: 11 | CH6: =IF(OR(Table2[[#This Row],[TOTAL Advanced Technical Certificate - Adult Learner]]="",Table2[[#This Row],[TOTAL Advanced Technical Certificate - Adult Learner]]=0 ),"",Table2[[#This Row],[Advanced Technical Certificate - nonHDF Adult Learner]]/Table2[[#This Row],[TOTAL Advanced Technical Certificate - Adult Learner]]) -> 0.1549295775 | CI6: 65 | CJ6: =IF(OR(Table2[[#This Row],[TOTAL Advanced Technical Certificate]]="",Table2[[#This Row],[TOTAL Advanced Technical Certificate]]=0 ),"",Table2[[#This Row],[Advanced Technical Certificate: HDF]]/Table2[[#This Row],[TOTAL Advanced Technical Certificate]]) -> 0.8552631579 | CK6: 6 | CL6: =IF(OR(Table2[[#This Row],[TOTAL Advanced Technical Certificate - Academic Disadvantage]]="",Table2[[#This Row],[TOTAL Advanced Technical Certificate - Academic Disadvantage]]=0 ),"",Table2[[#This Row],[Advanced Technical Certificate: HDF Academic Disadvantage]]/Table2[[#This Row],[TOTAL Advanced Technical Certificate - Academic Disadvantage]]) -> 1 | CM6: 11 | CN6: =IF(OR(Table2[[#This Row],[TOTAL Advanced Technical Certificate - Economic Disadvantage]]="",Table2[[#This Row],[TOTAL Advanced Technical Certificate - Economic Disadvantage]]=0 ),"",Table2[[#This Row],[Advanced Technical Certificate: HDF Economic Disadvantage]]/Table2[[#This Row],[TOTAL Advanced Technical Certificate - Economic Disadvantage]]) -> 1 | CO6: 0 | CP6: =IF(OR(Table2[[#This Row],[TOTAL Advanced Technical Certificate - Adult Learner]]="",Table2[[#This Row],[TOTAL Advanced Technical Certificate - Adult Learner]]=0 ),"",Table2[[#This Row],[Advanced Technical Certificate: HDF Adult Learner]]/Table2[[#This Row],[TOTAL Advanced Technical Certificate - Adult Learner]]) -> 0 | CQ6: 3413 | CR6: 890 | CS6: =IF(OR(Table2[[#This Row],[TOTAL Associate Degree]]="",Table2[[#This Row],[TOTAL Associate Degree]]=0 ),"",Table2[[#This Row],[TOTAL Associate Degree - Academic Disadvantage]]/Table2[[#This Row],[TOTAL Associate Degree]]) -> 0.2607676531 | CT6: 1220 | CU6: =IF(OR(Table2[[#This Row],[TOTAL Associate Degree]]="",Table2[[#This Row],[TOTAL Associate Degree]]=0 ),"",Table2[[#This Row],[TOTAL Associate Degree - Economic Disadvantage]]/Table2[[#This Row],[TOTAL Associate Degree]]) -> 0.3574567829 | CV6: 1544 | CW6: =IF(OR(Table2[[#This Row],[TOTAL Associate Degree]]="",Table2[[#This Row],[TOTAL Associate Degree]]=0 ),"",Table2[[#This Row],[TOTAL Associate Degree - Adult Learner]]/Table2[[#This Row],[TOTAL Associate Degree]]) -> 0.4523879285 | CX6: 2475 | CY6: =IF(OR(Table2[[#This Row],[TOTAL Associate Degree]]="",Table2[[#This Row],[TOTAL Associate Degree]]=0 ),"",Table2[[#This Row],[Associate Degree nonHDF]]/Table2[[#This Row],[TOTAL Associate Degree]]) -> 0.7251684735 | CZ6: 696 | DA6: =IF(OR(Table2[[#This Row],[TOTAL Associate Degree - Academic Disadvantage]]="",Table2[[#This Row],[TOTAL Associate Degree - Academic Disadvantage]]=0 ),"",Table2[[#This Row],[Associate Degree - nonHDF Academic Disadvantage]]/Table2[[#This Row],[TOTAL Associate Degree - Academic Disadvantage]]) -> 0.7820224719 | DB6: 855 | DC6: =IF(OR(Table2[[#This Row],[TOTAL Associate Degree - Economic Disadvantage]]="",Table2[[#This Row],[TOTAL Associate Degree - Economic Disadvantage]]=0 ),"",Table2[[#This Row],[Associate Degree - nonHDF Economic Disadvantage]]/Table2[[#This Row],[TOTAL Associate Degree - Economic Disadvantage]]) -> 0.7008196721 | DD6: 893 | DE6: =IF(OR(Table2[[#This Row],[TOTAL Associate Degree - Adult Learner]]="",Table2[[#This Row],[TOTAL Associate Degree - Adult Learner]]=0 ),"",Table2[[#This Row],[Associate Degree - nonHDF Adult Learner]]/Table2[[#This Row],[TOTAL Associate Degree - Adult Learner]]) -> 0.5783678756 | DF6: 938 | DG6: =IF(OR(Table2[[#This Row],[TOTAL Associate Degree]]="",Table2[[#This Row],[TOTAL Associate Degree]]=0 ),"",Table2[[#This Row],[Associate Degree: HDF]]/Table2[[#This Row],[TOTAL Associate Degree]]) -> 0.2748315265 | DH6: 194 | DI6: =IF(OR(Table2[[#This Row],[TOTAL Associate Degree - Academic Disadvantage]]="",Table2[[#This Row],[TOTAL Associate Degree - Academic Disadvantage]]=0 ),"",Table2[[#This Row],[Associate Degree: HDF Academic Disadvantage]]/Table2[[#This Row],[TOTAL Associate Degree - Academic Disadvantage]]) -> 0.2179775281 | DJ6: 365 | DK6: =IF(OR(Table2[[#This Row],[TOTAL Associate Degree - Economic Disadvantage]]="",Table2[[#This Row],[TOTAL Associate Degree - Economic Disadvantage]]=0 ),"",Table2[[#This Row],[Associate Degree: HDF Economic Disadvantage]]/Table2[[#This Row],[TOTAL Associate Degree - Economic Disadvantage]]) -> 0.2991803279 | DL6: 651 | DM6: =IF(OR(Table2[[#This Row],[TOTAL Associate Degree - Adult Learner]]="",Table2[[#This Row],[TOTAL Associate Degree - Adult Learner]]=0 ),"",Table2[[#This Row],[Associate Degree: HDF Adult Learner]]/Table2[[#This Row],[TOTAL Associate Degree - Adult Learner]]) -> 0.4216321244 | DN6: 109 | DO6: =IF(OR(Table2[[#This Row],[TOTAL Associate Degree]]="",Table2[[#This Row],[TOTAL Associate Degree]]=0 ),"",Table2[[#This Row],[TOTAL Associate: CoV Premium]]/Table2[[#This Row],[TOTAL Associate Degree]]) -> 0.03193671257 | DP6: 0 | DQ6: 31.05046154 | DR6: =IF(OR(Table2[[#This Row],[TOTAL Bachelor''s Degree]]="",Table2[[#This Row],[TOTAL Bachelor''s Degree]]=0 ),"",Table2[[#This Row],[TOTAL Bachelor''s Degree - Academic Disadvantage]]/Table2[[#This Row],[TOTAL Bachelor''s Degree]]) ->  | DS6: 0 | DT6: =IF(OR(Table2[[#This Row],[TOTAL Bachelor''s Degree]]="",Table2[[#This Row],[TOTAL Bachelor''s Degree]]=0 ),"",Table2[[#This Row],[TOTAL Bachelor''s Degree - Economic Disadvantage]]/Table2[[#This Row],[TOTAL Bachelor''s Degree]]) ->  | DU6: 0 | DV6: =IF(OR(Table2[[#This Row],[TOTAL Bachelor''s Degree]]="",Table2[[#This Row],[TOTAL Bachelor''s Degree]]=0 ),"",Table2[[#This Row],[TOTAL Bachelor''s Degree - Adult Learner]]/Table2[[#This Row],[TOTAL Bachelor''s Degree]]) ->  | DW6: 0 | DX6: =IF(OR(Table2[[#This Row],[TOTAL Bachelor''s Degree]]="",Table2[[#This Row],[TOTAL Bachelor''s Degree]]=0 ),"",Table2[[#This Row],[Bachelor''s Degree nonHDF]]/Table2[[#This Row],[TOTAL Bachelor''s Degree]]) ->  | DY6: 0 | DZ6: =IF(OR(Table2[[#This Row],[TOTAL Bachelor''s Degree - Academic Disadvantage]]="",Table2[[#This Row],[TOTAL Bachelor''s Degree - Academic Disadvantage]]=0 ),"",Table2[[#This Row],[Bachelor''s Degree - nonHDF Academic Disadvantage]]/Table2[[#This Row],[TOTAL Bachelor''s Degree - Academic Disadvantage]]) -> 0 | EA6: 0 | EB6: =IF(OR(Table2[[#This Row],[TOTAL Bachelor''s Degree - Economic Disadvantage]]="",Table2[[#This Row],[TOTAL Bachelor''s Degree - Economic Disadvantage]]=0 ),"",Table2[[#This Row],[Bachelor''s Degree - nonHDF Economic Disadvantage]]/Table2[[#This Row],[TOTAL Bachelor''s Degree - Economic Disadvantage]]) ->  | EC6: 0 | ED6: =IF(OR(Table2[[#This Row],[TOTAL Bachelor''s Degree - Adult Learner]]="",Table2[[#This Row],[TOTAL Bachelor''s Degree - Adult Learner]]=0 ),"",Table2[[#This Row],[Bachelor''s Degree - nonHDF Adult Learner]]/Table2[[#This Row],[TOTAL Bachelor''s Degree - Adult Learner]]) ->  | EE6: 0 | EF6: =IF(OR(Table2[[#This Row],[TOTAL Bachelor''s Degree]]="",Table2[[#This Row],[TOTAL Bachelor''s Degree]]=0 ),"",Table2[[#This Row],[Bachelor''s Degree: HDF]]/Table2[[#This Row],[TOTAL Bachelor''s Degree]]) ->  | EG6: 0 | EH6: =IF(OR(Table2[[#This Row],[TOTAL Bachelor''s Degree - Academic Disadvantage]]="",Table2[[#This Row],[TOTAL Bachelor''s Degree - Academic Disadvantage]]=0 ),"",Table2[[#This Row],[Bachelor''s Degree: HDF - Academic Disadvantage]]/Table2[[#This Row],[TOTAL Bachelor''s Degree - Academic Disadvantage]]) -> 0 | EI6: 0 | EJ6: =IF(OR(Table2[[#This Row],[TOTAL Bachelor''s Degree - Economic Disadvantage]]="",Table2[[#This Row],[TOTAL Bachelor''s Degree - Economic Disadvantage]]=0 ),"",Table2[[#This Row],[Bachelor''s Degree: HDF - Economic Disadvantage]]/Table2[[#This Row],[TOTAL Bachelor''s Degree - Economic Disadvantage]]) ->  | EK6: 0 | EL6: =IF(OR(Table2[[#This Row],[TOTAL Bachelor''s Degree - Adult Learner]]="",Table2[[#This Row],[TOTAL Bachelor''s Degree - Adult Learner]]=0 ),"",Table2[[#This Row],[Bachelor''s Degree: HDF - Adult Learner]]/Table2[[#This Row],[TOTAL Bachelor''s Degree - Adult Learner]]) ->  | EM6: 0 | EN6: =IF(OR(Table2[[#This Row],[TOTAL Bachelor''s Degree]]="",Table2[[#This Row],[TOTAL Bachelor''s Degree]]=0 ),"",Table2[[#This Row],[TOTAL Bachelor''s Degree: CoV Premium]]/Table2[[#This Row],[TOTAL Bachelor''s Degree]]) -> 
A7: 003549 | B7: Blinn College District | C7: 2018 | D7: 430 | E7: 4080 | F7: 664 | G7: =IF(OR(Table2[[#This Row],[GAI Transfer with 15 SCH Total]]="",Table2[[#This Row],[GAI Transfer with 15 SCH Total]]=0 ),"",Table2[[#This Row],[GAI Transfer with 15 SCH - Academic Disadvantage]]/Table2[[#This Row],[GAI Transfer with 15 SCH Total]]) -> 0.162745098 | H7: 799 | I7: =IF(OR(Table2[[#This Row],[GAI Transfer with 15 SCH Total]]="",Table2[[#This Row],[GAI Transfer with 15 SCH Total]]=0 ),"",Table2[[#This Row],[GAI Transfer with 15 SCH - Economic Disadvantage]]/Table2[[#This Row],[GAI Transfer with 15 SCH Total]]) -> 0.1958333333 | J7: 145 | K7: =IF(OR(Table2[[#This Row],[GAI Transfer with 15 SCH Total]]="",Table2[[#This Row],[GAI Transfer with 15 SCH Total]]=0 ),"",Table2[[#This Row],[GAI Transfer with 15 SCH - Adult Learner]]/Table2[[#This Row],[GAI Transfer with 15 SCH Total]]) -> 0.03553921569 | L7: 1102 | M7: 5 | N7: =IF(OR(Table2[[#This Row],[GAI Co-enrollment with 15 SCH Total]]="", Table2[[#This Row],[GAI Co-enrollment with 15 SCH Total]]=0),"",Table2[[#This Row],[GAI Co-enrollment with 15 SCH -Academic Disadvantage]]/Table2[[#This Row],[GAI Co-enrollment with 15 SCH Total]]) -> 0.004537205082 | O7: 206 | P7: =IF(OR(Table2[[#This Row],[GAI Co-enrollment with 15 SCH Total]]="", Table2[[#This Row],[GAI Co-enrollment with 15 SCH Total]]=0),"",Table2[[#This Row],[GAI Co-enrollment with 15 SCH - Economic Disadvantage]]/Table2[[#This Row],[GAI Co-enrollment with 15 SCH Total]]) -> 0.1869328494 | Q7: 0 | R7: =IF(OR(Table2[[#This Row],[GAI Co-enrollment with 15 SCH Total]]="",Table2[[#This Row],[GAI Co-enrollment with 15 SCH Total]]=0 ),"",Table2[[#This Row],[GAI Co-enrollment with 15 SCH - Adult Learner]]/Table2[[#This Row],[GAI Co-enrollment with 15 SCH Total]]) -> 0 | V7: 0 | W7: 0 | Z7: =IF(OR(Table2[[#This Row],[TOTAL OSA]]="",Table2[[#This Row],[TOTAL OSA]]=0 ),"",Table2[[#This Row],[TOTAL OSA - Academic Disadvantage]]/Table2[[#This Row],[TOTAL OSA]]) ->  | AB7: =IF(OR(Table2[[#This Row],[TOTAL OSA]]="",Table2[[#This Row],[TOTAL OSA]]=0 ),"",Table2[[#This Row],[TOTAL OSA - Economic Disadvantage]]/Table2[[#This Row],[TOTAL OSA]]) ->  | AD7: =IF(OR(Table2[[#This Row],[TOTAL OSA]]="",Table2[[#This Row],[TOTAL OSA]]=0 ),"",Table2[[#This Row],[TOTAL OSA - Adult Learner]]/Table2[[#This Row],[TOTAL OSA]]) ->  | AF7: =IF(OR(Table2[[#This Row],[TOTAL OSA]]="",Table2[[#This Row],[TOTAL OSA]]=0 ),"",Table2[[#This Row],[OSA nonHDF]]/Table2[[#This Row],[TOTAL OSA]]) ->  | AH7: =IF(OR(Table2[[#This Row],[TOTAL OSA - Academic Disadvantage]]="",Table2[[#This Row],[TOTAL OSA - Academic Disadvantage]]=0 ),"",Table2[[#This Row],[OSA - nonHDF Academic Disadvantage]]/Table2[[#This Row],[TOTAL OSA - Academic Disadvantage]]) ->  | AJ7: =IF(OR(Table2[[#This Row],[TOTAL OSA - Economic Disadvantage]]="",Table2[[#This Row],[TOTAL OSA - Economic Disadvantage]]=0 ),"",Table2[[#This Row],[OSA - nonHDF Economic Disadvantage]]/Table2[[#This Row],[TOTAL OSA - Economic Disadvantage]]) ->  | AL7: =IF(OR(Table2[[#This Row],[TOTAL OSA - Adult Learner]]="",Table2[[#This Row],[TOTAL OSA - Adult Learner]]=0 ),"",Table2[[#This Row],[OSA - nonHDF Adult Learner]]/Table2[[#This Row],[TOTAL OSA - Adult Learner]]) ->  | AN7: =IF(OR(Table2[[#This Row],[TOTAL OSA]]="",Table2[[#This Row],[TOTAL OSA]]=0 ),"",Table2[[#This Row],[OSA: HDF]]/Table2[[#This Row],[TOTAL OSA]]) ->  | AP7: =IF(OR(Table2[[#This Row],[TOTAL OSA - Academic Disadvantage]]="",Table2[[#This Row],[TOTAL OSA - Academic Disadvantage]]=0 ),"",Table2[[#This Row],[OSA: HDF Academic Disadvantage]]/Table2[[#This Row],[TOTAL OSA - Academic Disadvantage]]) ->  | AR7: =IF(OR(Table2[[#This Row],[TOTAL OSA - Economic Disadvantage]]="",Table2[[#This Row],[TOTAL OSA - Economic Disadvantage]]=0 ),"",Table2[[#This Row],[OSA: HDF Economic Disadvantage]]/Table2[[#This Row],[TOTAL OSA - Economic Disadvantage]]) ->  | AT7: =IF(OR(Table2[[#This Row],[TOTAL OSA - Adult Learner]]="",Table2[[#This Row],[TOTAL OSA - Adult Learner]]=0 ),"",Table2[[#This Row],[OSA: HDF - Adult Learner]]/Table2[[#This Row],[TOTAL OSA - Adult Learner]]) ->  | AU7: 293 | AV7: 83 | AW7: =IF(OR(Table2[[#This Row],[TOTAL Certificate I or II]]="",Table2[[#This Row],[TOTAL Certificate I or II]]=0 ),"",Table2[[#This Row],[TOTAL Certificate I or II - Academic Disadvantage]]/Table2[[#This Row],[TOTAL Certificate I or II]]) -> 0.2832764505 | AX7: 100 | AY7: =IF(OR(Table2[[#This Row],[TOTAL Certificate I or II]]="",Table2[[#This Row],[TOTAL Certificate I or II]]=0 ),"",Table2[[#This Row],[TOTAL Certificate I or II - Economic Disadvantage]]/Table2[[#This Row],[TOTAL Certificate I or II]]) -> 0.3412969283 | AZ7: 139 | BA7: =IF(OR(Table2[[#This Row],[TOTAL Certificate I or II]]="",Table2[[#This Row],[TOTAL Certificate I or II]]=0 ),"",Table2[[#This Row],[TOTAL Certificate I or II - Adult Learner]]/Table2[[#This Row],[TOTAL Certificate I or II]]) -> 0.4744027304 | BB7: 160 | BC7: =IF(OR(Table2[[#This Row],[TOTAL Certificate I or II]]="",Table2[[#This Row],[TOTAL Certificate I or II]]=0 ),"",Table2[[#This Row],[Certificate I or II nonHDF]]/Table2[[#This Row],[TOTAL Certificate I or II]]) -> 0.5460750853 | BD7: 53 | BE7: =IF(OR(Table2[[#This Row],[OSA: HDF Academic Disadvantage]]="",Table2[[#This Row],[OSA: HDF Academic Disadvantage]]=0 ),"",Table2[[#This Row],[Certificate I or II - nonHDF Academic Disadvantage]]/Table2[[#This Row],[OSA: HDF Academic Disadvantage]]) ->  | BF7: 40 | BG7: =IF(OR(Table2[[#This Row],[TOTAL Certificate I or II - Economic Disadvantage]]="",Table2[[#This Row],[TOTAL Certificate I or II - Economic Disadvantage]]=0 ),"",Table2[[#This Row],[Certificate I or II - nonHDF Economic Disadvantage]]/Table2[[#This Row],[TOTAL Certificate I or II - Economic Disadvantage]]) -> 0.4 | BH7: 69 | BI7: =IF(OR(Table2[[#This Row],[TOTAL Certificate I or II - Adult Learner]]="",Table2[[#This Row],[TOTAL Certificate I or II - Adult Learner]]=0 ),"",Table2[[#This Row],[Certificate I or II - nonHDF Adult Learner]]/Table2[[#This Row],[TOTAL Certificate I or II - Adult Learner]]) -> 0.4964028777 | BJ7: 133 | BK7: =IF(OR(Table2[[#This Row],[TOTAL Certificate I or II]]="",Table2[[#This Row],[TOTAL Certificate I or II]]=0 ),"",Table2[[#This Row],[Certificate I or II: HDF]]/Table2[[#This Row],[TOTAL Certificate I or II]]) -> 0.4539249147 | BL7: 30 | BM7: =IF(OR(Table2[[#This Row],[TOTAL Certificate I or II - Academic Disadvantage]]="",Table2[[#This Row],[TOTAL Certificate I or II - Academic Disadvantage]]=0 ),"",Table2[[#This Row],[Certificate I or II: HDF Academic Disadvantage]]/Table2[[#This Row],[TOTAL Certificate I or II - Academic Disadvantage]]) -> 0.3614457831 | BN7: 60 | BO7: =IF(OR(Table2[[#This Row],[TOTAL Certificate I or II - Economic Disadvantage]]="",Table2[[#This Row],[TOTAL Certificate I or II - Economic Disadvantage]]=0 ),"",Table2[[#This Row],[Certificate I or II: HDF Economic Disadvantage]]/Table2[[#This Row],[TOTAL Certificate I or II - Economic Disadvantage]]) -> 0.6 | BP7: 70 | BQ7: =IF(OR(Table2[[#This Row],[TOTAL Certificate I or II - Adult Learner]]="",Table2[[#This Row],[TOTAL Certificate I or II - Adult Learner]]=0 ),"",Table2[[#This Row],[Certificate I or II: HDF Adult Learner]]/Table2[[#This Row],[TOTAL Certificate I or II - Adult Learner]]) -> 0.5035971223 | BR7: 17 | BS7: =IF(OR(Table2[[#This Row],[TOTAL Certificate I or II]]="",Table2[[#This Row],[TOTAL Certificate I or II]]=0 ),"",Table2[[#This Row],[TOTAL Cert I or II: COV Premium]]/Table2[[#This Row],[TOTAL Certificate I or II]]) -> 0.05802047782 | BT7: 1 | BU7: 0 | BV7: =IF(OR(Table2[[#This Row],[TOTAL Advanced Technical Certificate]]="",Table2[[#This Row],[TOTAL Advanced Technical Certificate]]=0 ),"",Table2[[#This Row],[TOTAL Advanced Technical Certificate - Academic Disadvantage]]/Table2[[#This Row],[TOTAL Advanced Technical Certificate]]) -> 0 | BW7: 0 | BX7: =IF(OR(Table2[[#This Row],[TOTAL Advanced Technical Certificate]]="",Table2[[#This Row],[TOTAL Advanced Technical Certificate]]=0 ),"",Table2[[#This Row],[TOTAL Advanced Technical Certificate - Economic Disadvantage]]/Table2[[#This Row],[TOTAL Advanced Technical Certificate]]) -> 0 | BY7: 1 | BZ7: =IF(OR(Table2[[#This Row],[TOTAL Advanced Technical Certificate]]="",Table2[[#This Row],[TOTAL Advanced Technical Certificate]]=0 ),"",Table2[[#This Row],[TOTAL Advanced Technical Certificate - Adult Learner]]/Table2[[#This Row],[TOTAL Advanced Technical Certificate]]) -> 1 | CA7: 1 | CB7: =IF(OR(Table2[[#This Row],[TOTAL Advanced Technical Certificate]]="",Table2[[#This Row],[TOTAL Advanced Technical Certificate]]=0 ),"",Table2[[#This Row],[Advanced Technical Certificate nonHDF]]/Table2[[#This Row],[TOTAL Advanced Technical Certificate]]) -> 1 | CC7: 0 | CD7: =IF(OR(Table2[[#This Row],[TOTAL Advanced Technical Certificate - Academic Disadvantage]]="",Table2[[#This Row],[TOTAL Advanced Technical Certificate - Academic Disadvantage]]=0 ),"",Table2[[#This Row],[Advanced Technical Certificate nonHDF - Academic Disadvantage]]/Table2[[#This Row],[TOTAL Advanced Technical Certificate - Academic Disadvantage]]) ->  | CE7: 0 | CF7: =IF(OR(Table2[[#This Row],[TOTAL Advanced Technical Certificate - Economic Disadvantage]]="",Table2[[#This Row],[TOTAL Advanced Technical Certificate - Economic Disadvantage]]=0 ),"",Table2[[#This Row],[Advanced Technical Certificate - nonHDF Economic Disadvantage]]/Table2[[#This Row],[TOTAL Advanced Technical Certificate - Economic Disadvantage]]) ->  | CG7: 1 | CH7: =IF(OR(Table2[[#This Row],[TOTAL Advanced Technical Certificate - Adult Learner]]="",Table2[[#This Row],[TOTAL Advanced Technical Certificate - Adult Learner]]=0 ),"",Table2[[#This Row],[Advanced Technical Certificate - nonHDF Adult Learner]]/Table2[[#This Row],[TOTAL Advanced Technical Certificate - Adult Learner]]) -> 1 | CI7: 0 | CJ7: =IF(OR(Table2[[#This Row],[TOTAL Advanced Technical Certificate]]="",Table2[[#This Row],[TOTAL Advanced Technical Certificate]]=0 ),"",Table2[[#This Row],[Advanced Technical Certificate: HDF]]/Table2[[#This Row],[TOTAL Advanced Technical Certificate]]) -> 0 | CK7: 0 | CL7: =IF(OR(Table2[[#This Row],[TOTAL Advanced Technical Certificate - Academic Disadvantage]]="",Table2[[#This Row],[TOTAL Advanced Technical Certificate - Academic Disadvantage]]=0 ),"",Table2[[#This Row],[Advanced Technical Certificate: HDF Academic Disadvantage]]/Table2[[#This Row],[TOTAL Advanced Technical Certificate - Academic Disadvantage]]) ->  | CM7: 0 | CN7: =IF(OR(Table2[[#This Row],[TOTAL Advanced Technical Certificate - Economic Disadvantage]]="",Table2[[#This Row],[TOTAL Advanced Technical Certificate - Economic Disadvantage]]=0 ),"",Table2[[#This Row],[Advanced Technical Certificate: HDF Economic Disadvantage]]/Table2[[#This Row],[TOTAL Advanced Technical Certificate - Economic Disadvantage]]) ->  | CO7: 0 | CP7: =IF(OR(Table2[[#This Row],[TOTAL Advanced Technical Certificate - Adult Learner]]="",Table2[[#This Row],[TOTAL Advanced Technical Certificate - Adult Learner]]=0 ),"",Table2[[#This Row],[Advanced Technical Certificate: HDF Adult Learner]]/Table2[[#This Row],[TOTAL Advanced Technical Certificate - Adult Learner]]) -> 0 | CQ7: 1998 | CR7: 296 | CS7: =IF(OR(Table2[[#This Row],[TOTAL Associate Degree]]="",Table2[[#This Row],[TOTAL Associate Degree]]=0 ),"",Table2[[#This Row],[TOTAL Associate Degree - Academic Disadvantage]]/Table2[[#This Row],[TOTAL Associate Degree]]) -> 0.1481481481 | CT7: 586 | CU7: =IF(OR(Table2[[#This Row],[TOTAL Associate Degree]]="",Table2[[#This Row],[TOTAL Associate Degree]]=0 ),"",Table2[[#This Row],[TOTAL Associate Degree - Economic Disadvantage]]/Table2[[#This Row],[TOTAL Associate Degree]]) -> 0.2932932933 | CV7: 260 | CW7: =IF(OR(Table2[[#This Row],[TOTAL Associate Degree]]="",Table2[[#This Row],[TOTAL Associate Degree]]=0 ),"",Table2[[#This Row],[TOTAL Associate Degree - Adult Learner]]/Table2[[#This Row],[TOTAL Associate Degree]]) -> 0.1301301301 | CX7: 1530 | CY7: =IF(OR(Table2[[#This Row],[TOTAL Associate Degree]]="",Table2[[#This Row],[TOTAL Associate Degree]]=0 ),"",Table2[[#This Row],[Associate Degree nonHDF]]/Table2[[#This Row],[TOTAL Associate Degree]]) -> 0.7657657658 | CZ7: 247 | DA7: =IF(OR(Table2[[#This Row],[TOTAL Associate Degree - Academic Disadvantage]]="",Table2[[#This Row],[TOTAL Associate Degree - Academic Disadvantage]]=0 ),"",Table2[[#This Row],[Associate Degree - nonHDF Academic Disadvantage]]/Table2[[#This Row],[TOTAL Associate Degree - Academic Disadvantage]]) -> 0.8344594595 | DB7: 444 | DC7: =IF(OR(Table2[[#This Row],[TOTAL Associate Degree - Economic Disadvantage]]="",Table2[[#This Row],[TOTAL Associate Degree - Economic Disadvantage]]=0 ),"",Table2[[#This Row],[Associate Degree - nonHDF Economic Disadvantage]]/Table2[[#This Row],[TOTAL Associate Degree - Economic Disadvantage]]) -> 0.7576791809 | DD7: 153 | DE7: =IF(OR(Table2[[#This Row],[TOTAL Associate Degree - Adult Learner]]="",Table2[[#This Row],[TOTAL Associate Degree - Adult Learner]]=0 ),"",Table2[[#This Row],[Associate Degree - nonHDF Adult Learner]]/Table2[[#This Row],[TOTAL Associate Degree - Adult Learner]]) -> 0.5884615385 | DF7: 468 | DG7: =IF(OR(Table2[[#This Row],[TOTAL Associate Degree]]="",Table2[[#This Row],[TOTAL Associate Degree]]=0 ),"",Table2[[#This Row],[Associate Degree: HDF]]/Table2[[#This Row],[TOTAL Associate Degree]]) -> 0.2342342342 | DH7: 49 | DI7: =IF(OR(Table2[[#This Row],[TOTAL Associate Degree - Academic Disadvantage]]="",Table2[[#This Row],[TOTAL Associate Degree - Academic Disadvantage]]=0 ),"",Table2[[#This Row],[Associate Degree: HDF Academic Disadvantage]]/Table2[[#This Row],[TOTAL Associate Degree - Academic Disadvantage]]) -> 0.1655405405 | DJ7: 142 | DK7: =IF(OR(Table2[[#This Row],[TOTAL Associate Degree - Economic Disadvantage]]="",Table2[[#This Row],[TOTAL Associate Degree - Economic Disadvantage]]=0 ),"",Table2[[#This Row],[Associate Degree: HDF Economic Disadvantage]]/Table2[[#This Row],[TOTAL Associate Degree - Economic Disadvantage]]) -> 0.2423208191 | DL7: 107 | DM7: =IF(OR(Table2[[#This Row],[TOTAL Associate Degree - Adult Learner]]="",Table2[[#This Row],[TOTAL Associate Degree - Adult Learner]]=0 ),"",Table2[[#This Row],[Associate Degree: HDF Adult Learner]]/Table2[[#This Row],[TOTAL Associate Degree - Adult Learner]]) -> 0.4115384615 | DN7: 56 | DO7: =IF(OR(Table2[[#This Row],[TOTAL Associate Degree]]="",Table2[[#This Row],[TOTAL Associate Degree]]=0 ),"",Table2[[#This Row],[TOTAL Associate: CoV Premium]]/Table2[[#This Row],[TOTAL Associate Degree]]) -> 0.02802802803 | DP7: 0 | DR7: =IF(OR(Table2[[#This Row],[TOTAL Bachelor''s Degree]]="",Table2[[#This Row],[TOTAL Bachelor''s Degree]]=0 ),"",Table2[[#This Row],[TOTAL Bachelor''s Degree - Academic Disadvantage]]/Table2[[#This Row],[TOTAL Bachelor''s Degree]]) ->  | DS7: 0 | DT7: =IF(OR(Table2[[#This Row],[TOTAL Bachelor''s Degree]]="",Table2[[#This Row],[TOTAL Bachelor''s Degree]]=0 ),"",Table2[[#This Row],[TOTAL Bachelor''s Degree - Economic Disadvantage]]/Table2[[#This Row],[TOTAL Bachelor''s Degree]]) ->  | DU7: 0 | DV7: =IF(OR(Table2[[#This Row],[TOTAL Bachelor''s Degree]]="",Table2[[#This Row],[TOTAL Bachelor''s Degree]]=0 ),"",Table2[[#This Row],[TOTAL Bachelor''s Degree - Adult Learner]]/Table2[[#This Row],[TOTAL Bachelor''s Degree]]) ->  | DW7: 0 | DX7: =IF(OR(Table2[[#This Row],[TOTAL Bachelor''s Degree]]="",Table2[[#This Row],[TOTAL Bachelor''s Degree]]=0 ),"",Table2[[#This Row],[Bachelor''s Degree nonHDF]]/Table2[[#This Row],[TOTAL Bachelor''s Degree]]) ->  | DY7: 0 | DZ7: =IF(OR(Table2[[#This Row],[TOTAL Bachelor''s Degree - Academic Disadvantage]]="",Table2[[#This Row],[TOTAL Bachelor''s Degree - Academic Disadvantage]]=0 ),"",Table2[[#This Row],[Bachelor''s Degree - nonHDF Academic Disadvantage]]/Table2[[#This Row],[TOTAL Bachelor''s Degree - Academic Disadvantage]]) ->  | EA7: 0 | EB7: =IF(OR(Table2[[#This Row],[TOTAL Bachelor''s Degree - Economic Disadvantage]]="",Table2[[#This Row],[TOTAL Bachelor''s Degree - Economic Disadvantage]]=0 ),"",Table2[[#This Row],[Bachelor''s Degree - nonHDF Economic Disadvantage]]/Table2[[#This Row],[TOTAL Bachelor''s Degree - Economic Disadvantage]]) ->  | EC7: 0 | ED7: =IF(OR(Table2[[#This Row],[TOTAL Bachelor''s Degree - Adult Learner]]="",Table2[[#This Row],[TOTAL Bachelor''s Degree - Adult Learner]]=0 ),"",Table2[[#This Row],[Bachelor''s Degree - nonHDF Adult Learner]]/Table2[[#This Row],[TOTAL Bachelor''s Degree - Adult Learner]]) ->  | EE7: 0 | EF7: =IF(OR(Table2[[#This Row],[TOTAL Bachelor''s Degree]]="",Table2[[#This Row],[TOTAL Bachelor''s Degree]]=0 ),"",Table2[[#This Row],[Bachelor''s Degree: HDF]]/Table2[[#This Row],[TOTAL Bachelor''s Degree]]) ->  | EG7: 0 | EH7: =IF(OR(Table2[[#This Row],[TOTAL Bachelor''s Degree - Academic Disadvantage]]="",Table2[[#This Row],[TOTAL Bachelor''s Degree - Academic Disadvantage]]=0 ),"",Table2[[#This Row],[Bachelor''s Degree: HDF - Academic Disadvantage]]/Table2[[#This Row],[TOTAL Bachelor''s Degree - Academic Disadvantage]]) ->  | EI7: 0 | EJ7: =IF(OR(Table2[[#This Row],[TOTAL Bachelor''s Degree - Economic Disadvantage]]="",Table2[[#This Row],[TOTAL Bachelor''s Degree - Economic Disadvantage]]=0 ),"",Table2[[#This Row],[Bachelor''s Degree: HDF - Economic Disadvantage]]/Table2[[#This Row],[TOTAL Bachelor''s Degree - Economic Disadvantage]]) ->  | EK7: 0 | EL7: =IF(OR(Table2[[#This Row],[TOTAL Bachelor''s Degree - Adult Learner]]="",Table2[[#This Row],[TOTAL Bachelor''s Degree - Adult Learner]]=0 ),"",Table2[[#This Row],[Bachelor''s Degree: HDF - Adult Learner]]/Table2[[#This Row],[TOTAL Bachelor''s Degree - Adult Learner]]) ->  | EM7: 0 | EN7: =IF(OR(Table2[[#This Row],[TOTAL Bachelor''s Degree]]="",Table2[[#This Row],[TOTAL Bachelor''s Degree]]=0 ),"",Table2[[#This Row],[TOTAL Bachelor''s Degree: CoV Premium]]/Table2[[#This Row],[TOTAL Bachelor''s Degree]]) -> 
A8: 007857 | B8: Brazosport College | C8: 2018 | D8: 377 | E8: 302 | F8: 169 | G8: =IF(OR(Table2[[#This Row],[GAI Transfer with 15 SCH Total]]="",Table2[[#This Row],[GAI Transfer with 15 SCH Total]]=0 ),"",Table2[[#This Row],[GAI Transfer with 15 SCH - Academic Disadvantage]]/Table2[[#This Row],[GAI Transfer with 15 SCH Total]]) -> 0.559602649 | H8: 70 | I8: =IF(OR(Table2[[#This Row],[GAI Transfer with 15 SCH Total]]="",Table2[[#This Row],[GAI Transfer with 15 SCH Total]]=0 ),"",Table2[[#This Row],[GAI Transfer with 15 SCH - Economic Disadvantage]]/Table2[[#This Row],[GAI Transfer with 15 SCH Total]]) -> 0.2317880795 | J8: 30 | K8: =IF(OR(Table2[[#This Row],[GAI Transfer with 15 SCH Total]]="",Table2[[#This Row],[GAI Transfer with 15 SCH Total]]=0 ),"",Table2[[#This Row],[GAI Transfer with 15 SCH - Adult Learner]]/Table2[[#This Row],[GAI Transfer with 15 SCH Total]]) -> 0.09933774834 | N8: =IF(OR(Table2[[#This Row],[GAI Co-enrollment with 15 SCH Total]]="", Table2[[#This Row],[GAI Co-enrollment with 15 SCH Total]]=0),"",Table2[[#This Row],[GAI Co-enrollment with 15 SCH -Academic Disadvantage]]/Table2[[#This Row],[GAI Co-enrollment with 15 SCH Total]]) ->  | P8: =IF(OR(Table2[[#This Row],[GAI Co-enrollment with 15 SCH Total]]="", Table2[[#This Row],[GAI Co-enrollment with 15 SCH Total]]=0),"",Table2[[#This Row],[GAI Co-enrollment with 15 SCH - Economic Disadvantage]]/Table2[[#This Row],[GAI Co-enrollment with 15 SCH Total]]) ->  | R8: =IF(OR(Table2[[#This Row],[GAI Co-enrollment with 15 SCH Total]]="",Table2[[#This Row],[GAI Co-enrollment with 15 SCH Total]]=0 ),"",Table2[[#This Row],[GAI Co-enrollment with 15 SCH - Adult Learner]]/Table2[[#This Row],[GAI Co-enrollment with 15 SCH Total]]) ->  | V8: 0 | W8: 14 | Z8: =IF(OR(Table2[[#This Row],[TOTAL OSA]]="",Table2[[#This Row],[TOTAL OSA]]=0 ),"",Table2[[#This Row],[TOTAL OSA - Academic Disadvantage]]/Table2[[#This Row],[TOTAL OSA]]) ->  | AB8: =IF(OR(Table2[[#This Row],[TOTAL OSA]]="",Table2[[#This Row],[TOTAL OSA]]=0 ),"",Table2[[#This Row],[TOTAL OSA - Economic Disadvantage]]/Table2[[#This Row],[TOTAL OSA]]) ->  | AD8: =IF(OR(Table2[[#This Row],[TOTAL OSA]]="",Table2[[#This Row],[TOTAL OSA]]=0 ),"",Table2[[#This Row],[TOTAL OSA - Adult Learner]]/Table2[[#This Row],[TOTAL OSA]]) ->  | AF8: =IF(OR(Table2[[#This Row],[TOTAL OSA]]="",Table2[[#This Row],[TOTAL OSA]]=0 ),"",Table2[[#This Row],[OSA nonHDF]]/Table2[[#This Row],[TOTAL OSA]]) ->  | AH8: =IF(OR(Table2[[#This Row],[TOTAL OSA - Academic Disadvantage]]="",Table2[[#This Row],[TOTAL OSA - Academic Disadvantage]]=0 ),"",Table2[[#This Row],[OSA - nonHDF Academic Disadvantage]]/Table2[[#This Row],[TOTAL OSA - Academic Disadvantage]]) ->  | AJ8: =IF(OR(Table2[[#This Row],[TOTAL OSA - Economic Disadvantage]]="",Table2[[#This Row],[TOTAL OSA - Economic Disadvantage]]=0 ),"",Table2[[#This Row],[OSA - nonHDF Economic Disadvantage]]/Table2[[#This Row],[TOTAL OSA - Economic Disadvantage]]) ->  | AL8: =IF(OR(Table2[[#This Row],[TOTAL OSA - Adult Learner]]="",Table2[[#This Row],[TOTAL OSA - Adult Learner]]=0 ),"",Table2[[#This Row],[OSA - nonHDF Adult Learner]]/Table2[[#This Row],[TOTAL OSA - Adult Learner]]) ->  | AN8: =IF(OR(Table2[[#This Row],[TOTAL OSA]]="",Table2[[#This Row],[TOTAL OSA]]=0 ),"",Table2[[#This Row],[OSA: HDF]]/Table2[[#This Row],[TOTAL OSA]]) ->  | AP8: =IF(OR(Table2[[#This Row],[TOTAL OSA - Academic Disadvantage]]="",Table2[[#This Row],[TOTAL OSA - Academic Disadvantage]]=0 ),"",Table2[[#This Row],[OSA: HDF Academic Disadvantage]]/Table2[[#This Row],[TOTAL OSA - Academic Disadvantage]]) ->  | AR8: =IF(OR(Table2[[#This Row],[TOTAL OSA - Economic Disadvantage]]="",Table2[[#This Row],[TOTAL OSA - Economic Disadvantage]]=0 ),"",Table2[[#This Row],[OSA: HDF Economic Disadvantage]]/Table2[[#This Row],[TOTAL OSA - Economic Disadvantage]]) ->  | AT8: =IF(OR(Table2[[#This Row],[TOTAL OSA - Adult Learner]]="",Table2[[#This Row],[TOTAL OSA - Adult Learner]]=0 ),"",Table2[[#This Row],[OSA: HDF - Adult Learner]]/Table2[[#This Row],[TOTAL OSA - Adult Learner]]) ->  | AU8: 584 | AV8: 113 | AW8: =IF(OR(Table2[[#This Row],[TOTAL Certificate I or II]]="",Table2[[#This Row],[TOTAL Certificate I or II]]=0 ),"",Table2[[#This Row],[TOTAL Certificate I or II - Academic Disadvantage]]/Table2[[#This Row],[TOTAL Certificate I or II]]) -> 0.1934931507 | AX8: 91 | AY8: =IF(OR(Table2[[#This Row],[TOTAL Certificate I or II]]="",Table2[[#This Row],[TOTAL Certificate I or II]]=0 ),"",Table2[[#This Row],[TOTAL Certificate I or II - Economic Disadvantage]]/Table2[[#This Row],[TOTAL Certificate I or II]]) -> 0.1558219178 | AZ8: 353 | BA8: =IF(OR(Table2[[#This Row],[TOTAL Certificate I or II]]="",Table2[[#This Row],[TOTAL Certificate I or II]]=0 ),"",Table2[[#This Row],[TOTAL Certificate I or II - Adult Learner]]/Table2[[#This Row],[TOTAL Certificate I or II]]) -> 0.6044520548 | BB8: 371 | BC8: =IF(OR(Table2[[#This Row],[TOTAL Certificate I or II]]="",Table2[[#This Row],[TOTAL Certificate I or II]]=0 ),"",Table2[[#This Row],[Certificate I or II nonHDF]]/Table2[[#This Row],[TOTAL Certificate I or II]]) -> 0.6352739726 | BD8: 75 | BE8: =IF(OR(Table2[[#This Row],[OSA: HDF Academic Disadvantage]]="",Table2[[#This Row],[OSA: HDF Academic Disadvantage]]=0 ),"",Table2[[#This Row],[Certificate I or II - nonHDF Academic Disadvantage]]/Table2[[#This Row],[OSA: HDF Academic Disadvantage]]) ->  | BF8: 46 | BG8: =IF(OR(Table2[[#This Row],[TOTAL Certificate I or II - Economic Disadvantage]]="",Table2[[#This Row],[TOTAL Certificate I or II - Economic Disadvantage]]=0 ),"",Table2[[#This Row],[Certificate I or II - nonHDF Economic Disadvantage]]/Table2[[#This Row],[TOTAL Certificate I or II - Economic Disadvantage]]) -> 0.5054945055 | BH8: 217 | BI8: =IF(OR(Table2[[#This Row],[TOTAL Certificate I or II - Adult Learner]]="",Table2[[#This Row],[TOTAL Certificate I or II - Adult Learner]]=0 ),"",Table2[[#This Row],[Certificate I or II - nonHDF Adult Learner]]/Table2[[#This Row],[TOTAL Certificate I or II - Adult Learner]]) -> 0.6147308782 | BJ8: 213 | BK8: =IF(OR(Table2[[#This Row],[TOTAL Certificate I or II]]="",Table2[[#This Row],[TOTAL Certificate I or II]]=0 ),"",Table2[[#This Row],[Certificate I or II: HDF]]/Table2[[#This Row],[TOTAL Certificate I or II]]) -> 0.3647260274 | BL8: 38 | BM8: =IF(OR(Table2[[#This Row],[TOTAL Certificate I or II - Academic Disadvantage]]="",Table2[[#This Row],[TOTAL Certificate I or II - Academic Disadvantage]]=0 ),"",Table2[[#This Row],[Certificate I or II: HDF Academic Disadvantage]]/Table2[[#This Row],[TOTAL Certificate I or II - Academic Disadvantage]]) -> 0.3362831858 | BN8: 45 | BO8: =IF(OR(Table2[[#This Row],[TOTAL Certificate I or II - Economic Disadvantage]]="",Table2[[#This Row],[TOTAL Certificate I or II - Economic Disadvantage]]=0 ),"",Table2[[#This Row],[Certificate I or II: HDF Economic Disadvantage]]/Table2[[#This Row],[TOTAL Certificate I or II - Economic Disadvantage]]) -> 0.4945054945 | BP8: 136 | BQ8: =IF(OR(Table2[[#This Row],[TOTAL Certificate I or II - Adult Learner]]="",Table2[[#This Row],[TOTAL Certificate I or II - Adult Learner]]=0 ),"",Table2[[#This Row],[Certificate I or II: HDF Adult Learner]]/Table2[[#This Row],[TOTAL Certificate I or II - Adult Learner]]) -> 0.3852691218 | BR8: 52 | BS8: =IF(OR(Table2[[#This Row],[TOTAL Certificate I or II]]="",Table2[[#This Row],[TOTAL Certificate I or II]]=0 ),"",Table2[[#This Row],[TOTAL Cert I or II: COV Premium]]/Table2[[#This Row],[TOTAL Certificate I or II]]) -> 0.08904109589 | BT8: 0 | BU8: 0 | BV8: =IF(OR(Table2[[#This Row],[TOTAL Advanced Technical Certificate]]="",Table2[[#This Row],[TOTAL Advanced Technical Certificate]]=0 ),"",Table2[[#This Row],[TOTAL Advanced Technical Certificate - Academic Disadvantage]]/Table2[[#This Row],[TOTAL Advanced Technical Certificate]]) ->  | BW8: 0 | BX8: =IF(OR(Table2[[#This Row],[TOTAL Advanced Technical Certificate]]="",Table2[[#This Row],[TOTAL Advanced Technical Certificate]]=0 ),"",Table2[[#This Row],[TOTAL Advanced Technical Certificate - Economic Disadvantage]]/Table2[[#This Row],[TOTAL Advanced Technical Certificate]]) ->  | BY8: 0 | BZ8: =IF(OR(Table2[[#This Row],[TOTAL Advanced Technical Certificate]]="",Table2[[#This Row],[TOTAL Advanced Technical Certificate]]=0 ),"",Table2[[#This Row],[TOTAL Advanced Technical Certificate - Adult Learner]]/Table2[[#This Row],[TOTAL Advanced Technical Certificate]]) ->  | CA8: 0 | CB8: =IF(OR(Table2[[#This Row],[TOTAL Advanced Technical Certificate]]="",Table2[[#This Row],[TOTAL Advanced Technical Certificate]]=0 ),"",Table2[[#This Row],[Advanced Technical Certificate nonHDF]]/Table2[[#This Row],[TOTAL Advanced Technical Certificate]]) ->  | CC8: 0 | CD8: =IF(OR(Table2[[#This Row],[TOTAL Advanced Technical Certificate - Academic Disadvantage]]="",Table2[[#This Row],[TOTAL Advanced Technical Certificate - Academic Disadvantage]]=0 ),"",Table2[[#This Row],[Advanced Technical Certificate nonHDF - Academic Disadvantage]]/Table2[[#This Row],[TOTAL Advanced Technical Certificate - Academic Disadvantage]]) ->  | CE8: 0 | CF8: =IF(OR(Table2[[#This Row],[TOTAL Advanced Technical Certificate - Economic Disadvantage]]="",Table2[[#This Row],[TOTAL Advanced Technical Certificate - Economic Disadvantage]]=0 ),"",Table2[[#This Row],[Advanced Technical Certificate - nonHDF Economic Disadvantage]]/Table2[[#This Row],[TOTAL Advanced Technical Certificate - Economic Disadvantage]]) ->  | CG8: 0 | CH8: =IF(OR(Table2[[#This Row],[TOTAL Advanced Technical Certificate - Adult Learner]]="",Table2[[#This Row],[TOTAL Advanced Technical Certificate - Adult Learner]]=0 ),"",Table2[[#This Row],[Advanced Technical Certificate - nonHDF Adult Learner]]/Table2[[#This Row],[TOTAL Advanced Technical Certificate - Adult Learner]]) ->  | CI8: 0 | CJ8: =IF(OR(Table2[[#This Row],[TOTAL Advanced Technical Certificate]]="",Table2[[#This Row],[TOTAL Advanced Technical Certificate]]=0 ),"",Table2[[#This Row],[Advanced Technical Certificate: HDF]]/Table2[[#This Row],[TOTAL Advanced Technical Certificate]]) ->  | CK8: 0 | CL8: =IF(OR(Table2[[#This Row],[TOTAL Advanced Technical Certificate - Academic Disadvantage]]="",Table2[[#This Row],[TOTAL Advanced Technical Certificate - Academic Disadvantage]]=0 ),"",Table2[[#This Row],[Advanced Technical Certificate: HDF Academic Disadvantage]]/Table2[[#This Row],[TOTAL Advanced Technical Certificate - Academic Disadvantage]]) ->  | CM8: 0 | CN8: =IF(OR(Table2[[#This Row],[TOTAL Advanced Technical Certificate - Economic Disadvantage]]="",Table2[[#This Row],[TOTAL Advanced Technical Certificate - Economic Disadvantage]]=0 ),"",Table2[[#This Row],[Advanced Technical Certificate: HDF Economic Disadvantage]]/Table2[[#This Row],[TOTAL Advanced Technical Certificate - Economic Disadvantage]]) ->  | CO8: 0 | CP8: =IF(OR(Table2[[#This Row],[TOTAL Advanced Technical Certificate - Adult Learner]]="",Table2[[#This Row],[TOTAL Advanced Technical Certificate - Adult Learner]]=0 ),"",Table2[[#This Row],[Advanced Technical Certificate: HDF Adult Learner]]/Table2[[#This Row],[TOTAL Advanced Technical Certificate - Adult Learner]]) ->  | CQ8: 623 | CR8: 236 | CS8: =IF(OR(Table2[[#This Row],[TOTAL Associate Degree]]="",Table2[[#This Row],[TOTAL Associate Degree]]=0 ),"",Table2[[#This Row],[TOTAL Associate Degree - Academic Disadvantage]]/Table2[[#This Row],[TOTAL Associate Degree]]) -> 0.378812199 | CT8: 163 | CU8: =IF(OR(Table2[[#This Row],[TOTAL Associate Degree]]="",Table2[[#This Row],[TOTAL Associate Degree]]=0 ),"",Table2[[#This Row],[TOTAL Associate Degree - Economic Disadvantage]]/Table2[[#This Row],[TOTAL Associate Degree]]) -> 0.2616372392 | CV8: 200 | CW8: =IF(OR(Table2[[#This Row],[TOTAL Associate Degree]]="",Table2[[#This Row],[TOTAL Associate Degree]]=0 ),"",Table2[[#This Row],[TOTAL Associate Degree - Adult Learner]]/Table2[[#This Row],[TOTAL Associate Degree]]) -> 0.3210272873 | CX8: 494 | CY8: =IF(OR(Table2[[#This Row],[TOTAL Associate Degree]]="",Table2[[#This Row],[TOTAL Associate Degree]]=0 ),"",Table2[[#This Row],[Associate Degree nonHDF]]/Table2[[#This Row],[TOTAL Associate Degree]]) -> 0.7929373997 | CZ8: 201 | DA8: =IF(OR(Table2[[#This Row],[TOTAL Associate Degree - Academic Disadvantage]]="",Table2[[#This Row],[TOTAL Associate Degree - Academic Disadvantage]]=0 ),"",Table2[[#This Row],[Associate Degree - nonHDF Academic Disadvantage]]/Table2[[#This Row],[TOTAL Associate Degree - Academic Disadvantage]]) -> 0.8516949153 | DB8: 124 | DC8: =IF(OR(Table2[[#This Row],[TOTAL Associate Degree - Economic Disadvantage]]="",Table2[[#This Row],[TOTAL Associate Degree - Economic Disadvantage]]=0 ),"",Table2[[#This Row],[Associate Degree - nonHDF Economic Disadvantage]]/Table2[[#This Row],[TOTAL Associate Degree - Economic Disadvantage]]) -> 0.7607361963 | DD8: 125 | DE8: =IF(OR(Table2[[#This Row],[TOTAL Associate Degree - Adult Learner]]="",Table2[[#This Row],[TOTAL Associate Degree - Adult Learner]]=0 ),"",Table2[[#This Row],[Associate Degree - nonHDF Adult Learner]]/Table2[[#This Row],[TOTAL Associate Degree - Adult Learner]]) -> 0.625 | DF8: 129 | DG8: =IF(OR(Table2[[#This Row],[TOTAL Associate Degree]]="",Table2[[#This Row],[TOTAL Associate Degree]]=0 ),"",Table2[[#This Row],[Associate Degree: HDF]]/Table2[[#This Row],[TOTAL Associate Degree]]) -> 0.2070626003 | DH8: 35 | DI8: =IF(OR(Table2[[#This Row],[TOTAL Associate Degree - Academic Disadvantage]]="",Table2[[#This Row],[TOTAL Associate Degree - Academic Disadvantage]]=0 ),"",Table2[[#This Row],[Associate Degree: HDF Academic Disadvantage]]/Table2[[#This Row],[TOTAL Associate Degree - Academic Disadvantage]]) -> 0.1483050847 | DJ8: 39 | DK8: =IF(OR(Table2[[#This Row],[TOTAL Associate Degree - Economic Disadvantage]]="",Table2[[#This Row],[TOTAL Associate Degree - Economic Disadvantage]]=0 ),"",Table2[[#This Row],[Associate Degree: HDF Economic Disadvantage]]/Table2[[#This Row],[TOTAL Associate Degree - Economic Disadvantage]]) -> 0.2392638037 | DL8: 75 | DM8: =IF(OR(Table2[[#This Row],[TOTAL Associate Degree - Adult Learner]]="",Table2[[#This Row],[TOTAL Associate Degree - Adult Learner]]=0 ),"",Table2[[#This Row],[Associate Degree: HDF Adult Learner]]/Table2[[#This Row],[TOTAL Associate Degree - Adult Learner]]) -> 0.375 | DN8: 99 | DO8: =IF(OR(Table2[[#This Row],[TOTAL Associate Degree]]="",Table2[[#This Row],[TOTAL Associate Degree]]=0 ),"",Table2[[#This Row],[TOTAL Associate: CoV Premium]]/Table2[[#This Row],[TOTAL Associate Degree]]) -> 0.1589085072 | DP8: 62 | DR8: =IF(OR(Table2[[#This Row],[TOTAL Bachelor''s Degree]]="",Table2[[#This Row],[TOTAL Bachelor''s Degree]]=0 ),"",Table2[[#This Row],[TOTAL Bachelor''s Degree - Academic Disadvantage]]/Table2[[#This Row],[TOTAL Bachelor''s Degree]]) -> 0 | DS8: 25 | DT8: =IF(OR(Table2[[#This Row],[TOTAL Bachelor''s Degree]]="",Table2[[#This Row],[TOTAL Bachelor''s Degree]]=0 ),"",Table2[[#This Row],[TOTAL Bachelor''s Degree - Economic Disadvantage]]/Table2[[#This Row],[TOTAL Bachelor''s Degree]]) -> 0.4032258065 | DU8: 44 | DV8: =IF(OR(Table2[[#This Row],[TOTAL Bachelor''s Degree]]="",Table2[[#This Row],[TOTAL Bachelor''s Degree]]=0 ),"",Table2[[#This Row],[TOTAL Bachelor''s Degree - Adult Learner]]/Table2[[#This Row],[TOTAL Bachelor''s Degree]]) -> 0.7096774194 | DW8: 46 | DX8: =IF(OR(Table2[[#This Row],[TOTAL Bachelor''s Degree]]="",Table2[[#This Row],[TOTAL Bachelor''s Degree]]=0 ),"",Table2[[#This Row],[Bachelor''s Degree nonHDF]]/Table2[[#This Row],[TOTAL Bachelor''s Degree]]) -> 0.7419354839 | DY8: 2 | DZ8: =IF(OR(Table2[[#This Row],[TOTAL Bachelor''s Degree - Academic Disadvantage]]="",Table2[[#This Row],[TOTAL Bachelor''s Degree - Academic Disadvantage]]=0 ),"",Table2[[#This Row],[Bachelor''s Degree - nonHDF Academic Disadvantage]]/Table2[[#This Row],[TOTAL Bachelor''s Degree - Academic Disadvantage]]) ->  | EA8: 17 | EB8: =IF(OR(Table2[[#This Row],[TOTAL Bachelor''s Degree - Economic Disadvantage]]="",Table2[[#This Row],[TOTAL Bachelor''s Degree - Economic Disadvantage]]=0 ),"",Table2[[#This Row],[Bachelor''s Degree - nonHDF Economic Disadvantage]]/Table2[[#This Row],[TOTAL Bachelor''s Degree - Economic Disadvantage]]) -> 0.68 | EC8: 34 | ED8: =IF(OR(Table2[[#This Row],[TOTAL Bachelor''s Degree - Adult Learner]]="",Table2[[#This Row],[TOTAL Bachelor''s Degree - Adult Learner]]=0 ),"",Table2[[#This Row],[Bachelor''s Degree - nonHDF Adult Learner]]/Table2[[#This Row],[TOTAL Bachelor''s Degree - Adult Learner]]) -> 0.7727272727 | EE8: 16 | EF8: =IF(OR(Table2[[#This Row],[TOTAL Bachelor''s Degree]]="",Table2[[#This Row],[TOTAL Bachelor''s Degree]]=0 ),"",Table2[[#This Row],[Bachelor''s Degree: HDF]]/Table2[[#This Row],[TOTAL Bachelor''s Degree]]) -> 0.2580645161 | EG8: 3 | EH8: =IF(OR(Table2[[#This Row],[TOTAL Bachelor''s Degree - Academic Disadvantage]]="",Table2[[#This Row],[TOTAL Bachelor''s Degree - Academic Disadvantage]]=0 ),"",Table2[[#This Row],[Bachelor''s Degree: HDF - Academic Disadvantage]]/Table2[[#This Row],[TOTAL Bachelor''s Degree - Academic Disadvantage]]) ->  | EI8: 8 | EJ8: =IF(OR(Table2[[#This Row],[TOTAL Bachelor''s Degree - Economic Disadvantage]]="",Table2[[#This Row],[TOTAL Bachelor''s Degree - Economic Disadvantage]]=0 ),"",Table2[[#This Row],[Bachelor''s Degree: HDF - Economic Disadvantage]]/Table2[[#This Row],[TOTAL Bachelor''s Degree - Economic Disadvantage]]) -> 0.32 | EK8: 10 | EL8: =IF(OR(Table2[[#This Row],[TOTAL Bachelor''s Degree - Adult Learner]]="",Table2[[#This Row],[TOTAL Bachelor''s Degree - Adult Learner]]=0 ),"",Table2[[#This Row],[Bachelor''s Degree: HDF - Adult Learner]]/Table2[[#This Row],[TOTAL Bachelor''s Degree - Adult Learner]]) -> 0.2272727273 | EM8: 3 | EN8: =IF(OR(Table2[[#This Row],[TOTAL Bachelor''s Degree]]="",Table2[[#This Row],[TOTAL Bachelor''s Degree]]=0 ),"",Table2[[#This Row],[TOTAL Bachelor''s Degree: CoV Premium]]/Table2[[#This Row],[TOTAL Bachelor''s Degree]]) -> 0.04838709677
A9: 004003 | B9: Central Texas College | C9: 2018 | D9: 314 | E9: 981 | F9: 559 | G9: =IF(OR(Table2[[#This Row],[GAI Transfer with 15 SCH Total]]="",Table2[[#This Row],[GAI Transfer with 15 SCH Total]]=0 ),"",Table2[[#This Row],[GAI Transfer with 15 SCH - Academic Disadvantage]]/Table2[[#This Row],[GAI Transfer with 15 SCH Total]]) -> 0.5698267074 | H9: 381 | I9: =IF(OR(Table2[[#This Row],[GAI Transfer with 15 SCH Total]]="",Table2[[#This Row],[GAI Transfer with 15 SCH Total]]=0 ),"",Table2[[#This Row],[GAI Transfer with 15 SCH - Economic Disadvantage]]/Table2[[#This Row],[GAI Transfer with 15 SCH Total]]) -> 0.3883792049 | J9: 381 | K9: =IF(OR(Table2[[#This Row],[GAI Transfer with 15 SCH Total]]="",Table2[[#This Row],[GAI Transfer with 15 SCH Total]]=0 ),"",Table2[[#This Row],[GAI Transfer with 15 SCH - Adult Learner]]/Table2[[#This Row],[GAI Transfer with 15 SCH Total]]) -> 0.3883792049 | N9: =IF(OR(Table2[[#This Row],[GAI Co-enrollment with 15 SCH Total]]="", Table2[[#This Row],[GAI Co-enrollment with 15 SCH Total]]=0),"",Table2[[#This Row],[GAI Co-enrollment with 15 SCH -Academic Disadvantage]]/Table2[[#This Row],[GAI Co-enrollment with 15 SCH Total]]) ->  | P9: =IF(OR(Table2[[#This Row],[GAI Co-enrollment with 15 SCH Total]]="", Table2[[#This Row],[GAI Co-enrollment with 15 SCH Total]]=0),"",Table2[[#This Row],[GAI Co-enrollment with 15 SCH - Economic Disadvantage]]/Table2[[#This Row],[GAI Co-enrollment with 15 SCH Total]]) ->  | R9: =IF(OR(Table2[[#This Row],[GAI Co-enrollment with 15 SCH Total]]="",Table2[[#This Row],[GAI Co-enrollment with 15 SCH Total]]=0 ),"",Table2[[#This Row],[GAI Co-enrollment with 15 SCH - Adult Learner]]/Table2[[#This Row],[GAI Co-enrollment with 15 SCH Total]]) ->  | Z9: =IF(OR(Table2[[#This Row],[TOTAL OSA]]="",Table2[[#This Row],[TOTAL OSA]]=0 ),"",Table2[[#This Row],[TOTAL OSA - Academic Disadvantage]]/Table2[[#This Row],[TOTAL OSA]]) ->  | AB9: =IF(OR(Table2[[#This Row],[TOTAL OSA]]="",Table2[[#This Row],[TOTAL OSA]]=0 ),"",Table2[[#This Row],[TOTAL OSA - Economic Disadvantage]]/Table2[[#This Row],[TOTAL OSA]]) ->  | AD9: =IF(OR(Table2[[#This Row],[TOTAL OSA]]="",Table2[[#This Row],[TOTAL OSA]]=0 ),"",Table2[[#This Row],[TOTAL OSA - Adult Learner]]/Table2[[#This Row],[TOTAL OSA]]) ->  | AF9: =IF(OR(Table2[[#This Row],[TOTAL OSA]]="",Table2[[#This Row],[TOTAL OSA]]=0 ),"",Table2[[#This Row],[OSA nonHDF]]/Table2[[#This Row],[TOTAL OSA]]) ->  | AH9: =IF(OR(Table2[[#This Row],[TOTAL OSA - Academic Disadvantage]]="",Table2[[#This Row],[TOTAL OSA - Academic Disadvantage]]=0 ),"",Table2[[#This Row],[OSA - nonHDF Academic Disadvantage]]/Table2[[#This Row],[TOTAL OSA - Academic Disadvantage]]) ->  | AJ9: =IF(OR(Table2[[#This Row],[TOTAL OSA - Economic Disadvantage]]="",Table2[[#This Row],[TOTAL OSA - Economic Disadvantage]]=0 ),"",Table2[[#This Row],[OSA - nonHDF Economic Disadvantage]]/Table2[[#This Row],[TOTAL OSA - Economic Disadvantage]]) ->  | AL9: =IF(OR(Table2[[#This Row],[TOTAL OSA - Adult Learner]]="",Table2[[#This Row],[TOTAL OSA - Adult Learner]]=0 ),"",Table2[[#This Row],[OSA - nonHDF Adult Learner]]/Table2[[#This Row],[TOTAL OSA - Adult Learner]]) ->  | AN9: =IF(OR(Table2[[#This Row],[TOTAL OSA]]="",Table2[[#This Row],[TOTAL OSA]]=0 ),"",Table2[[#This Row],[OSA: HDF]]/Table2[[#This Row],[TOTAL OSA]]) ->  | AP9: =IF(OR(Table2[[#This Row],[TOTAL OSA - Academic Disadvantage]]="",Table2[[#This Row],[TOTAL OSA - Academic Disadvantage]]=0 ),"",Table2[[#This Row],[OSA: HDF Academic Disadvantage]]/Table2[[#This Row],[TOTAL OSA - Academic Disadvantage]]) ->  | AR9: =IF(OR(Table2[[#This Row],[TOTAL OSA - Economic Disadvantage]]="",Table2[[#This Row],[TOTAL OSA - Economic Disadvantage]]=0 ),"",Table2[[#This Row],[OSA: HDF Economic Disadvantage]]/Table2[[#This Row],[TOTAL OSA - Economic Disadvantage]]) ->  | AT9: =IF(OR(Table2[[#This Row],[TOTAL OSA - Adult Learner]]="",Table2[[#This Row],[TOTAL OSA - Adult Learner]]=0 ),"",Table2[[#This Row],[OSA: HDF - Adult Learner]]/Table2[[#This Row],[TOTAL OSA - Adult Learner]]) ->  | AU9: 546 | AV9: 298 | AW9: =IF(OR(Table2[[#This Row],[TOTAL Certificate I or II]]="",Table2[[#This Row],[TOTAL Certificate I or II]]=0 ),"",Table2[[#This Row],[TOTAL Certificate I or II - Academic Disadvantage]]/Table2[[#This Row],[TOTAL Certificate I or II]]) -> 0.5457875458 | AX9: 237 | AY9: =IF(OR(Table2[[#This Row],[TOTAL Certificate I or II]]="",Table2[[#This Row],[TOTAL Certificate I or II]]=0 ),"",Table2[[#This Row],[TOTAL Certificate I or II - Economic Disadvantage]]/Table2[[#This Row],[TOTAL Certificate I or II]]) -> 0.4340659341 | AZ9: 430 | BA9: =IF(OR(Table2[[#This Row],[TOTAL Certificate I or II]]="",Table2[[#This Row],[TOTAL Certificate I or II]]=0 ),"",Table2[[#This Row],[TOTAL Certificate I or II - Adult Learner]]/Table2[[#This Row],[TOTAL Certificate I or II]]) -> 0.7875457875 | BB9: 268 | BC9: =IF(OR(Table2[[#This Row],[TOTAL Certificate I or II]]="",Table2[[#This Row],[TOTAL Certificate I or II]]=0 ),"",Table2[[#This Row],[Certificate I or II nonHDF]]/Table2[[#This Row],[TOTAL Certificate I or II]]) -> 0.4908424908 | BD9: 153 | BE9: =IF(OR(Table2[[#This Row],[OSA: HDF Academic Disadvantage]]="",Table2[[#This Row],[OSA: HDF Academic Disadvantage]]=0 ),"",Table2[[#This Row],[Certificate I or II - nonHDF Academic Disadvantage]]/Table2[[#This Row],[OSA: HDF Academic Disadvantage]]) ->  | BF9: 125 | BG9: =IF(OR(Table2[[#This Row],[TOTAL Certificate I or II - Economic Disadvantage]]="",Table2[[#This Row],[TOTAL Certificate I or II - Economic Disadvantage]]=0 ),"",Table2[[#This Row],[Certificate I or II - nonHDF Economic Disadvantage]]/Table2[[#This Row],[TOTAL Certificate I or II - Economic Disadvantage]]) -> 0.5274261603 | BH9: 213 | BI9: =IF(OR(Table2[[#This Row],[TOTAL Certificate I or II - Adult Learner]]="",Table2[[#This Row],[TOTAL Certificate I or II - Adult Learner]]=0 ),"",Table2[[#This Row],[Certificate I or II - nonHDF Adult Learner]]/Table2[[#This Row],[TOTAL Certificate I or II - Adult Learner]]) -> 0.4953488372 | BJ9: 278 | BK9: =IF(OR(Table2[[#This Row],[TOTAL Certificate I or II]]="",Table2[[#This Row],[TOTAL Certificate I or II]]=0 ),"",Table2[[#This Row],[Certificate I or II: HDF]]/Table2[[#This Row],[TOTAL Certificate I or II]]) -> 0.5091575092 | BL9: 145 | BM9: =IF(OR(Table2[[#This Row],[TOTAL Certificate I or II - Academic Disadvantage]]="",Table2[[#This Row],[TOTAL Certificate I or II - Academic Disadvantage]]=0 ),"",Table2[[#This Row],[Certificate I or II: HDF Academic Disadvantage]]/Table2[[#This Row],[TOTAL Certificate I or II - Academic Disadvantage]]) -> 0.4865771812 | BN9: 112 | BO9: =IF(OR(Table2[[#This Row],[TOTAL Certificate I or II - Economic Disadvantage]]="",Table2[[#This Row],[TOTAL Certificate I or II - Economic Disadvantage]]=0 ),"",Table2[[#This Row],[Certificate I or II: HDF Economic Disadvantage]]/Table2[[#This Row],[TOTAL Certificate I or II - Economic Disadvantage]]) -> 0.4725738397 | BP9: 217 | BQ9: =IF(OR(Table2[[#This Row],[TOTAL Certificate I or II - Adult Learner]]="",Table2[[#This Row],[TOTAL Certificate I or II - Adult Learner]]=0 ),"",Table2[[#This Row],[Certificate I or II: HDF Adult Learner]]/Table2[[#This Row],[TOTAL Certificate I or II - Adult Learner]]) -> 0.5046511628 | BR9: 17 | BS9: =IF(OR(Table2[[#This Row],[TOTAL Certificate I or II]]="",Table2[[#This Row],[TOTAL Certificate I or II]]=0 ),"",Table2[[#This Row],[TOTAL Cert I or II: COV Premium]]/Table2[[#This Row],[TOTAL Certificate I or II]]) -> 0.03113553114 | BT9: 0 | BU9: 0 | BV9: =IF(OR(Table2[[#This Row],[TOTAL Advanced Technical Certificate]]="",Table2[[#This Row],[TOTAL Advanced Technical Certificate]]=0 ),"",Table2[[#This Row],[TOTAL Advanced Technical Certificate - Academic Disadvantage]]/Table2[[#This Row],[TOTAL Advanced Technical Certificate]]) ->  | BW9: 0 | BX9: =IF(OR(Table2[[#This Row],[TOTAL Advanced Technical Certificate]]="",Table2[[#This Row],[TOTAL Advanced Technical Certificate]]=0 ),"",Table2[[#This Row],[TOTAL Advanced Technical Certificate - Economic Disadvantage]]/Table2[[#This Row],[TOTAL Advanced Technical Certificate]]) ->  | BY9: 0 | BZ9: =IF(OR(Table2[[#This Row],[TOTAL Advanced Technical Certificate]]="",Table2[[#This Row],[TOTAL Advanced Technical Certificate]]=0 ),"",Table2[[#This Row],[TOTAL Advanced Technical Certificate - Adult Learner]]/Table2[[#This Row],[TOTAL Advanced Technical Certificate]]) ->  | CA9: 0 | CB9: =IF(OR(Table2[[#This Row],[TOTAL Advanced Technical Certificate]]="",Table2[[#This Row],[TOTAL Advanced Technical Certificate]]=0 ),"",Table2[[#This Row],[Advanced Technical Certificate nonHDF]]/Table2[[#This Row],[TOTAL Advanced Technical Certificate]]) ->  | CC9: 0 | CD9: =IF(OR(Table2[[#This Row],[TOTAL Advanced Technical Certificate - Academic Disadvantage]]="",Table2[[#This Row],[TOTAL Advanced Technical Certificate - Academic Disadvantage]]=0 ),"",Table2[[#This Row],[Advanced Technical Certificate nonHDF - Academic Disadvantage]]/Table2[[#This Row],[TOTAL Advanced Technical Certificate - Academic Disadvantage]]) ->  | CE9: 0 | CF9: =IF(OR(Table2[[#This Row],[TOTAL Advanced Technical Certificate - Economic Disadvantage]]="",Table2[[#This Row],[TOTAL Advanced Technical Certificate - Economic Disadvantage]]=0 ),"",Table2[[#This Row],[Advanced Technical Certificate - nonHDF Economic Disadvantage]]/Table2[[#This Row],[TOTAL Advanced Technical Certificate - Economic Disadvantage]]) ->  | CG9: 0 | CH9: =IF(OR(Table2[[#This Row],[TOTAL Advanced Technical Certificate - Adult Learner]]="",Table2[[#This Row],[TOTAL Advanced Technical Certificate - Adult Learner]]=0 ),"",Table2[[#This Row],[Advanced Technical Certificate - nonHDF Adult Learner]]/Table2[[#This Row],[TOTAL Advanced Technical Certificate - Adult Learner]]) ->  | CI9: 0 | CJ9: =IF(OR(Table2[[#This Row],[TOTAL Advanced Technical Certificate]]="",Table2[[#This Row],[TOTAL Advanced Technical Certificate]]=0 ),"",Table2[[#This Row],[Advanced Technical Certificate: HDF]]/Table2[[#This Row],[TOTAL Advanced Technical Certificate]]) ->  | CK9: 0 | CL9: =IF(OR(Table2[[#This Row],[TOTAL Advanced Technical Certificate - Academic Disadvantage]]="",Table2[[#This Row],[TOTAL Advanced Technical Certificate - Academic Disadvantage]]=0 ),"",Table2[[#This Row],[Advanced Technical Certificate: HDF Academic Disadvantage]]/Table2[[#This Row],[TOTAL Advanced Technical Certificate - Academic Disadvantage]]) ->  | CM9: 0 | CN9: =IF(OR(Table2[[#This Row],[TOTAL Advanced Technical Certificate - Economic Disadvantage]]="",Table2[[#This Row],[TOTAL Advanced Technical Certificate - Economic Disadvantage]]=0 ),"",Table2[[#This Row],[Advanced Technical Certificate: HDF Economic Disadvantage]]/Table2[[#This Row],[TOTAL Advanced Technical Certificate - Economic Disadvantage]]) ->  | CO9: 0 | CP9: =IF(OR(Table2[[#This Row],[TOTAL Advanced Technical Certificate - Adult Learner]]="",Table2[[#This Row],[TOTAL Advanced Technical Certificate - Adult Learner]]=0 ),"",Table2[[#This Row],[Advanced Technical Certificate: HDF Adult Learner]]/Table2[[#This Row],[TOTAL Advanced Technical Certificate - Adult Learner]]) ->  | CQ9: 1709 | CR9: 832 | CS9: =IF(OR(Table2[[#This Row],[TOTAL Associate Degree]]="",Table2[[#This Row],[TOTAL Associate Degree]]=0 ),"",Table2[[#This Row],[TOTAL Associate Degree - Academic Disadvantage]]/Table2[[#This Row],[TOTAL Associate Degree]]) -> 0.4868344061 | CT9: 760 | CU9: =IF(OR(Table2[[#This Row],[TOTAL Associate Degree]]="",Table2[[#This Row],[TOTAL Associate Degree]]=0 ),"",Table2[[#This Row],[TOTAL Associate Degree - Economic Disadvantage]]/Table2[[#This Row],[TOTAL Associate Degree]]) -> 0.4447045056 | CV9: 992 | CW9: =IF(OR(Table2[[#This Row],[TOTAL Associate Degree]]="",Table2[[#This Row],[TOTAL Associate Degree]]=0 ),"",Table2[[#This Row],[TOTAL Associate Degree - Adult Learner]]/Table2[[#This Row],[TOTAL Associate Degree]]) -> 0.5804564073 | CX9: 1482 | CY9: =IF(OR(Table2[[#This Row],[TOTAL Associate Degree]]="",Table2[[#This Row],[TOTAL Associate Degree]]=0 ),"",Table2[[#This Row],[Associate Degree nonHDF]]/Table2[[#This Row],[TOTAL Associate Degree]]) -> 0.8671737858 | CZ9: 734 | DA9: =IF(OR(Table2[[#This Row],[TOTAL Associate Degree - Academic Disadvantage]]="",Table2[[#This Row],[TOTAL Associate Degree - Academic Disadvantage]]=0 ),"",Table2[[#This Row],[Associate Degree - nonHDF Academic Disadvantage]]/Table2[[#This Row],[TOTAL Associate Degree - Academic Disadvantage]]) -> 0.8822115385 | DB9: 655 | DC9: =IF(OR(Table2[[#This Row],[TOTAL Associate Degree - Economic Disadvantage]]="",Table2[[#This Row],[TOTAL Associate Degree - Economic Disadvantage]]=0 ),"",Table2[[#This Row],[Associate Degree - nonHDF Economic Disadvantage]]/Table2[[#This Row],[TOTAL Associate Degree - Economic Disadvantage]]) -> 0.8618421053 | DD9: 826 | DE9: =IF(OR(Table2[[#This Row],[TOTAL Associate Degree - Adult Learner]]="",Table2[[#This Row],[TOTAL Associate Degree - Adult Learner]]=0 ),"",Table2[[#This Row],[Associate Degree - nonHDF Adult Learner]]/Table2[[#This Row],[TOTAL Associate Degree - Adult Learner]]) -> 0.8326612903 | DF9: 227 | DG9: =IF(OR(Table2[[#This Row],[TOTAL Associate Degree]]="",Table2[[#This Row],[TOTAL Associate Degree]]=0 ),"",Table2[[#This Row],[Associate Degree: HDF]]/Table2[[#This Row],[TOTAL Associate Degree]]) -> 0.1328262142 | DH9: 98 | DI9: =IF(OR(Table2[[#This Row],[TOTAL Associate Degree - Academic Disadvantage]]="",Table2[[#This Row],[TOTAL Associate Degree - Academic Disadvantage]]=0 ),"",Table2[[#This Row],[Associate Degree: HDF Academic Disadvantage]]/Table2[[#This Row],[TOTAL Associate Degree - Academic Disadvantage]]) -> 0.1177884615 | DJ9: 105 | DK9: =IF(OR(Table2[[#This Row],[TOTAL Associate Degree - Economic Disadvantage]]="",Table2[[#This Row],[TOTAL Associate Degree - Economic Disadvantage]]=0 ),"",Table2[[#This Row],[Associate Degree: HDF Economic Disadvantage]]/Table2[[#This Row],[TOTAL Associate Degree - Economic Disadvantage]]) -> 0.1381578947 | DL9: 166 | DM9: =IF(OR(Table2[[#This Row],[TOTAL Associate Degree - Adult Learner]]="",Table2[[#This Row],[TOTAL Associate Degree - Adult Learner]]=0 ),"",Table2[[#This Row],[Associate Degree: HDF Adult Learner]]/Table2[[#This Row],[TOTAL Associate Degree - Adult Learner]]) -> 0.1673387097 | DN9: 38 | DO9: =IF(OR(Table2[[#This Row],[TOTAL Associate Degree]]="",Table2[[#This Row],[TOTAL Associate Degree]]=0 ),"",Table2[[#This Row],[TOTAL Associate: CoV Premium]]/Table2[[#This Row],[TOTAL Associate Degree]]) -> 0.02223522528 | DP9: 0 | DQ9: 0 | DR9: =IF(OR(Table2[[#This Row],[TOTAL Bachelor''s Degree]]="",Table2[[#This Row],[TOTAL Bachelor''s Degree]]=0 ),"",Table2[[#This Row],[TOTAL Bachelor''s Degree - Academic Disadvantage]]/Table2[[#This Row],[TOTAL Bachelor''s Degree]]) ->  | DS9: 0 | DT9: =IF(OR(Table2[[#This Row],[TOTAL Bachelor''s Degree]]="",Table2[[#This Row],[TOTAL Bachelor''s Degree]]=0 ),"",Table2[[#This Row],[TOTAL Bachelor''s Degree - Economic Disadvantage]]/Table2[[#This Row],[TOTAL Bachelor''s Degree]]) ->  | DU9: 0 | DV9: =IF(OR(Table2[[#This Row],[TOTAL Bachelor''s Degree]]="",Table2[[#This Row],[TOTAL Bachelor''s Degree]]=0 ),"",Table2[[#This Row],[TOTAL Bachelor''s Degree - Adult Learner]]/Table2[[#This Row],[TOTAL Bachelor''s Degree]]) ->  | DW9: 0 | DX9: =IF(OR(Table2[[#This Row],[TOTAL Bachelor''s Degree]]="",Table2[[#This Row],[TOTAL Bachelor''s Degree]]=0 ),"",Table2[[#This Row],[Bachelor''s Degree nonHDF]]/Table2[[#This Row],[TOTAL Bachelor''s Degree]]) ->  | DY9: 0 | DZ9: =IF(OR(Table2[[#This Row],[TOTAL Bachelor''s Degree - Academic Disadvantage]]="",Table2[[#This Row],[TOTAL Bachelor''s Degree - Academic Disadvantage]]=0 ),"",Table2[[#This Row],[Bachelor''s Degree - nonHDF Academic Disadvantage]]/Table2[[#This Row],[TOTAL Bachelor''s Degree - Academic Disadvantage]]) ->  | EA9: 0 | EB9: =IF(OR(Table2[[#This Row],[TOTAL Bachelor''s Degree - Economic Disadvantage]]="",Table2[[#This Row],[TOTAL Bachelor''s Degree - Economic Disadvantage]]=0 ),"",Table2[[#This Row],[Bachelor''s Degree - nonHDF Economic Disadvantage]]/Table2[[#This Row],[TOTAL Bachelor''s Degree - Economic Disadvantage]]) ->  | EC9: 0 | ED9: =IF(OR(Table2[[#This Row],[TOTAL Bachelor''s Degree - Adult Learner]]="",Table2[[#This Row],[TOTAL Bachelor''s Degree - Adult Learner]]=0 ),"",Table2[[#This Row],[Bachelor''s Degree - nonHDF Adult Learner]]/Table2[[#This Row],[TOTAL Bachelor''s Degree - Adult Learner]]) ->  | EE9: 0 | EF9: =IF(OR(Table2[[#This Row],[TOTAL Bachelor''s Degree]]="",Table2[[#This Row],[TOTAL Bachelor''s Degree]]=0 ),"",Table2[[#This Row],[Bachelor''s Degree: HDF]]/Table2[[#This Row],[TOTAL Bachelor''s Degree]]) ->  | EG9: 0 | EH9: =IF(OR(Table2[[#This Row],[TOTAL Bachelor''s Degree - Academic Disadvantage]]="",Table2[[#This Row],[TOTAL Bachelor''s Degree - Academic Disadvantage]]=0 ),"",Table2[[#This Row],[Bachelor''s Degree: HDF - Academic Disadvantage]]/Table2[[#This Row],[TOTAL Bachelor''s Degree - Academic Disadvantage]]) ->  | EI9: 0 | EJ9: =IF(OR(Table2[[#This Row],[TOTAL Bachelor''s Degree - Economic Disadvantage]]="",Table2[[#This Row],[TOTAL Bachelor''s Degree - Economic Disadvantage]]=0 ),"",Table2[[#This Row],[Bachelor''s Degree: HDF - Economic Disadvantage]]/Table2[[#This Row],[TOTAL Bachelor''s Degree - Economic Disadvantage]]) ->  | EK9: 0 | EL9: =IF(OR(Table2[[#This Row],[TOTAL Bachelor''s Degree - Adult Learner]]="",Table2[[#This Row],[TOTAL Bachelor''s Degree - Adult Learner]]=0 ),"",Table2[[#This Row],[Bachelor''s Degree: HDF - Adult Learner]]/Table2[[#This Row],[TOTAL Bachelor''s Degree - Adult Learner]]) ->  | EM9: 0 | EN9: =IF(OR(Table2[[#This Row],[TOTAL Bachelor''s Degree]]="",Table2[[#This Row],[TOTAL Bachelor''s Degree]]=0 ),"",Table2[[#This Row],[TOTAL Bachelor''s Degree: CoV Premium]]/Table2[[#This Row],[TOTAL Bachelor''s Degree]]) -> 
A10: 003553 | B10: Cisco College | C10: 2018 | D10: 266 | E10: 211 | F10: 95 | G10: =IF(OR(Table2[[#This Row],[GAI Transfer with 15 SCH Total]]="",Table2[[#This Row],[GAI Transfer with 15 SCH Total]]=0 ),"",Table2[[#This Row],[GAI Transfer with 15 SCH - Academic Disadvantage]]/Table2[[#This Row],[GAI Transfer with 15 SCH Total]]) -> 0.4502369668 | H10: 85 | I10: =IF(OR(Table2[[#This Row],[GAI Transfer with 15 SCH Total]]="",Table2[[#This Row],[GAI Transfer with 15 SCH Total]]=0 ),"",Table2[[#This Row],[GAI Transfer with 15 SCH - Economic Disadvantage]]/Table2[[#This Row],[GAI Transfer with 15 SCH Total]]) -> 0.4028436019 | J10: 41 | K10: =IF(OR(Table2[[#This Row],[GAI Transfer with 15 SCH Total]]="",Table2[[#This Row],[GAI Transfer with 15 SCH Total]]=0 ),"",Table2[[#This Row],[GAI Transfer with 15 SCH - Adult Learner]]/Table2[[#This Row],[GAI Transfer with 15 SCH Total]]) -> 0.1943127962 | N10: =IF(OR(Table2[[#This Row],[GAI Co-enrollment with 15 SCH Total]]="", Table2[[#This Row],[GAI Co-enrollment with 15 SCH Total]]=0),"",Table2[[#This Row],[GAI Co-enrollment with 15 SCH -Academic Disadvantage]]/Table2[[#This Row],[GAI Co-enrollment with 15 SCH Total]]) ->  | P10: =IF(OR(Table2[[#This Row],[GAI Co-enrollment with 15 SCH Total]]="", Table2[[#This Row],[GAI Co-enrollment with 15 SCH Total]]=0),"",Table2[[#This Row],[GAI Co-enrollment with 15 SCH - Economic Disadvantage]]/Table2[[#This Row],[GAI Co-enrollment with 15 SCH Total]]) ->  | R10: =IF(OR(Table2[[#This Row],[GAI Co-enrollment with 15 SCH Total]]="",Table2[[#This Row],[GAI Co-enrollment with 15 SCH Total]]=0 ),"",Table2[[#This Row],[GAI Co-enrollment with 15 SCH - Adult Learner]]/Table2[[#This Row],[GAI Co-enrollment with 15 SCH Total]]) ->  | Z10: =IF(OR(Table2[[#This Row],[TOTAL OSA]]="",Table2[[#This Row],[TOTAL OSA]]=0 ),"",Table2[[#This Row],[TOTAL OSA - Academic Disadvantage]]/Table2[[#This Row],[TOTAL OSA]]) ->  | AB10: =IF(OR(Table2[[#This Row],[TOTAL OSA]]="",Table2[[#This Row],[TOTAL OSA]]=0 ),"",Table2[[#This Row],[TOTAL OSA - Economic Disadvantage]]/Table2[[#This Row],[TOTAL OSA]]) ->  | AD10: =IF(OR(Table2[[#This Row],[TOTAL OSA]]="",Table2[[#This Row],[TOTAL OSA]]=0 ),"",Table2[[#This Row],[TOTAL OSA - Adult Learner]]/Table2[[#This Row],[TOTAL OSA]]) ->  | AF10: =IF(OR(Table2[[#This Row],[TOTAL OSA]]="",Table2[[#This Row],[TOTAL OSA]]=0 ),"",Table2[[#This Row],[OSA nonHDF]]/Table2[[#This Row],[TOTAL OSA]]) ->  | AH10: =IF(OR(Table2[[#This Row],[TOTAL OSA - Academic Disadvantage]]="",Table2[[#This Row],[TOTAL OSA - Academic Disadvantage]]=0 ),"",Table2[[#This Row],[OSA - nonHDF Academic Disadvantage]]/Table2[[#This Row],[TOTAL OSA - Academic Disadvantage]]) ->  | AJ10: =IF(OR(Table2[[#This Row],[TOTAL OSA - Economic Disadvantage]]="",Table2[[#This Row],[TOTAL OSA - Economic Disadvantage]]=0 ),"",Table2[[#This Row],[OSA - nonHDF Economic Disadvantage]]/Table2[[#This Row],[TOTAL OSA - Economic Disadvantage]]) ->  | AL10: =IF(OR(Table2[[#This Row],[TOTAL OSA - Adult Learner]]="",Table2[[#This Row],[TOTAL OSA - Adult Learner]]=0 ),"",Table2[[#This Row],[OSA - nonHDF Adult Learner]]/Table2[[#This Row],[TOTAL OSA - Adult Learner]]) ->  | AN10: =IF(OR(Table2[[#This Row],[TOTAL OSA]]="",Table2[[#This Row],[TOTAL OSA]]=0 ),"",Table2[[#This Row],[OSA: HDF]]/Table2[[#This Row],[TOTAL OSA]]) ->  | AP10: =IF(OR(Table2[[#This Row],[TOTAL OSA - Academic Disadvantage]]="",Table2[[#This Row],[TOTAL OSA - Academic Disadvantage]]=0 ),"",Table2[[#This Row],[OSA: HDF Academic Disadvantage]]/Table2[[#This Row],[TOTAL OSA - Academic Disadvantage]]) ->  | AR10: =IF(OR(Table2[[#This Row],[TOTAL OSA - Economic Disadvantage]]="",Table2[[#This Row],[TOTAL OSA - Economic Disadvantage]]=0 ),"",Table2[[#This Row],[OSA: HDF Economic Disadvantage]]/Table2[[#This Row],[TOTAL OSA - Economic Disadvantage]]) ->  | AT10: =IF(OR(Table2[[#This Row],[TOTAL OSA - Adult Learner]]="",Table2[[#This Row],[TOTAL OSA - Adult Learner]]=0 ),"",Table2[[#This Row],[OSA: HDF - Adult Learner]]/Table2[[#This Row],[TOTAL OSA - Adult Learner]]) ->  | AU10: 267 | AV10: 108 | AW10: =IF(OR(Table2[[#This Row],[TOTAL Certificate I or II]]="",Table2[[#This Row],[TOTAL Certificate I or II]]=0 ),"",Table2[[#This Row],[TOTAL Certificate I or II - Academic Disadvantage]]/Table2[[#This Row],[TOTAL Certificate I or II]]) -> 0.404494382 | AX10: 150 | AY10: =IF(OR(Table2[[#This Row],[TOTAL Certificate I or II]]="",Table2[[#This Row],[TOTAL Certificate I or II]]=0 ),"",Table2[[#This Row],[TOTAL Certificate I or II - Economic Disadvantage]]/Table2[[#This Row],[TOTAL Certificate I or II]]) -> 0.5617977528 | AZ10: 147 | BA10: =IF(OR(Table2[[#This Row],[TOTAL Certificate I or II]]="",Table2[[#This Row],[TOTAL Certificate I or II]]=0 ),"",Table2[[#This Row],[TOTAL Certificate I or II - Adult Learner]]/Table2[[#This Row],[TOTAL Certificate I or II]]) -> 0.5505617978 | BB10: 126 | BC10: =IF(OR(Table2[[#This Row],[TOTAL Certificate I or II]]="",Table2[[#This Row],[TOTAL Certificate I or II]]=0 ),"",Table2[[#This Row],[Certificate I or II nonHDF]]/Table2[[#This Row],[TOTAL Certificate I or II]]) -> 0.4719101124 | BD10: 46 | BE10: =IF(OR(Table2[[#This Row],[OSA: HDF Academic Disadvantage]]="",Table2[[#This Row],[OSA: HDF Academic Disadvantage]]=0 ),"",Table2[[#This Row],[Certificate I or II - nonHDF Academic Disadvantage]]/Table2[[#This Row],[OSA: HDF Academic Disadvantage]]) ->  | BF10: 53 | BG10: =IF(OR(Table2[[#This Row],[TOTAL Certificate I or II - Economic Disadvantage]]="",Table2[[#This Row],[TOTAL Certificate I or II - Economic Disadvantage]]=0 ),"",Table2[[#This Row],[Certificate I or II - nonHDF Economic Disadvantage]]/Table2[[#This Row],[TOTAL Certificate I or II - Economic Disadvantage]]) -> 0.3533333333 | BH10: 61 | BI10: =IF(OR(Table2[[#This Row],[TOTAL Certificate I or II - Adult Learner]]="",Table2[[#This Row],[TOTAL Certificate I or II - Adult Learner]]=0 ),"",Table2[[#This Row],[Certificate I or II - nonHDF Adult Learner]]/Table2[[#This Row],[TOTAL Certificate I or II - Adult Learner]]) -> 0.4149659864 | BJ10: 141 | BK10: =IF(OR(Table2[[#This Row],[TOTAL Certificate I or II]]="",Table2[[#This Row],[TOTAL Certificate I or II]]=0 ),"",Table2[[#This Row],[Certificate I or II: HDF]]/Table2[[#This Row],[TOTAL Certificate I or II]]) -> 0.5280898876 | BL10: 62 | BM10: =IF(OR(Table2[[#This Row],[TOTAL Certificate I or II - Academic Disadvantage]]="",Table2[[#This Row],[TOTAL Certificate I or II - Academic Disadvantage]]=0 ),"",Table2[[#This Row],[Certificate I or II: HDF Academic Disadvantage]]/Table2[[#This Row],[TOTAL Certificate I or II - Academic Disadvantage]]) -> 0.5740740741 | BN10: 97 | BO10: =IF(OR(Table2[[#This Row],[TOTAL Certificate I or II - Economic Disadvantage]]="",Table2[[#This Row],[TOTAL Certificate I or II - Economic Disadvantage]]=0 ),"",Table2[[#This Row],[Certificate I or II: HDF Economic Disadvantage]]/Table2[[#This Row],[TOTAL Certificate I or II - Economic Disadvantage]]) -> 0.6466666667 | BP10: 86 | BQ10: =IF(OR(Table2[[#This Row],[TOTAL Certificate I or II - Adult Learner]]="",Table2[[#This Row],[TOTAL Certificate I or II - Adult Learner]]=0 ),"",Table2[[#This Row],[Certificate I or II: HDF Adult Learner]]/Table2[[#This Row],[TOTAL Certificate I or II - Adult Learner]]) -> 0.5850340136 | BR10: 6 | BS10: =IF(OR(Table2[[#This Row],[TOTAL Certificate I or II]]="",Table2[[#This Row],[TOTAL Certificate I or II]]=0 ),"",Table2[[#This Row],[TOTAL Cert I or II: COV Premium]]/Table2[[#This Row],[TOTAL Certificate I or II]]) -> 0.02247191011 | BT10: 0 | BU10: 0 | BV10: =IF(OR(Table2[[#This Row],[TOTAL Advanced Technical Certificate]]="",Table2[[#This Row],[TOTAL Advanced Technical Certificate]]=0 ),"",Table2[[#This Row],[TOTAL Advanced Technical Certificate - Academic Disadvantage]]/Table2[[#This Row],[TOTAL Advanced Technical Certificate]]) ->  | BW10: 0 | BX10: =IF(OR(Table2[[#This Row],[TOTAL Advanced Technical Certificate]]="",Table2[[#This Row],[TOTAL Advanced Technical Certificate]]=0 ),"",Table2[[#This Row],[TOTAL Advanced Technical Certificate - Economic Disadvantage]]/Table2[[#This Row],[TOTAL Advanced Technical Certificate]]) ->  | BY10: 0 | BZ10: =IF(OR(Table2[[#This Row],[TOTAL Advanced Technical Certificate]]="",Table2[[#This Row],[TOTAL Advanced Technical Certificate]]=0 ),"",Table2[[#This Row],[TOTAL Advanced Technical Certificate - Adult Learner]]/Table2[[#This Row],[TOTAL Advanced Technical Certificate]]) ->  | CA10: 0 | CB10: =IF(OR(Table2[[#This Row],[TOTAL Advanced Technical Certificate]]="",Table2[[#This Row],[TOTAL Advanced Technical Certificate]]=0 ),"",Table2[[#This Row],[Advanced Technical Certificate nonHDF]]/Table2[[#This Row],[TOTAL Advanced Technical Certificate]]) ->  | CC10: 0 | CD10: =IF(OR(Table2[[#This Row],[TOTAL Advanced Technical Certificate - Academic Disadvantage]]="",Table2[[#This Row],[TOTAL Advanced Technical Certificate - Academic Disadvantage]]=0 ),"",Table2[[#This Row],[Advanced Technical Certificate nonHDF - Academic Disadvantage]]/Table2[[#This Row],[TOTAL Advanced Technical Certificate - Academic Disadvantage]]) ->  | CE10: 0 | CF10: =IF(OR(Table2[[#This Row],[TOTAL Advanced Technical Certificate - Economic Disadvantage]]="",Table2[[#This Row],[TOTAL Advanced Technical Certificate - Economic Disadvantage]]=0 ),"",Table2[[#This Row],[Advanced Technical Certificate - nonHDF Economic Disadvantage]]/Table2[[#This Row],[TOTAL Advanced Technical Certificate - Economic Disadvantage]]) ->  | CG10: 0 | CH10: =IF(OR(Table2[[#This Row],[TOTAL Advanced Technical Certificate - Adult Learner]]="",Table2[[#This Row],[TOTAL Advanced Technical Certificate - Adult Learner]]=0 ),"",Table2[[#This Row],[Advanced Technical Certificate - nonHDF Adult Learner]]/Table2[[#This Row],[TOTAL Advanced Technical Certificate - Adult Learner]]) ->  | CI10: 0 | CJ10: =IF(OR(Table2[[#This Row],[TOTAL Advanced Technical Certificate]]="",Table2[[#This Row],[TOTAL Advanced Technical Certificate]]=0 ),"",Table2[[#This Row],[Advanced Technical Certificate: HDF]]/Table2[[#This Row],[TOTAL Advanced Technical Certificate]]) ->  | CK10: 0 | CL10: =IF(OR(Table2[[#This Row],[TOTAL Advanced Technical Certificate - Academic Disadvantage]]="",Table2[[#This Row],[TOTAL Advanced Technical Certificate - Academic Disadvantage]]=0 ),"",Table2[[#This Row],[Advanced Technical Certificate: HDF Academic Disadvantage]]/Table2[[#This Row],[TOTAL Advanced Technical Certificate - Academic Disadvantage]]) ->  | CM10: 0 | CN10: =IF(OR(Table2[[#This Row],[TOTAL Advanced Technical Certificate - Economic Disadvantage]]="",Table2[[#This Row],[TOTAL Advanced Technical Certificate - Economic Disadvantage]]=0 ),"",Table2[[#This Row],[Advanced Technical Certificate: HDF Economic Disadvantage]]/Table2[[#This Row],[TOTAL Advanced Technical Certificate - Economic Disadvantage]]) ->  | CO10: 0 | CP10: =IF(OR(Table2[[#This Row],[TOTAL Advanced Technical Certificate - Adult Learner]]="",Table2[[#This Row],[TOTAL Advanced Technical Certificate - Adult Learner]]=0 ),"",Table2[[#This Row],[Advanced Technical Certificate: HDF Adult Learner]]/Table2[[#This Row],[TOTAL Advanced Technical Certificate - Adult Learner]]) ->  | CQ10: 426 | CR10: 190 | CS10: =IF(OR(Table2[[#This Row],[TOTAL Associate Degree]]="",Table2[[#This Row],[TOTAL Associate Degree]]=0 ),"",Table2[[#This Row],[TOTAL Associate Degree - Academic Disadvantage]]/Table2[[#This Row],[TOTAL Associate Degree]]) -> 0.4460093897 | CT10: 220 | CU10: =IF(OR(Table2[[#This Row],[TOTAL Associate Degree]]="",Table2[[#This Row],[TOTAL Associate Degree]]=0 ),"",Table2[[#This Row],[TOTAL Associate Degree - Economic Disadvantage]]/Table2[[#This Row],[TOTAL Associate Degree]]) -> 0.5164319249 | CV10: 144 | CW10: =IF(OR(Table2[[#This Row],[TOTAL Associate Degree]]="",Table2[[#This Row],[TOTAL Associate Degree]]=0 ),"",Table2[[#This Row],[TOTAL Associate Degree - Adult Learner]]/Table2[[#This Row],[TOTAL Associate Degree]]) -> 0.338028169 | CX10: 338 | CY10: =IF(OR(Table2[[#This Row],[TOTAL Associate Degree]]="",Table2[[#This Row],[TOTAL Associate Degree]]=0 ),"",Table2[[#This Row],[Associate Degree nonHDF]]/Table2[[#This Row],[TOTAL Associate Degree]]) -> 0.79342723 | CZ10: 155 | DA10: =IF(OR(Table2[[#This Row],[TOTAL Associate Degree - Academic Disadvantage]]="",Table2[[#This Row],[TOTAL Associate Degree - Academic Disadvantage]]=0 ),"",Table2[[#This Row],[Associate Degree - nonHDF Academic Disadvantage]]/Table2[[#This Row],[TOTAL Associate Degree - Academic Disadvantage]]) -> 0.8157894737 | DB10: 165 | DC10: =IF(OR(Table2[[#This Row],[TOTAL Associate Degree - Economic Disadvantage]]="",Table2[[#This Row],[TOTAL Associate Degree - Economic Disadvantage]]=0 ),"",Table2[[#This Row],[Associate Degree - nonHDF Economic Disadvantage]]/Table2[[#This Row],[TOTAL Associate Degree - Economic Disadvantage]]) -> 0.75 | DD10: 88 | DE10: =IF(OR(Table2[[#This Row],[TOTAL Associate Degree - Adult Learner]]="",Table2[[#This Row],[TOTAL Associate Degree - Adult Learner]]=0 ),"",Table2[[#This Row],[Associate Degree - nonHDF Adult Learner]]/Table2[[#This Row],[TOTAL Associate Degree - Adult Learner]]) -> 0.6111111111 | DF10: 88 | DG10: =IF(OR(Table2[[#This Row],[TOTAL Associate Degree]]="",Table2[[#This Row],[TOTAL Associate Degree]]=0 ),"",Table2[[#This Row],[Associate Degree: HDF]]/Table2[[#This Row],[TOTAL Associate Degree]]) -> 0.20657277 | DH10: 35 | DI10: =IF(OR(Table2[[#This Row],[TOTAL Associate Degree - Academic Disadvantage]]="",Table2[[#This Row],[TOTAL Associate Degree - Academic Disadvantage]]=0 ),"",Table2[[#This Row],[Associate Degree: HDF Academic Disadvantage]]/Table2[[#This Row],[TOTAL Associate Degree - Academic Disadvantage]]) -> 0.1842105263 | DJ10: 55 | DK10: =IF(OR(Table2[[#This Row],[TOTAL Associate Degree - Economic Disadvantage]]="",Table2[[#This Row],[TOTAL Associate Degree - Economic Disadvantage]]=0 ),"",Table2[[#This Row],[Associate Degree: HDF Economic Disadvantage]]/Table2[[#This Row],[TOTAL Associate Degree - Economic Disadvantage]]) -> 0.25 | DL10: 56 | DM10: =IF(OR(Table2[[#This Row],[TOTAL Associate Degree - Adult Learner]]="",Table2[[#This Row],[TOTAL Associate Degree - Adult Learner]]=0 ),"",Table2[[#This Row],[Associate Degree: HDF Adult Learner]]/Table2[[#This Row],[TOTAL Associate Degree - Adult Learner]]) -> 0.3888888889 | DN10: 20 | DO10: =IF(OR(Table2[[#This Row],[TOTAL Associate Degree]]="",Table2[[#This Row],[TOTAL Associate Degree]]=0 ),"",Table2[[#This Row],[TOTAL Associate: CoV Premium]]/Table2[[#This Row],[TOTAL Associate Degree]]) -> 0.04694835681 | DP10: 0 | DQ10: 0 | DR10: =IF(OR(Table2[[#This Row],[TOTAL Bachelor''s Degree]]="",Table2[[#This Row],[TOTAL Bachelor''s Degree]]=0 ),"",Table2[[#This Row],[TOTAL Bachelor''s Degree - Academic Disadvantage]]/Table2[[#This Row],[TOTAL Bachelor''s Degree]]) ->  | DS10: 0 | DT10: =IF(OR(Table2[[#This Row],[TOTAL Bachelor''s Degree]]="",Table2[[#This Row],[TOTAL Bachelor''s Degree]]=0 ),"",Table2[[#This Row],[TOTAL Bachelor''s Degree - Economic Disadvantage]]/Table2[[#This Row],[TOTAL Bachelor''s Degree]]) ->  | DU10: 0 | DV10: =IF(OR(Table2[[#This Row],[TOTAL Bachelor''s Degree]]="",Table2[[#This Row],[TOTAL Bachelor''s Degree]]=0 ),"",Table2[[#This Row],[TOTAL Bachelor''s Degree - Adult Learner]]/Table2[[#This Row],[TOTAL Bachelor''s Degree]]) ->  | DW10: 0 | DX10: =IF(OR(Table2[[#This Row],[TOTAL Bachelor''s Degree]]="",Table2[[#This Row],[TOTAL Bachelor''s Degree]]=0 ),"",Table2[[#This Row],[Bachelor''s Degree nonHDF]]/Table2[[#This Row],[TOTAL Bachelor''s Degree]]) ->  | DY10: 0 | DZ10: =IF(OR(Table2[[#This Row],[TOTAL Bachelor''s Degree - Academic Disadvantage]]="",Table2[[#This Row],[TOTAL Bachelor''s Degree - Academic Disadvantage]]=0 ),"",Table2[[#This Row],[Bachelor''s Degree - nonHDF Academic Disadvantage]]/Table2[[#This Row],[TOTAL Bachelor''s Degree - Academic Disadvantage]]) ->  | EA10: 0 | EB10: =IF(OR(Table2[[#This Row],[TOTAL Bachelor''s Degree - Economic Disadvantage]]="",Table2[[#This Row],[TOTAL Bachelor''s Degree - Economic Disadvantage]]=0 ),"",Table2[[#This Row],[Bachelor''s Degree - nonHDF Economic Disadvantage]]/Table2[[#This Row],[TOTAL Bachelor''s Degree - Economic Disadvantage]]) ->  | EC10: 0 | ED10: =IF(OR(Table2[[#This Row],[TOTAL Bachelor''s Degree - Adult Learner]]="",Table2[[#This Row],[TOTAL Bachelor''s Degree - Adult Learner]]=0 ),"",Table2[[#This Row],[Bachelor''s Degree - nonHDF Adult Learner]]/Table2[[#This Row],[TOTAL Bachelor''s Degree - Adult Learner]]) ->  | EE10: 0 | EF10: =IF(OR(Table2[[#This Row],[TOTAL Bachelor''s Degree]]="",Table2[[#This Row],[TOTAL Bachelor''s Degree]]=0 ),"",Table2[[#This Row],[Bachelor''s Degree: HDF]]/Table2[[#This Row],[TOTAL Bachelor''s Degree]]) ->  | EG10: 0 | EH10: =IF(OR(Table2[[#This Row],[TOTAL Bachelor''s Degree - Academic Disadvantage]]="",Table2[[#This Row],[TOTAL Bachelor''s Degree - Academic Disadvantage]]=0 ),"",Table2[[#This Row],[Bachelor''s Degree: HDF - Academic Disadvantage]]/Table2[[#This Row],[TOTAL Bachelor''s Degree - Academic Disadvantage]]) ->  | EI10: 0 | EJ10: =IF(OR(Table2[[#This Row],[TOTAL Bachelor''s Degree - Economic Disadvantage]]="",Table2[[#This Row],[TOTAL Bachelor''s Degree - Economic Disadvantage]]=0 ),"",Table2[[#This Row],[Bachelor''s Degree: HDF - Economic Disadvantage]]/Table2[[#This Row],[TOTAL Bachelor''s Degree - Economic Disadvantage]]) ->  | EK10: 0 | EL10: =IF(OR(Table2[[#This Row],[TOTAL Bachelor''s Degree - Adult Learner]]="",Table2[[#This Row],[TOTAL Bachelor''s Degree - Adult Learner]]=0 ),"",Table2[[#This Row],[Bachelor''s Degree: HDF - Adult Learner]]/Table2[[#This Row],[TOTAL Bachelor''s Degree - Adult Learner]]) ->  | EM10: 0 | EN10: =IF(OR(Table2[[#This Row],[TOTAL Bachelor''s Degree]]="",Table2[[#This Row],[TOTAL Bachelor''s Degree]]=0 ),"",Table2[[#This Row],[TOTAL Bachelor''s Degree: CoV Premium]]/Table2[[#This Row],[TOTAL Bachelor''s Degree]]) -> 
A11: 003554 | B11: Clarendon College | C11: 2018 | D11: 204 | E11: 132 | F11: 110 | G11: =IF(OR(Table2[[#This Row],[GAI Transfer with 15 SCH Total]]="",Table2[[#This Row],[GAI Transfer with 15 SCH Total]]=0 ),"",Table2[[#This Row],[GAI Transfer with 15 SCH - Academic Disadvantage]]/Table2[[#This Row],[GAI Transfer with 15 SCH Total]]) -> 0.8333333333 | H11: 35 | I11: =IF(OR(Table2[[#This Row],[GAI Transfer with 15 SCH Total]]="",Table2[[#This Row],[GAI Transfer with 15 SCH Total]]=0 ),"",Table2[[#This Row],[GAI Transfer with 15 SCH - Economic Disadvantage]]/Table2[[#This Row],[GAI Transfer with 15 SCH Total]]) -> 0.2651515152 | J11: 19 | K11: =IF(OR(Table2[[#This Row],[GAI Transfer with 15 SCH Total]]="",Table2[[#This Row],[GAI Transfer with 15 SCH Total]]=0 ),"",Table2[[#This Row],[GAI Transfer with 15 SCH - Adult Learner]]/Table2[[#This Row],[GAI Transfer with 15 SCH Total]]) -> 0.1439393939 | N11: =IF(OR(Table2[[#This Row],[GAI Co-enrollment with 15 SCH Total]]="", Table2[[#This Row],[GAI Co-enrollment with 15 SCH Total]]=0),"",Table2[[#This Row],[GAI Co-enrollment with 15 SCH -Academic Disadvantage]]/Table2[[#This Row],[GAI Co-enrollment with 15 SCH Total]]) ->  | P11: =IF(OR(Table2[[#This Row],[GAI Co-enrollment with 15 SCH Total]]="", Table2[[#This Row],[GAI Co-enrollment with 15 SCH Total]]=0),"",Table2[[#This Row],[GAI Co-enrollment with 15 SCH - Economic Disadvantage]]/Table2[[#This Row],[GAI Co-enrollment with 15 SCH Total]]) ->  | R11: =IF(OR(Table2[[#This Row],[GAI Co-enrollment with 15 SCH Total]]="",Table2[[#This Row],[GAI Co-enrollment with 15 SCH Total]]=0 ),"",Table2[[#This Row],[GAI Co-enrollment with 15 SCH - Adult Learner]]/Table2[[#This Row],[GAI Co-enrollment with 15 SCH Total]]) ->  | Z11: =IF(OR(Table2[[#This Row],[TOTAL OSA]]="",Table2[[#This Row],[TOTAL OSA]]=0 ),"",Table2[[#This Row],[TOTAL OSA - Academic Disadvantage]]/Table2[[#This Row],[TOTAL OSA]]) ->  | AB11: =IF(OR(Table2[[#This Row],[TOTAL OSA]]="",Table2[[#This Row],[TOTAL OSA]]=0 ),"",Table2[[#This Row],[TOTAL OSA - Economic Disadvantage]]/Table2[[#This Row],[TOTAL OSA]]) ->  | AD11: =IF(OR(Table2[[#This Row],[TOTAL OSA]]="",Table2[[#This Row],[TOTAL OSA]]=0 ),"",Table2[[#This Row],[TOTAL OSA - Adult Learner]]/Table2[[#This Row],[TOTAL OSA]]) ->  | AF11: =IF(OR(Table2[[#This Row],[TOTAL OSA]]="",Table2[[#This Row],[TOTAL OSA]]=0 ),"",Table2[[#This Row],[OSA nonHDF]]/Table2[[#This Row],[TOTAL OSA]]) ->  | AH11: =IF(OR(Table2[[#This Row],[TOTAL OSA - Academic Disadvantage]]="",Table2[[#This Row],[TOTAL OSA - Academic Disadvantage]]=0 ),"",Table2[[#This Row],[OSA - nonHDF Academic Disadvantage]]/Table2[[#This Row],[TOTAL OSA - Academic Disadvantage]]) ->  | AJ11: =IF(OR(Table2[[#This Row],[TOTAL OSA - Economic Disadvantage]]="",Table2[[#This Row],[TOTAL OSA - Economic Disadvantage]]=0 ),"",Table2[[#This Row],[OSA - nonHDF Economic Disadvantage]]/Table2[[#This Row],[TOTAL OSA - Economic Disadvantage]]) ->  | AL11: =IF(OR(Table2[[#This Row],[TOTAL OSA - Adult Learner]]="",Table2[[#This Row],[TOTAL OSA - Adult Learner]]=0 ),"",Table2[[#This Row],[OSA - nonHDF Adult Learner]]/Table2[[#This Row],[TOTAL OSA - Adult Learner]]) ->  | AN11: =IF(OR(Table2[[#This Row],[TOTAL OSA]]="",Table2[[#This Row],[TOTAL OSA]]=0 ),"",Table2[[#This Row],[OSA: HDF]]/Table2[[#This Row],[TOTAL OSA]]) ->  | AP11: =IF(OR(Table2[[#This Row],[TOTAL OSA - Academic Disadvantage]]="",Table2[[#This Row],[TOTAL OSA - Academic Disadvantage]]=0 ),"",Table2[[#This Row],[OSA: HDF Academic Disadvantage]]/Table2[[#This Row],[TOTAL OSA - Academic Disadvantage]]) ->  | AR11: =IF(OR(Table2[[#This Row],[TOTAL OSA - Economic Disadvantage]]="",Table2[[#This Row],[TOTAL OSA - Economic Disadvantage]]=0 ),"",Table2[[#This Row],[OSA: HDF Economic Disadvantage]]/Table2[[#This Row],[TOTAL OSA - Economic Disadvantage]]) ->  | AT11: =IF(OR(Table2[[#This Row],[TOTAL OSA - Adult Learner]]="",Table2[[#This Row],[TOTAL OSA - Adult Learner]]=0 ),"",Table2[[#This Row],[OSA: HDF - Adult Learner]]/Table2[[#This Row],[TOTAL OSA - Adult Learner]]) ->  | AU11: 142 | AV11: 129 | AW11: =IF(OR(Table2[[#This Row],[TOTAL Certificate I or II]]="",Table2[[#This Row],[TOTAL Certificate I or II]]=0 ),"",Table2[[#This Row],[TOTAL Certificate I or II - Academic Disadvantage]]/Table2[[#This Row],[TOTAL Certificate I or II]]) -> 0.9084507042 | AX11: 77 | AY11: =IF(OR(Table2[[#This Row],[TOTAL Certificate I or II]]="",Table2[[#This Row],[TOTAL Certificate I or II]]=0 ),"",Table2[[#This Row],[TOTAL Certificate I or II - Economic Disadvantage]]/Table2[[#This Row],[TOTAL Certificate I or II]]) -> 0.5422535211 | AZ11: 43 | BA11: =IF(OR(Table2[[#This Row],[TOTAL Certificate I or II]]="",Table2[[#This Row],[TOTAL Certificate I or II]]=0 ),"",Table2[[#This Row],[TOTAL Certificate I or II - Adult Learner]]/Table2[[#This Row],[TOTAL Certificate I or II]]) -> 0.3028169014 | BB11: 32 | BC11: =IF(OR(Table2[[#This Row],[TOTAL Certificate I or II]]="",Table2[[#This Row],[TOTAL Certificate I or II]]=0 ),"",Table2[[#This Row],[Certificate I or II nonHDF]]/Table2[[#This Row],[TOTAL Certificate I or II]]) -> 0.2253521127 | BD11: 32 | BE11: =IF(OR(Table2[[#This Row],[OSA: HDF Academic Disadvantage]]="",Table2[[#This Row],[OSA: HDF Academic Disadvantage]]=0 ),"",Table2[[#This Row],[Certificate I or II - nonHDF Academic Disadvantage]]/Table2[[#This Row],[OSA: HDF Academic Disadvantage]]) ->  | BF11: 18 | BG11: =IF(OR(Table2[[#This Row],[TOTAL Certificate I or II - Economic Disadvantage]]="",Table2[[#This Row],[TOTAL Certificate I or II - Economic Disadvantage]]=0 ),"",Table2[[#This Row],[Certificate I or II - nonHDF Economic Disadvantage]]/Table2[[#This Row],[TOTAL Certificate I or II - Economic Disadvantage]]) -> 0.2337662338 | BH11: 5 | BI11: =IF(OR(Table2[[#This Row],[TOTAL Certificate I or II - Adult Learner]]="",Table2[[#This Row],[TOTAL Certificate I or II - Adult Learner]]=0 ),"",Table2[[#This Row],[Certificate I or II - nonHDF Adult Learner]]/Table2[[#This Row],[TOTAL Certificate I or II - Adult Learner]]) -> 0.1162790698 | BJ11: 110 | BK11: =IF(OR(Table2[[#This Row],[TOTAL Certificate I or II]]="",Table2[[#This Row],[TOTAL Certificate I or II]]=0 ),"",Table2[[#This Row],[Certificate I or II: HDF]]/Table2[[#This Row],[TOTAL Certificate I or II]]) -> 0.7746478873 | BL11: 97 | BM11: =IF(OR(Table2[[#This Row],[TOTAL Certificate I or II - Academic Disadvantage]]="",Table2[[#This Row],[TOTAL Certificate I or II - Academic Disadvantage]]=0 ),"",Table2[[#This Row],[Certificate I or II: HDF Academic Disadvantage]]/Table2[[#This Row],[TOTAL Certificate I or II - Academic Disadvantage]]) -> 0.7519379845 | BN11: 59 | BO11: =IF(OR(Table2[[#This Row],[TOTAL Certificate I or II - Economic Disadvantage]]="",Table2[[#This Row],[TOTAL Certificate I or II - Economic Disadvantage]]=0 ),"",Table2[[#This Row],[Certificate I or II: HDF Economic Disadvantage]]/Table2[[#This Row],[TOTAL Certificate I or II - Economic Disadvantage]]) -> 0.7662337662 | BP11: 38 | BQ11: =IF(OR(Table2[[#This Row],[TOTAL Certificate I or II - Adult Learner]]="",Table2[[#This Row],[TOTAL Certificate I or II - Adult Learner]]=0 ),"",Table2[[#This Row],[Certificate I or II: HDF Adult Learner]]/Table2[[#This Row],[TOTAL Certificate I or II - Adult Learner]]) -> 0.8837209302 | BR11: 3 | BS11: =IF(OR(Table2[[#This Row],[TOTAL Certificate I or II]]="",Table2[[#This Row],[TOTAL Certificate I or II]]=0 ),"",Table2[[#This Row],[TOTAL Cert I or II: COV Premium]]/Table2[[#This Row],[TOTAL Certificate I or II]]) -> 0.02112676056 | BT11: 0 | BU11: 0 | BV11: =IF(OR(Table2[[#This Row],[TOTAL Advanced Technical Certificate]]="",Table2[[#This Row],[TOTAL Advanced Technical Certificate]]=0 ),"",Table2[[#This Row],[TOTAL Advanced Technical Certificate - Academic Disadvantage]]/Table2[[#This Row],[TOTAL Advanced Technical Certificate]]) ->  | BW11: 0 | BX11: =IF(OR(Table2[[#This Row],[TOTAL Advanced Technical Certificate]]="",Table2[[#This Row],[TOTAL Advanced Technical Certificate]]=0 ),"",Table2[[#This Row],[TOTAL Advanced Technical Certificate - Economic Disadvantage]]/Table2[[#This Row],[TOTAL Advanced Technical Certificate]]) ->  | BY11: 0 | BZ11: =IF(OR(Table2[[#This Row],[TOTAL Advanced Technical Certificate]]="",Table2[[#This Row],[TOTAL Advanced Technical Certificate]]=0 ),"",Table2[[#This Row],[TOTAL Advanced Technical Certificate - Adult Learner]]/Table2[[#This Row],[TOTAL Advanced Technical Certificate]]) ->  | CA11: 0 | CB11: =IF(OR(Table2[[#This Row],[TOTAL Advanced Technical Certificate]]="",Table2[[#This Row],[TOTAL Advanced Technical Certificate]]=0 ),"",Table2[[#This Row],[Advanced Technical Certificate nonHDF]]/Table2[[#This Row],[TOTAL Advanced Technical Certificate]]) ->  | CC11: 0 | CD11: =IF(OR(Table2[[#This Row],[TOTAL Advanced Technical Certificate - Academic Disadvantage]]="",Table2[[#This Row],[TOTAL Advanced Technical Certificate - Academic Disadvantage]]=0 ),"",Table2[[#This Row],[Advanced Technical Certificate nonHDF - Academic Disadvantage]]/Table2[[#This Row],[TOTAL Advanced Technical Certificate - Academic Disadvantage]]) ->  | CE11: 0 | CF11: =IF(OR(Table2[[#This Row],[TOTAL Advanced Technical Certificate - Economic Disadvantage]]="",Table2[[#This Row],[TOTAL Advanced Technical Certificate - Economic Disadvantage]]=0 ),"",Table2[[#This Row],[Advanced Technical Certificate - nonHDF Economic Disadvantage]]/Table2[[#This Row],[TOTAL Advanced Technical Certificate - Economic Disadvantage]]) ->  | CG11: 0 | CH11: =IF(OR(Table2[[#This Row],[TOTAL Advanced Technical Certificate - Adult Learner]]="",Table2[[#This Row],[TOTAL Advanced Technical Certificate - Adult Learner]]=0 ),"",Table2[[#This Row],[Advanced Technical Certificate - nonHDF Adult Learner]]/Table2[[#This Row],[TOTAL Advanced Technical Certificate - Adult Learner]]) ->  | CI11: 0 | CJ11: =IF(OR(Table2[[#This Row],[TOTAL Advanced Technical Certificate]]="",Table2[[#This Row],[TOTAL Advanced Technical Certificate]]=0 ),"",Table2[[#This Row],[Advanced Technical Certificate: HDF]]/Table2[[#This Row],[TOTAL Advanced Technical Certificate]]) ->  | CK11: 0 | CL11: =IF(OR(Table2[[#This Row],[TOTAL Advanced Technical Certificate - Academic Disadvantage]]="",Table2[[#This Row],[TOTAL Advanced Technical Certificate - Academic Disadvantage]]=0 ),"",Table2[[#This Row],[Advanced Technical Certificate: HDF Academic Disadvantage]]/Table2[[#This Row],[TOTAL Advanced Technical Certificate - Academic Disadvantage]]) ->  | CM11: 0 | CN11: =IF(OR(Table2[[#This Row],[TOTAL Advanced Technical Certificate - Economic Disadvantage]]="",Table2[[#This Row],[TOTAL Advanced Technical Certificate - Economic Disadvantage]]=0 ),"",Table2[[#This Row],[Advanced Technical Certificate: HDF Economic Disadvantage]]/Table2[[#This Row],[TOTAL Advanced Technical Certificate - Economic Disadvantage]]) ->  | CO11: 0 | CP11: =IF(OR(Table2[[#This Row],[TOTAL Advanced Technical Certificate - Adult Learner]]="",Table2[[#This Row],[TOTAL Advanced Technical Certificate - Adult Learner]]=0 ),"",Table2[[#This Row],[Advanced Technical Certificate: HDF Adult Learner]]/Table2[[#This Row],[TOTAL Advanced Technical Certificate - Adult Learner]]) ->  | CQ11: 159 | CR11: 131 | CS11: =IF(OR(Table2[[#This Row],[TOTAL Associate Degree]]="",Table2[[#This Row],[TOTAL Associate Degree]]=0 ),"",Table2[[#This Row],[TOTAL Associate Degree - Academic Disadvantage]]/Table2[[#This Row],[TOTAL Associate Degree]]) -> 0.8238993711 | CT11: 90 | CU11: =IF(OR(Table2[[#This Row],[TOTAL Associate Degree]]="",Table2[[#This Row],[TOTAL Associate Degree]]=0 ),"",Table2[[#This Row],[TOTAL Associate Degree - Economic Disadvantage]]/Table2[[#This Row],[TOTAL Associate Degree]]) -> 0.5660377358 | CV11: 59 | CW11: =IF(OR(Table2[[#This Row],[TOTAL Associate Degree]]="",Table2[[#This Row],[TOTAL Associate Degree]]=0 ),"",Table2[[#This Row],[TOTAL Associate Degree - Adult Learner]]/Table2[[#This Row],[TOTAL Associate Degree]]) -> 0.3710691824 | CX11: 106 | CY11: =IF(OR(Table2[[#This Row],[TOTAL Associate Degree]]="",Table2[[#This Row],[TOTAL Associate Degree]]=0 ),"",Table2[[#This Row],[Associate Degree nonHDF]]/Table2[[#This Row],[TOTAL Associate Degree]]) -> 0.6666666667 | CZ11: 84 | DA11: =IF(OR(Table2[[#This Row],[TOTAL Associate Degree - Academic Disadvantage]]="",Table2[[#This Row],[TOTAL Associate Degree - Academic Disadvantage]]=0 ),"",Table2[[#This Row],[Associate Degree - nonHDF Academic Disadvantage]]/Table2[[#This Row],[TOTAL Associate Degree - Academic Disadvantage]]) -> 0.641221374 | DB11: 61 | DC11: =IF(OR(Table2[[#This Row],[TOTAL Associate Degree - Economic Disadvantage]]="",Table2[[#This Row],[TOTAL Associate Degree - Economic Disadvantage]]=0 ),"",Table2[[#This Row],[Associate Degree - nonHDF Economic Disadvantage]]/Table2[[#This Row],[TOTAL Associate Degree - Economic Disadvantage]]) -> 0.6777777778 | DD11: 37 | DE11: =IF(OR(Table2[[#This Row],[TOTAL Associate Degree - Adult Learner]]="",Table2[[#This Row],[TOTAL Associate Degree - Adult Learner]]=0 ),"",Table2[[#This Row],[Associate Degree - nonHDF Adult Learner]]/Table2[[#This Row],[TOTAL Associate Degree - Adult Learner]]) -> 0.6271186441 | DF11: 53 | DG11: =IF(OR(Table2[[#This Row],[TOTAL Associate Degree]]="",Table2[[#This Row],[TOTAL Associate Degree]]=0 ),"",Table2[[#This Row],[Associate Degree: HDF]]/Table2[[#This Row],[TOTAL Associate Degree]]) -> 0.3333333333 | DH11: 47 | DI11: =IF(OR(Table2[[#This Row],[TOTAL Associate Degree - Academic Disadvantage]]="",Table2[[#This Row],[TOTAL Associate Degree - Academic Disadvantage]]=0 ),"",Table2[[#This Row],[Associate Degree: HDF Academic Disadvantage]]/Table2[[#This Row],[TOTAL Associate Degree - Academic Disadvantage]]) -> 0.358778626 | DJ11: 29 | DK11: =IF(OR(Table2[[#This Row],[TOTAL Associate Degree - Economic Disadvantage]]="",Table2[[#This Row],[TOTAL Associate Degree - Economic Disadvantage]]=0 ),"",Table2[[#This Row],[Associate Degree: HDF Economic Disadvantage]]/Table2[[#This Row],[TOTAL Associate Degree - Economic Disadvantage]]) -> 0.3222222222 | DL11: 22 | DM11: =IF(OR(Table2[[#This Row],[TOTAL Associate Degree - Adult Learner]]="",Table2[[#This Row],[TOTAL Associate Degree - Adult Learner]]=0 ),"",Table2[[#This Row],[Associate Degree: HDF Adult Learner]]/Table2[[#This Row],[TOTAL Associate Degree - Adult Learner]]) -> 0.3728813559 | DN11: 5 | DO11: =IF(OR(Table2[[#This Row],[TOTAL Associate Degree]]="",Table2[[#This Row],[TOTAL Associate Degree]]=0 ),"",Table2[[#This Row],[TOTAL Associate: CoV Premium]]/Table2[[#This Row],[TOTAL Associate Degree]]) -> 0.03144654088 | DP11: 0 | DQ11: 0 | DR11: =IF(OR(Table2[[#This Row],[TOTAL Bachelor''s Degree]]="",Table2[[#This Row],[TOTAL Bachelor''s Degree]]=0 ),"",Table2[[#This Row],[TOTAL Bachelor''s Degree - Academic Disadvantage]]/Table2[[#This Row],[TOTAL Bachelor''s Degree]]) ->  | DS11: 0 | DT11: =IF(OR(Table2[[#This Row],[TOTAL Bachelor''s Degree]]="",Table2[[#This Row],[TOTAL Bachelor''s Degree]]=0 ),"",Table2[[#This Row],[TOTAL Bachelor''s Degree - Economic Disadvantage]]/Table2[[#This Row],[TOTAL Bachelor''s Degree]]) ->  | DU11: 0 | DV11: =IF(OR(Table2[[#This Row],[TOTAL Bachelor''s Degree]]="",Table2[[#This Row],[TOTAL Bachelor''s Degree]]=0 ),"",Table2[[#This Row],[TOTAL Bachelor''s Degree - Adult Learner]]/Table2[[#This Row],[TOTAL Bachelor''s Degree]]) ->  | DW11: 0 | DX11: =IF(OR(Table2[[#This Row],[TOTAL Bachelor''s Degree]]="",Table2[[#This Row],[TOTAL Bachelor''s Degree]]=0 ),"",Table2[[#This Row],[Bachelor''s Degree nonHDF]]/Table2[[#This Row],[TOTAL Bachelor''s Degree]]) ->  | DY11: 0 | DZ11: =IF(OR(Table2[[#This Row],[TOTAL Bachelor''s Degree - Academic Disadvantage]]="",Table2[[#This Row],[TOTAL Bachelor''s Degree - Academic Disadvantage]]=0 ),"",Table2[[#This Row],[Bachelor''s Degree - nonHDF Academic Disadvantage]]/Table2[[#This Row],[TOTAL Bachelor''s Degree - Academic Disadvantage]]) ->  | EA11: 0 | EB11: =IF(OR(Table2[[#This Row],[TOTAL Bachelor''s Degree - Economic Disadvantage]]="",Table2[[#This Row],[TOTAL Bachelor''s Degree - Economic Disadvantage]]=0 ),"",Table2[[#This Row],[Bachelor''s Degree - nonHDF Economic Disadvantage]]/Table2[[#This Row],[TOTAL Bachelor''s Degree - Economic Disadvantage]]) ->  | EC11: 0 | ED11: =IF(OR(Table2[[#This Row],[TOTAL Bachelor''s Degree - Adult Learner]]="",Table2[[#This Row],[TOTAL Bachelor''s Degree - Adult Learner]]=0 ),"",Table2[[#This Row],[Bachelor''s Degree - nonHDF Adult Learner]]/Table2[[#This Row],[TOTAL Bachelor''s Degree - Adult Learner]]) ->  | EE11: 0 | EF11: =IF(OR(Table2[[#This Row],[TOTAL Bachelor''s Degree]]="",Table2[[#This Row],[TOTAL Bachelor''s Degree]]=0 ),"",Table2[[#This Row],[Bachelor''s Degree: HDF]]/Table2[[#This Row],[TOTAL Bachelor''s Degree]]) ->  | EG11: 0 | EH11: =IF(OR(Table2[[#This Row],[TOTAL Bachelor''s Degree - Academic Disadvantage]]="",Table2[[#This Row],[TOTAL Bachelor''s Degree - Academic Disadvantage]]=0 ),"",Table2[[#This Row],[Bachelor''s Degree: HDF - Academic Disadvantage]]/Table2[[#This Row],[TOTAL Bachelor''s Degree - Academic Disadvantage]]) ->  | EI11: 0 | EJ11: =IF(OR(Table2[[#This Row],[TOTAL Bachelor''s Degree - Economic Disadvantage]]="",Table2[[#This Row],[TOTAL Bachelor''s Degree - Economic Disadvantage]]=0 ),"",Table2[[#This Row],[Bachelor''s Degree: HDF - Economic Disadvantage]]/Table2[[#This Row],[TOTAL Bachelor''s Degree - Economic Disadvantage]]) ->  | EK11: 0 | EL11: =IF(OR(Table2[[#This Row],[TOTAL Bachelor''s Degree - Adult Learner]]="",Table2[[#This Row],[TOTAL Bachelor''s Degree - Adult Learner]]=0 ),"",Table2[[#This Row],[Bachelor''s Degree: HDF - Adult Learner]]/Table2[[#This Row],[TOTAL Bachelor''s Degree - Adult Learner]]) ->  | EM11: 0 | EN11: =IF(OR(Table2[[#This Row],[TOTAL Bachelor''s Degree]]="",Table2[[#This Row],[TOTAL Bachelor''s Degree]]=0 ),"",Table2[[#This Row],[TOTAL Bachelor''s Degree: CoV Premium]]/Table2[[#This Row],[TOTAL Bachelor''s Degree]]) -> 
A12: 003546 | B12: Coastal Bend College | C12: 2018 | D12: 538 | E12: 384 | F12: 234 | G12: =IF(OR(Table2[[#This Row],[GAI Transfer with 15 SCH Total]]="",Table2[[#This Row],[GAI Transfer with 15 SCH Total]]=0 ),"",Table2[[#This Row],[GAI Transfer with 15 SCH - Academic Disadvantage]]/Table2[[#This Row],[GAI Transfer with 15 SCH Total]]) -> 0.609375 | H12: 117 | I12: =IF(OR(Table2[[#This Row],[GAI Transfer with 15 SCH Total]]="",Table2[[#This Row],[GAI Transfer with 15 SCH Total]]=0 ),"",Table2[[#This Row],[GAI Transfer with 15 SCH - Economic Disadvantage]]/Table2[[#This Row],[GAI Transfer with 15 SCH Total]]) -> 0.3046875 | J12: 42 | K12: =IF(OR(Table2[[#This Row],[GAI Transfer with 15 SCH Total]]="",Table2[[#This Row],[GAI Transfer with 15 SCH Total]]=0 ),"",Table2[[#This Row],[GAI Transfer with 15 SCH - Adult Learner]]/Table2[[#This Row],[GAI Transfer with 15 SCH Total]]) -> 0.109375 | N12: =IF(OR(Table2[[#This Row],[GAI Co-enrollment with 15 SCH Total]]="", Table2[[#This Row],[GAI Co-enrollment with 15 SCH Total]]=0),"",Table2[[#This Row],[GAI Co-enrollment with 15 SCH -Academic Disadvantage]]/Table2[[#This Row],[GAI Co-enrollment with 15 SCH Total]]) ->  | P12: =IF(OR(Table2[[#This Row],[GAI Co-enrollment with 15 SCH Total]]="", Table2[[#This Row],[GAI Co-enrollment with 15 SCH Total]]=0),"",Table2[[#This Row],[GAI Co-enrollment with 15 SCH - Economic Disadvantage]]/Table2[[#This Row],[GAI Co-enrollment with 15 SCH Total]]) ->  | R12: =IF(OR(Table2[[#This Row],[GAI Co-enrollment with 15 SCH Total]]="",Table2[[#This Row],[GAI Co-enrollment with 15 SCH Total]]=0 ),"",Table2[[#This Row],[GAI Co-enrollment with 15 SCH - Adult Learner]]/Table2[[#This Row],[GAI Co-enrollment with 15 SCH Total]]) ->  | Z12: =IF(OR(Table2[[#This Row],[TOTAL OSA]]="",Table2[[#This Row],[TOTAL OSA]]=0 ),"",Table2[[#This Row],[TOTAL OSA - Academic Disadvantage]]/Table2[[#This Row],[TOTAL OSA]]) ->  | AB12: =IF(OR(Table2[[#This Row],[TOTAL OSA]]="",Table2[[#This Row],[TOTAL OSA]]=0 ),"",Table2[[#This Row],[TOTAL OSA - Economic Disadvantage]]/Table2[[#This Row],[TOTAL OSA]]) ->  | AD12: =IF(OR(Table2[[#This Row],[TOTAL OSA]]="",Table2[[#This Row],[TOTAL OSA]]=0 ),"",Table2[[#This Row],[TOTAL OSA - Adult Learner]]/Table2[[#This Row],[TOTAL OSA]]) ->  | AF12: =IF(OR(Table2[[#This Row],[TOTAL OSA]]="",Table2[[#This Row],[TOTAL OSA]]=0 ),"",Table2[[#This Row],[OSA nonHDF]]/Table2[[#This Row],[TOTAL OSA]]) ->  | AH12: =IF(OR(Table2[[#This Row],[TOTAL OSA - Academic Disadvantage]]="",Table2[[#This Row],[TOTAL OSA - Academic Disadvantage]]=0 ),"",Table2[[#This Row],[OSA - nonHDF Academic Disadvantage]]/Table2[[#This Row],[TOTAL OSA - Academic Disadvantage]]) ->  | AJ12: =IF(OR(Table2[[#This Row],[TOTAL OSA - Economic Disadvantage]]="",Table2[[#This Row],[TOTAL OSA - Economic Disadvantage]]=0 ),"",Table2[[#This Row],[OSA - nonHDF Economic Disadvantage]]/Table2[[#This Row],[TOTAL OSA - Economic Disadvantage]]) ->  | AL12: =IF(OR(Table2[[#This Row],[TOTAL OSA - Adult Learner]]="",Table2[[#This Row],[TOTAL OSA - Adult Learner]]=0 ),"",Table2[[#This Row],[OSA - nonHDF Adult Learner]]/Table2[[#This Row],[TOTAL OSA - Adult Learner]]) ->  | AN12: =IF(OR(Table2[[#This Row],[TOTAL OSA]]="",Table2[[#This Row],[TOTAL OSA]]=0 ),"",Table2[[#This Row],[OSA: HDF]]/Table2[[#This Row],[TOTAL OSA]]) ->  | AP12: =IF(OR(Table2[[#This Row],[TOTAL OSA - Academic Disadvantage]]="",Table2[[#This Row],[TOTAL OSA - Academic Disadvantage]]=0 ),"",Table2[[#This Row],[OSA: HDF Academic Disadvantage]]/Table2[[#This Row],[TOTAL OSA - Academic Disadvantage]]) ->  | AR12: =IF(OR(Table2[[#This Row],[TOTAL OSA - Economic Disadvantage]]="",Table2[[#This Row],[TOTAL OSA - Economic Disadvantage]]=0 ),"",Table2[[#This Row],[OSA: HDF Economic Disadvantage]]/Table2[[#This Row],[TOTAL OSA - Economic Disadvantage]]) ->  | AT12: =IF(OR(Table2[[#This Row],[TOTAL OSA - Adult Learner]]="",Table2[[#This Row],[TOTAL OSA - Adult Learner]]=0 ),"",Table2[[#This Row],[OSA: HDF - Adult Learner]]/Table2[[#This Row],[TOTAL OSA - Adult Learner]]) ->  | AU12: 484 | AV12: 386 | AW12: =IF(OR(Table2[[#This Row],[TOTAL Certificate I or II]]="",Table2[[#This Row],[TOTAL Certificate I or II]]=0 ),"",Table2[[#This Row],[TOTAL Certificate I or II - Academic Disadvantage]]/Table2[[#This Row],[TOTAL Certificate I or II]]) -> 0.7975206612 | AX12: 221 | AY12: =IF(OR(Table2[[#This Row],[TOTAL Certificate I or II]]="",Table2[[#This Row],[TOTAL Certificate I or II]]=0 ),"",Table2[[#This Row],[TOTAL Certificate I or II - Economic Disadvantage]]/Table2[[#This Row],[TOTAL Certificate I or II]]) -> 0.4566115702 | AZ12: 141 | BA12: =IF(OR(Table2[[#This Row],[TOTAL Certificate I or II]]="",Table2[[#This Row],[TOTAL Certificate I or II]]=0 ),"",Table2[[#This Row],[TOTAL Certificate I or II - Adult Learner]]/Table2[[#This Row],[TOTAL Certificate I or II]]) -> 0.291322314 | BB12: 298 | BC12: =IF(OR(Table2[[#This Row],[TOTAL Certificate I or II]]="",Table2[[#This Row],[TOTAL Certificate I or II]]=0 ),"",Table2[[#This Row],[Certificate I or II nonHDF]]/Table2[[#This Row],[TOTAL Certificate I or II]]) -> 0.6157024793 | BD12: 264 | BE12: =IF(OR(Table2[[#This Row],[OSA: HDF Academic Disadvantage]]="",Table2[[#This Row],[OSA: HDF Academic Disadvantage]]=0 ),"",Table2[[#This Row],[Certificate I or II - nonHDF Academic Disadvantage]]/Table2[[#This Row],[OSA: HDF Academic Disadvantage]]) ->  | BF12: 108 | BG12: =IF(OR(Table2[[#This Row],[TOTAL Certificate I or II - Economic Disadvantage]]="",Table2[[#This Row],[TOTAL Certificate I or II - Economic Disadvantage]]=0 ),"",Table2[[#This Row],[Certificate I or II - nonHDF Economic Disadvantage]]/Table2[[#This Row],[TOTAL Certificate I or II - Economic Disadvantage]]) -> 0.4886877828 | BH12: 59 | BI12: =IF(OR(Table2[[#This Row],[TOTAL Certificate I or II - Adult Learner]]="",Table2[[#This Row],[TOTAL Certificate I or II - Adult Learner]]=0 ),"",Table2[[#This Row],[Certificate I or II - nonHDF Adult Learner]]/Table2[[#This Row],[TOTAL Certificate I or II - Adult Learner]]) -> 0.4184397163 | BJ12: 186 | BK12: =IF(OR(Table2[[#This Row],[TOTAL Certificate I or II]]="",Table2[[#This Row],[TOTAL Certificate I or II]]=0 ),"",Table2[[#This Row],[Certificate I or II: HDF]]/Table2[[#This Row],[TOTAL Certificate I or II]]) -> 0.3842975207 | BL12: 122 | BM12: =IF(OR(Table2[[#This Row],[TOTAL Certificate I or II - Academic Disadvantage]]="",Table2[[#This Row],[TOTAL Certificate I or II - Academic Disadvantage]]=0 ),"",Table2[[#This Row],[Certificate I or II: HDF Academic Disadvantage]]/Table2[[#This Row],[TOTAL Certificate I or II - Academic Disadvantage]]) -> 0.3160621762 | BN12: 113 | BO12: =IF(OR(Table2[[#This Row],[TOTAL Certificate I or II - Economic Disadvantage]]="",Table2[[#This Row],[TOTAL Certificate I or II - Economic Disadvantage]]=0 ),"",Table2[[#This Row],[Certificate I or II: HDF Economic Disadvantage]]/Table2[[#This Row],[TOTAL Certificate I or II - Economic Disadvantage]]) -> 0.5113122172 | BP12: 82 | BQ12: =IF(OR(Table2[[#This Row],[TOTAL Certificate I or II - Adult Learner]]="",Table2[[#This Row],[TOTAL Certificate I or II - Adult Learner]]=0 ),"",Table2[[#This Row],[Certificate I or II: HDF Adult Learner]]/Table2[[#This Row],[TOTAL Certificate I or II - Adult Learner]]) -> 0.5815602837 | BR12: 9 | BS12: =IF(OR(Table2[[#This Row],[TOTAL Certificate I or II]]="",Table2[[#This Row],[TOTAL Certificate I or II]]=0 ),"",Table2[[#This Row],[TOTAL Cert I or II: COV Premium]]/Table2[[#This Row],[TOTAL Certificate I or II]]) -> 0.01859504132 | BT12: 0 | BU12: 0 | BV12: =IF(OR(Table2[[#This Row],[TOTAL Advanced Technical Certificate]]="",Table2[[#This Row],[TOTAL Advanced Technical Certificate]]=0 ),"",Table2[[#This Row],[TOTAL Advanced Technical Certificate - Academic Disadvantage]]/Table2[[#This Row],[TOTAL Advanced Technical Certificate]]) ->  | BW12: 0 | BX12: =IF(OR(Table2[[#This Row],[TOTAL Advanced Technical Certificate]]="",Table2[[#This Row],[TOTAL Advanced Technical Certificate]]=0 ),"",Table2[[#This Row],[TOTAL Advanced Technical Certificate - Economic Disadvantage]]/Table2[[#This Row],[TOTAL Advanced Technical Certificate]]) ->  | BY12: 0 | BZ12: =IF(OR(Table2[[#This Row],[TOTAL Advanced Technical Certificate]]="",Table2[[#This Row],[TOTAL Advanced Technical Certificate]]=0 ),"",Table2[[#This Row],[TOTAL Advanced Technical Certificate - Adult Learner]]/Table2[[#This Row],[TOTAL Advanced Technical Certificate]]) ->  | CA12: 0 | CB12: =IF(OR(Table2[[#This Row],[TOTAL Advanced Technical Certificate]]="",Table2[[#This Row],[TOTAL Advanced Technical Certificate]]=0 ),"",Table2[[#This Row],[Advanced Technical Certificate nonHDF]]/Table2[[#This Row],[TOTAL Advanced Technical Certificate]]) ->  | CC12: 0 | CD12: =IF(OR(Table2[[#This Row],[TOTAL Advanced Technical Certificate - Academic Disadvantage]]="",Table2[[#This Row],[TOTAL Advanced Technical Certificate - Academic Disadvantage]]=0 ),"",Table2[[#This Row],[Advanced Technical Certificate nonHDF - Academic Disadvantage]]/Table2[[#This Row],[TOTAL Advanced Technical Certificate - Academic Disadvantage]]) ->  | CE12: 0 | CF12: =IF(OR(Table2[[#This Row],[TOTAL Advanced Technical Certificate - Economic Disadvantage]]="",Table2[[#This Row],[TOTAL Advanced Technical Certificate - Economic Disadvantage]]=0 ),"",Table2[[#This Row],[Advanced Technical Certificate - nonHDF Economic Disadvantage]]/Table2[[#This Row],[TOTAL Advanced Technical Certificate - Economic Disadvantage]]) ->  | CG12: 0 | CH12: =IF(OR(Table2[[#This Row],[TOTAL Advanced Technical Certificate - Adult Learner]]="",Table2[[#This Row],[TOTAL Advanced Technical Certificate - Adult Learner]]=0 ),"",Table2[[#This Row],[Advanced Technical Certificate - nonHDF Adult Learner]]/Table2[[#This Row],[TOTAL Advanced Technical Certificate - Adult Learner]]) ->  | CI12: 0 | CJ12: =IF(OR(Table2[[#This Row],[TOTAL Advanced Technical Certificate]]="",Table2[[#This Row],[TOTAL Advanced Technical Certificate]]=0 ),"",Table2[[#This Row],[Advanced Technical Certificate: HDF]]/Table2[[#This Row],[TOTAL Advanced Technical Certificate]]) ->  | CK12: 0 | CL12: =IF(OR(Table2[[#This Row],[TOTAL Advanced Technical Certificate - Academic Disadvantage]]="",Table2[[#This Row],[TOTAL Advanced Technical Certificate - Academic Disadvantage]]=0 ),"",Table2[[#This Row],[Advanced Technical Certificate: HDF Academic Disadvantage]]/Table2[[#This Row],[TOTAL Advanced Technical Certificate - Academic Disadvantage]]) ->  | CM12: 0 | CN12: =IF(OR(Table2[[#This Row],[TOTAL Advanced Technical Certificate - Economic Disadvantage]]="",Table2[[#This Row],[TOTAL Advanced Technical Certificate - Economic Disadvantage]]=0 ),"",Table2[[#This Row],[Advanced Technical Certificate: HDF Economic Disadvantage]]/Table2[[#This Row],[TOTAL Advanced Technical Certificate - Economic Disadvantage]]) ->  | CO12: 0 | CP12: =IF(OR(Table2[[#This Row],[TOTAL Advanced Technical Certificate - Adult Learner]]="",Table2[[#This Row],[TOTAL Advanced Technical Certificate - Adult Learner]]=0 ),"",Table2[[#This Row],[Advanced Technical Certificate: HDF Adult Learner]]/Table2[[#This Row],[TOTAL Advanced Technical Certificate - Adult Learner]]) ->  | CQ12: 403 | CR12: 206 | CS12: =IF(OR(Table2[[#This Row],[TOTAL Associate Degree]]="",Table2[[#This Row],[TOTAL Associate Degree]]=0 ),"",Table2[[#This Row],[TOTAL Associate Degree - Academic Disadvantage]]/Table2[[#This Row],[TOTAL Associate Degree]]) -> 0.5111662531 | CT12: 217 | CU12: =IF(OR(Table2[[#This Row],[TOTAL Associate Degree]]="",Table2[[#This Row],[TOTAL Associate Degree]]=0 ),"",Table2[[#This Row],[TOTAL Associate Degree - Economic Disadvantage]]/Table2[[#This Row],[TOTAL Associate Degree]]) -> 0.5384615385 | CV12: 142 | CW12: =IF(OR(Table2[[#This Row],[TOTAL Associate Degree]]="",Table2[[#This Row],[TOTAL Associate Degree]]=0 ),"",Table2[[#This Row],[TOTAL Associate Degree - Adult Learner]]/Table2[[#This Row],[TOTAL Associate Degree]]) -> 0.3523573201 | CX12: 277 | CY12: =IF(OR(Table2[[#This Row],[TOTAL Associate Degree]]="",Table2[[#This Row],[TOTAL Associate Degree]]=0 ),"",Table2[[#This Row],[Associate Degree nonHDF]]/Table2[[#This Row],[TOTAL Associate Degree]]) -> 0.6873449132 | CZ12: 172 | DA12: =IF(OR(Table2[[#This Row],[TOTAL Associate Degree - Academic Disadvantage]]="",Table2[[#This Row],[TOTAL Associate Degree - Academic Disadvantage]]=0 ),"",Table2[[#This Row],[Associate Degree - nonHDF Academic Disadvantage]]/Table2[[#This Row],[TOTAL Associate Degree - Academic Disadvantage]]) -> 0.8349514563 | DB12: 149 | DC12: =IF(OR(Table2[[#This Row],[TOTAL Associate Degree - Economic Disadvantage]]="",Table2[[#This Row],[TOTAL Associate Degree - Economic Disadvantage]]=0 ),"",Table2[[#This Row],[Associate Degree - nonHDF Economic Disadvantage]]/Table2[[#This Row],[TOTAL Associate Degree - Economic Disadvantage]]) -> 0.6866359447 | DD12: 69 | DE12: =IF(OR(Table2[[#This Row],[TOTAL Associate Degree - Adult Learner]]="",Table2[[#This Row],[TOTAL Associate Degree - Adult Learner]]=0 ),"",Table2[[#This Row],[Associate Degree - nonHDF Adult Learner]]/Table2[[#This Row],[TOTAL Associate Degree - Adult Learner]]) -> 0.485915493 | DF12: 126 | DG12: =IF(OR(Table2[[#This Row],[TOTAL Associate Degree]]="",Table2[[#This Row],[TOTAL Associate Degree]]=0 ),"",Table2[[#This Row],[Associate Degree: HDF]]/Table2[[#This Row],[TOTAL Associate Degree]]) -> 0.3126550868 | DH12: 34 | DI12: =IF(OR(Table2[[#This Row],[TOTAL Associate Degree - Academic Disadvantage]]="",Table2[[#This Row],[TOTAL Associate Degree - Academic Disadvantage]]=0 ),"",Table2[[#This Row],[Associate Degree: HDF Academic Disadvantage]]/Table2[[#This Row],[TOTAL Associate Degree - Academic Disadvantage]]) -> 0.1650485437 | DJ12: 68 | DK12: =IF(OR(Table2[[#This Row],[TOTAL Associate Degree - Economic Disadvantage]]="",Table2[[#This Row],[TOTAL Associate Degree - Economic Disadvantage]]=0 ),"",Table2[[#This Row],[Associate Degree: HDF Economic Disadvantage]]/Table2[[#This Row],[TOTAL Associate Degree - Economic Disadvantage]]) -> 0.3133640553 | DL12: 73 | DM12: =IF(OR(Table2[[#This Row],[TOTAL Associate Degree - Adult Learner]]="",Table2[[#This Row],[TOTAL Associate Degree - Adult Learner]]=0 ),"",Table2[[#This Row],[Associate Degree: HDF Adult Learner]]/Table2[[#This Row],[TOTAL Associate Degree - Adult Learner]]) -> 0.514084507 | DN12: 21 | DO12: =IF(OR(Table2[[#This Row],[TOTAL Associate Degree]]="",Table2[[#This Row],[TOTAL Associate Degree]]=0 ),"",Table2[[#This Row],[TOTAL Associate: CoV Premium]]/Table2[[#This Row],[TOTAL Associate Degree]]) -> 0.05210918114 | DP12: 0 | DQ12: 0 | DR12: =IF(OR(Table2[[#This Row],[TOTAL Bachelor''s Degree]]="",Table2[[#This Row],[TOTAL Bachelor''s Degree]]=0 ),"",Table2[[#This Row],[TOTAL Bachelor''s Degree - Academic Disadvantage]]/Table2[[#This Row],[TOTAL Bachelor''s Degree]]) ->  | DS12: 0 | DT12: =IF(OR(Table2[[#This Row],[TOTAL Bachelor''s Degree]]="",Table2[[#This Row],[TOTAL Bachelor''s Degree]]=0 ),"",Table2[[#This Row],[TOTAL Bachelor''s Degree - Economic Disadvantage]]/Table2[[#This Row],[TOTAL Bachelor''s Degree]]) ->  | DU12: 0 | DV12: =IF(OR(Table2[[#This Row],[TOTAL Bachelor''s Degree]]="",Table2[[#This Row],[TOTAL Bachelor''s Degree]]=0 ),"",Table2[[#This Row],[TOTAL Bachelor''s Degree - Adult Learner]]/Table2[[#This Row],[TOTAL Bachelor''s Degree]]) ->  | DW12: 0 | DX12: =IF(OR(Table2[[#This Row],[TOTAL Bachelor''s Degree]]="",Table2[[#This Row],[TOTAL Bachelor''s Degree]]=0 ),"",Table2[[#This Row],[Bachelor''s Degree nonHDF]]/Table2[[#This Row],[TOTAL Bachelor''s Degree]]) ->  | DY12: 0 | DZ12: =IF(OR(Table2[[#This Row],[TOTAL Bachelor''s Degree - Academic Disadvantage]]="",Table2[[#This Row],[TOTAL Bachelor''s Degree - Academic Disadvantage]]=0 ),"",Table2[[#This Row],[Bachelor''s Degree - nonHDF Academic Disadvantage]]/Table2[[#This Row],[TOTAL Bachelor''s Degree - Academic Disadvantage]]) ->  | EA12: 0 | EB12: =IF(OR(Table2[[#This Row],[TOTAL Bachelor''s Degree - Economic Disadvantage]]="",Table2[[#This Row],[TOTAL Bachelor''s Degree - Economic Disadvantage]]=0 ),"",Table2[[#This Row],[Bachelor''s Degree - nonHDF Economic Disadvantage]]/Table2[[#This Row],[TOTAL Bachelor''s Degree - Economic Disadvantage]]) ->  | EC12: 0 | ED12: =IF(OR(Table2[[#This Row],[TOTAL Bachelor''s Degree - Adult Learner]]="",Table2[[#This Row],[TOTAL Bachelor''s Degree - Adult Learner]]=0 ),"",Table2[[#This Row],[Bachelor''s Degree - nonHDF Adult Learner]]/Table2[[#This Row],[TOTAL Bachelor''s Degree - Adult Learner]]) ->  | EE12: 0 | EF12: =IF(OR(Table2[[#This Row],[TOTAL Bachelor''s Degree]]="",Table2[[#This Row],[TOTAL Bachelor''s Degree]]=0 ),"",Table2[[#This Row],[Bachelor''s Degree: HDF]]/Table2[[#This Row],[TOTAL Bachelor''s Degree]]) ->  | EG12: 0 | EH12: =IF(OR(Table2[[#This Row],[TOTAL Bachelor''s Degree - Academic Disadvantage]]="",Table2[[#This Row],[TOTAL Bachelor''s Degree - Academic Disadvantage]]=0 ),"",Table2[[#This Row],[Bachelor''s Degree: HDF - Academic Disadvantage]]/Table2[[#This Row],[TOTAL Bachelor''s Degree - Academic Disadvantage]]) ->  | EI12: 0 | EJ12: =IF(OR(Table2[[#This Row],[TOTAL Bachelor''s Degree - Economic Disadvantage]]="",Table2[[#This Row],[TOTAL Bachelor''s Degree - Economic Disadvantage]]=0 ),"",Table2[[#This Row],[Bachelor''s Degree: HDF - Economic Disadvantage]]/Table2[[#This Row],[TOTAL Bachelor''s Degree - Economic Disadvantage]]) ->  | EK12: 0 | EL12: =IF(OR(Table2[[#This Row],[TOTAL Bachelor''s Degree - Adult Learner]]="",Table2[[#This Row],[TOTAL Bachelor''s Degree - Adult Learner]]=0 ),"",Table2[[#This Row],[Bachelor''s Degree: HDF - Adult Learner]]/Table2[[#This Row],[TOTAL Bachelor''s Degree - Adult Learner]]) ->  | EM12: 0 | EN12: =IF(OR(Table2[[#This Row],[TOTAL Bachelor''s Degree]]="",Table2[[#This Row],[TOTAL Bachelor''s Degree]]=0 ),"",Table2[[#This Row],[TOTAL Bachelor''s Degree: CoV Premium]]/Table2[[#This Row],[TOTAL Bachelor''s Degree]]) -> 
A13: 007096 | B13: College of the Mainland Community College District | C13: 2018 | D13: 416 | E13: 266 | F13: 124 | G13: =IF(OR(Table2[[#This Row],[GAI Transfer with 15 SCH Total]]="",Table2[[#This Row],[GAI Transfer with 15 SCH Total]]=0 ),"",Table2[[#This Row],[GAI Transfer with 15 SCH - Academic Disadvantage]]/Table2[[#This Row],[GAI Transfer with 15 SCH Total]]) -> 0.4661654135 | H13: 76 | I13: =IF(OR(Table2[[#This Row],[GAI Transfer with 15 SCH Total]]="",Table2[[#This Row],[GAI Transfer with 15 SCH Total]]=0 ),"",Table2[[#This Row],[GAI Transfer with 15 SCH - Economic Disadvantage]]/Table2[[#This Row],[GAI Transfer with 15 SCH Total]]) -> 0.2857142857 | J13: 60 | K13: =IF(OR(Table2[[#This Row],[GAI Transfer with 15 SCH Total]]="",Table2[[#This Row],[GAI Transfer with 15 SCH Total]]=0 ),"",Table2[[#This Row],[GAI Transfer with 15 SCH - Adult Learner]]/Table2[[#This Row],[GAI Transfer with 15 SCH Total]]) -> 0.2255639098 | N13: =IF(OR(Table2[[#This Row],[GAI Co-enrollment with 15 SCH Total]]="", Table2[[#This Row],[GAI Co-enrollment with 15 SCH Total]]=0),"",Table2[[#This Row],[GAI Co-enrollment with 15 SCH -Academic Disadvantage]]/Table2[[#This Row],[GAI Co-enrollment with 15 SCH Total]]) ->  | P13: =IF(OR(Table2[[#This Row],[GAI Co-enrollment with 15 SCH Total]]="", Table2[[#This Row],[GAI Co-enrollment with 15 SCH Total]]=0),"",Table2[[#This Row],[GAI Co-enrollment with 15 SCH - Economic Disadvantage]]/Table2[[#This Row],[GAI Co-enrollment with 15 SCH Total]]) ->  | R13: =IF(OR(Table2[[#This Row],[GAI Co-enrollment with 15 SCH Total]]="",Table2[[#This Row],[GAI Co-enrollment with 15 SCH Total]]=0 ),"",Table2[[#This Row],[GAI Co-enrollment with 15 SCH - Adult Learner]]/Table2[[#This Row],[GAI Co-enrollment with 15 SCH Total]]) ->  | Z13: =IF(OR(Table2[[#This Row],[TOTAL OSA]]="",Table2[[#This Row],[TOTAL OSA]]=0 ),"",Table2[[#This Row],[TOTAL OSA - Academic Disadvantage]]/Table2[[#This Row],[TOTAL OSA]]) ->  | AB13: =IF(OR(Table2[[#This Row],[TOTAL OSA]]="",Table2[[#This Row],[TOTAL OSA]]=0 ),"",Table2[[#This Row],[TOTAL OSA - Economic Disadvantage]]/Table2[[#This Row],[TOTAL OSA]]) ->  | AD13: =IF(OR(Table2[[#This Row],[TOTAL OSA]]="",Table2[[#This Row],[TOTAL OSA]]=0 ),"",Table2[[#This Row],[TOTAL OSA - Adult Learner]]/Table2[[#This Row],[TOTAL OSA]]) ->  | AF13: =IF(OR(Table2[[#This Row],[TOTAL OSA]]="",Table2[[#This Row],[TOTAL OSA]]=0 ),"",Table2[[#This Row],[OSA nonHDF]]/Table2[[#This Row],[TOTAL OSA]]) ->  | AH13: =IF(OR(Table2[[#This Row],[TOTAL OSA - Academic Disadvantage]]="",Table2[[#This Row],[TOTAL OSA - Academic Disadvantage]]=0 ),"",Table2[[#This Row],[OSA - nonHDF Academic Disadvantage]]/Table2[[#This Row],[TOTAL OSA - Academic Disadvantage]]) ->  | AJ13: =IF(OR(Table2[[#This Row],[TOTAL OSA - Economic Disadvantage]]="",Table2[[#This Row],[TOTAL OSA - Economic Disadvantage]]=0 ),"",Table2[[#This Row],[OSA - nonHDF Economic Disadvantage]]/Table2[[#This Row],[TOTAL OSA - Economic Disadvantage]]) ->  | AL13: =IF(OR(Table2[[#This Row],[TOTAL OSA - Adult Learner]]="",Table2[[#This Row],[TOTAL OSA - Adult Learner]]=0 ),"",Table2[[#This Row],[OSA - nonHDF Adult Learner]]/Table2[[#This Row],[TOTAL OSA - Adult Learner]]) ->  | AN13: =IF(OR(Table2[[#This Row],[TOTAL OSA]]="",Table2[[#This Row],[TOTAL OSA]]=0 ),"",Table2[[#This Row],[OSA: HDF]]/Table2[[#This Row],[TOTAL OSA]]) ->  | AP13: =IF(OR(Table2[[#This Row],[TOTAL OSA - Academic Disadvantage]]="",Table2[[#This Row],[TOTAL OSA - Academic Disadvantage]]=0 ),"",Table2[[#This Row],[OSA: HDF Academic Disadvantage]]/Table2[[#This Row],[TOTAL OSA - Academic Disadvantage]]) ->  | AR13: =IF(OR(Table2[[#This Row],[TOTAL OSA - Economic Disadvantage]]="",Table2[[#This Row],[TOTAL OSA - Economic Disadvantage]]=0 ),"",Table2[[#This Row],[OSA: HDF Economic Disadvantage]]/Table2[[#This Row],[TOTAL OSA - Economic Disadvantage]]) ->  | AT13: =IF(OR(Table2[[#This Row],[TOTAL OSA - Adult Learner]]="",Table2[[#This Row],[TOTAL OSA - Adult Learner]]=0 ),"",Table2[[#This Row],[OSA: HDF - Adult Learner]]/Table2[[#This Row],[TOTAL OSA - Adult Learner]]) ->  | AU13: 290 | AV13: 128 | AW13: =IF(OR(Table2[[#This Row],[TOTAL Certificate I or II]]="",Table2[[#This Row],[TOTAL Certificate I or II]]=0 ),"",Table2[[#This Row],[TOTAL Certificate I or II - Academic Disadvantage]]/Table2[[#This Row],[TOTAL Certificate I or II]]) -> 0.4413793103 | AX13: 89 | AY13: =IF(OR(Table2[[#This Row],[TOTAL Certificate I or II]]="",Table2[[#This Row],[TOTAL Certificate I or II]]=0 ),"",Table2[[#This Row],[TOTAL Certificate I or II - Economic Disadvantage]]/Table2[[#This Row],[TOTAL Certificate I or II]]) -> 0.3068965517 | AZ13: 189 | BA13: =IF(OR(Table2[[#This Row],[TOTAL Certificate I or II]]="",Table2[[#This Row],[TOTAL Certificate I or II]]=0 ),"",Table2[[#This Row],[TOTAL Certificate I or II - Adult Learner]]/Table2[[#This Row],[TOTAL Certificate I or II]]) -> 0.6517241379 | BB13: 156 | BC13: =IF(OR(Table2[[#This Row],[TOTAL Certificate I or II]]="",Table2[[#This Row],[TOTAL Certificate I or II]]=0 ),"",Table2[[#This Row],[Certificate I or II nonHDF]]/Table2[[#This Row],[TOTAL Certificate I or II]]) -> 0.5379310345 | BD13: 51 | BE13: =IF(OR(Table2[[#This Row],[OSA: HDF Academic Disadvantage]]="",Table2[[#This Row],[OSA: HDF Academic Disadvantage]]=0 ),"",Table2[[#This Row],[Certificate I or II - nonHDF Academic Disadvantage]]/Table2[[#This Row],[OSA: HDF Academic Disadvantage]]) ->  | BF13: 30 | BG13: =IF(OR(Table2[[#This Row],[TOTAL Certificate I or II - Economic Disadvantage]]="",Table2[[#This Row],[TOTAL Certificate I or II - Economic Disadvantage]]=0 ),"",Table2[[#This Row],[Certificate I or II - nonHDF Economic Disadvantage]]/Table2[[#This Row],[TOTAL Certificate I or II - Economic Disadvantage]]) -> 0.3370786517 | BH13: 99 | BI13: =IF(OR(Table2[[#This Row],[TOTAL Certificate I or II - Adult Learner]]="",Table2[[#This Row],[TOTAL Certificate I or II - Adult Learner]]=0 ),"",Table2[[#This Row],[Certificate I or II - nonHDF Adult Learner]]/Table2[[#This Row],[TOTAL Certificate I or II - Adult Learner]]) -> 0.5238095238 | BJ13: 134 | BK13: =IF(OR(Table2[[#This Row],[TOTAL Certificate I or II]]="",Table2[[#This Row],[TOTAL Certificate I or II]]=0 ),"",Table2[[#This Row],[Certificate I or II: HDF]]/Table2[[#This Row],[TOTAL Certificate I or II]]) -> 0.4620689655 | BL13: 77 | BM13: =IF(OR(Table2[[#This Row],[TOTAL Certificate I or II - Academic Disadvantage]]="",Table2[[#This Row],[TOTAL Certificate I or II - Academic Disadvantage]]=0 ),"",Table2[[#This Row],[Certificate I or II: HDF Academic Disadvantage]]/Table2[[#This Row],[TOTAL Certificate I or II - Academic Disadvantage]]) -> 0.6015625 | BN13: 59 | BO13: =IF(OR(Table2[[#This Row],[TOTAL Certificate I or II - Economic Disadvantage]]="",Table2[[#This Row],[TOTAL Certificate I or II - Economic Disadvantage]]=0 ),"",Table2[[#This Row],[Certificate I or II: HDF Economic Disadvantage]]/Table2[[#This Row],[TOTAL Certificate I or II - Economic Disadvantage]]) -> 0.6629213483 | BP13: 90 | BQ13: =IF(OR(Table2[[#This Row],[TOTAL Certificate I or II - Adult Learner]]="",Table2[[#This Row],[TOTAL Certificate I or II - Adult Learner]]=0 ),"",Table2[[#This Row],[Certificate I or II: HDF Adult Learner]]/Table2[[#This Row],[TOTAL Certificate I or II - Adult Learner]]) -> 0.4761904762 | BR13: 20 | BS13: =IF(OR(Table2[[#This Row],[TOTAL Certificate I or II]]="",Table2[[#This Row],[TOTAL Certificate I or II]]=0 ),"",Table2[[#This Row],[TOTAL Cert I or II: COV Premium]]/Table2[[#This Row],[TOTAL Certificate I or II]]) -> 0.06896551724 | BT13: 0 | BU13: 0 | BV13: =IF(OR(Table2[[#This Row],[TOTAL Advanced Technical Certificate]]="",Table2[[#This Row],[TOTAL Advanced Technical Certificate]]=0 ),"",Table2[[#This Row],[TOTAL Advanced Technical Certificate - Academic Disadvantage]]/Table2[[#This Row],[TOTAL Advanced Technical Certificate]]) ->  | BW13: 0 | BX13: =IF(OR(Table2[[#This Row],[TOTAL Advanced Technical Certificate]]="",Table2[[#This Row],[TOTAL Advanced Technical Certificate]]=0 ),"",Table2[[#This Row],[TOTAL Advanced Technical Certificate - Economic Disadvantage]]/Table2[[#This Row],[TOTAL Advanced Technical Certificate]]) ->  | BY13: 0 | BZ13: =IF(OR(Table2[[#This Row],[TOTAL Advanced Technical Certificate]]="",Table2[[#This Row],[TOTAL Advanced Technical Certificate]]=0 ),"",Table2[[#This Row],[TOTAL Advanced Technical Certificate - Adult Learner]]/Table2[[#This Row],[TOTAL Advanced Technical Certificate]]) ->  | CA13: 0 | CB13: =IF(OR(Table2[[#This Row],[TOTAL Advanced Technical Certificate]]="",Table2[[#This Row],[TOTAL Advanced Technical Certificate]]=0 ),"",Table2[[#This Row],[Advanced Technical Certificate nonHDF]]/Table2[[#This Row],[TOTAL Advanced Technical Certificate]]) ->  | CC13: 0 | CD13: =IF(OR(Table2[[#This Row],[TOTAL Advanced Technical Certificate - Academic Disadvantage]]="",Table2[[#This Row],[TOTAL Advanced Technical Certificate - Academic Disadvantage]]=0 ),"",Table2[[#This Row],[Advanced Technical Certificate nonHDF - Academic Disadvantage]]/Table2[[#This Row],[TOTAL Advanced Technical Certificate - Academic Disadvantage]]) ->  | CE13: 0 | CF13: =IF(OR(Table2[[#This Row],[TOTAL Advanced Technical Certificate - Economic Disadvantage]]="",Table2[[#This Row],[TOTAL Advanced Technical Certificate - Economic Disadvantage]]=0 ),"",Table2[[#This Row],[Advanced Technical Certificate - nonHDF Economic Disadvantage]]/Table2[[#This Row],[TOTAL Advanced Technical Certificate - Economic Disadvantage]]) ->  | CG13: 0 | CH13: =IF(OR(Table2[[#This Row],[TOTAL Advanced Technical Certificate - Adult Learner]]="",Table2[[#This Row],[TOTAL Advanced Technical Certificate - Adult Learner]]=0 ),"",Table2[[#This Row],[Advanced Technical Certificate - nonHDF Adult Learner]]/Table2[[#This Row],[TOTAL Advanced Technical Certificate - Adult Learner]]) ->  | CI13: 0 | CJ13: =IF(OR(Table2[[#This Row],[TOTAL Advanced Technical Certificate]]="",Table2[[#This Row],[TOTAL Advanced Technical Certificate]]=0 ),"",Table2[[#This Row],[Advanced Technical Certificate: HDF]]/Table2[[#This Row],[TOTAL Advanced Technical Certificate]]) ->  | CK13: 0 | CL13: =IF(OR(Table2[[#This Row],[TOTAL Advanced Technical Certificate - Academic Disadvantage]]="",Table2[[#This Row],[TOTAL Advanced Technical Certificate - Academic Disadvantage]]=0 ),"",Table2[[#This Row],[Advanced Technical Certificate: HDF Academic Disadvantage]]/Table2[[#This Row],[TOTAL Advanced Technical Certificate - Academic Disadvantage]]) ->  | CM13: 0 | CN13: =IF(OR(Table2[[#This Row],[TOTAL Advanced Technical Certificate - Economic Disadvantage]]="",Table2[[#This Row],[TOTAL Advanced Technical Certificate - Economic Disadvantage]]=0 ),"",Table2[[#This Row],[Advanced Technical Certificate: HDF Economic Disadvantage]]/Table2[[#This Row],[TOTAL Advanced Technical Certificate - Economic Disadvantage]]) ->  | CO13: 0 | CP13: =IF(OR(Table2[[#This Row],[TOTAL Advanced Technical Certificate - Adult Learner]]="",Table2[[#This Row],[TOTAL Advanced Technical Certificate - Adult Learner]]=0 ),"",Table2[[#This Row],[Advanced Technical Certificate: HDF Adult Learner]]/Table2[[#This Row],[TOTAL Advanced Technical Certificate - Adult Learner]]) ->  | CQ13: 601 | CR13: 171 | CS13: =IF(OR(Table2[[#This Row],[TOTAL Associate Degree]]="",Table2[[#This Row],[TOTAL Associate Degree]]=0 ),"",Table2[[#This Row],[TOTAL Associate Degree - Academic Disadvantage]]/Table2[[#This Row],[TOTAL Associate Degree]]) -> 0.2845257903 | CT13: 228 | CU13: =IF(OR(Table2[[#This Row],[TOTAL Associate Degree]]="",Table2[[#This Row],[TOTAL Associate Degree]]=0 ),"",Table2[[#This Row],[TOTAL Associate Degree - Economic Disadvantage]]/Table2[[#This Row],[TOTAL Associate Degree]]) -> 0.3793677205 | CV13: 234 | CW13: =IF(OR(Table2[[#This Row],[TOTAL Associate Degree]]="",Table2[[#This Row],[TOTAL Associate Degree]]=0 ),"",Table2[[#This Row],[TOTAL Associate Degree - Adult Learner]]/Table2[[#This Row],[TOTAL Associate Degree]]) -> 0.3893510815 | CX13: 502 | CY13: =IF(OR(Table2[[#This Row],[TOTAL Associate Degree]]="",Table2[[#This Row],[TOTAL Associate Degree]]=0 ),"",Table2[[#This Row],[Associate Degree nonHDF]]/Table2[[#This Row],[TOTAL Associate Degree]]) -> 0.8352745424 | CZ13: 153 | DA13: =IF(OR(Table2[[#This Row],[TOTAL Associate Degree - Academic Disadvantage]]="",Table2[[#This Row],[TOTAL Associate Degree - Academic Disadvantage]]=0 ),"",Table2[[#This Row],[Associate Degree - nonHDF Academic Disadvantage]]/Table2[[#This Row],[TOTAL Associate Degree - Academic Disadvantage]]) -> 0.8947368421 | DB13: 189 | DC13: =IF(OR(Table2[[#This Row],[TOTAL Associate Degree - Economic Disadvantage]]="",Table2[[#This Row],[TOTAL Associate Degree - Economic Disadvantage]]=0 ),"",Table2[[#This Row],[Associate Degree - nonHDF Economic Disadvantage]]/Table2[[#This Row],[TOTAL Associate Degree - Economic Disadvantage]]) -> 0.8289473684 | DD13: 154 | DE13: =IF(OR(Table2[[#This Row],[TOTAL Associate Degree - Adult Learner]]="",Table2[[#This Row],[TOTAL Associate Degree - Adult Learner]]=0 ),"",Table2[[#This Row],[Associate Degree - nonHDF Adult Learner]]/Table2[[#This Row],[TOTAL Associate Degree - Adult Learner]]) -> 0.6581196581 | DF13: 99 | DG13: =IF(OR(Table2[[#This Row],[TOTAL Associate Degree]]="",Table2[[#This Row],[TOTAL Associate Degree]]=0 ),"",Table2[[#This Row],[Associate Degree: HDF]]/Table2[[#This Row],[TOTAL Associate Degree]]) -> 0.1647254576 | DH13: 18 | DI13: =IF(OR(Table2[[#This Row],[TOTAL Associate Degree - Academic Disadvantage]]="",Table2[[#This Row],[TOTAL Associate Degree - Academic Disadvantage]]=0 ),"",Table2[[#This Row],[Associate Degree: HDF Academic Disadvantage]]/Table2[[#This Row],[TOTAL Associate Degree - Academic Disadvantage]]) -> 0.1052631579 | DJ13: 39 | DK13: =IF(OR(Table2[[#This Row],[TOTAL Associate Degree - Economic Disadvantage]]="",Table2[[#This Row],[TOTAL Associate Degree - Economic Disadvantage]]=0 ),"",Table2[[#This Row],[Associate Degree: HDF Economic Disadvantage]]/Table2[[#This Row],[TOTAL Associate Degree - Economic Disadvantage]]) -> 0.1710526316 | DL13: 80 | DM13: =IF(OR(Table2[[#This Row],[TOTAL Associate Degree - Adult Learner]]="",Table2[[#This Row],[TOTAL Associate Degree - Adult Learner]]=0 ),"",Table2[[#This Row],[Associate Degree: HDF Adult Learner]]/Table2[[#This Row],[TOTAL Associate Degree - Adult Learner]]) -> 0.3418803419 | DN13: 77 | DO13: =IF(OR(Table2[[#This Row],[TOTAL Associate Degree]]="",Table2[[#This Row],[TOTAL Associate Degree]]=0 ),"",Table2[[#This Row],[TOTAL Associate: CoV Premium]]/Table2[[#This Row],[TOTAL Associate Degree]]) -> 0.1281198003 | DP13: 0 | DQ13: 0 | DR13: =IF(OR(Table2[[#This Row],[TOTAL Bachelor''s Degree]]="",Table2[[#This Row],[TOTAL Bachelor''s Degree]]=0 ),"",Table2[[#This Row],[TOTAL Bachelor''s Degree - Academic Disadvantage]]/Table2[[#This Row],[TOTAL Bachelor''s Degree]]) ->  | DS13: 0 | DT13: =IF(OR(Table2[[#This Row],[TOTAL Bachelor''s Degree]]="",Table2[[#This Row],[TOTAL Bachelor''s Degree]]=0 ),"",Table2[[#This Row],[TOTAL Bachelor''s Degree - Economic Disadvantage]]/Table2[[#This Row],[TOTAL Bachelor''s Degree]]) ->  | DU13: 0 | DV13: =IF(OR(Table2[[#This Row],[TOTAL Bachelor''s Degree]]="",Table2[[#This Row],[TOTAL Bachelor''s Degree]]=0 ),"",Table2[[#This Row],[TOTAL Bachelor''s Degree - Adult Learner]]/Table2[[#This Row],[TOTAL Bachelor''s Degree]]) ->  | DW13: 0 | DX13: =IF(OR(Table2[[#This Row],[TOTAL Bachelor''s Degree]]="",Table2[[#This Row],[TOTAL Bachelor''s Degree]]=0 ),"",Table2[[#This Row],[Bachelor''s Degree nonHDF]]/Table2[[#This Row],[TOTAL Bachelor''s Degree]]) ->  | DY13: 0 | DZ13: =IF(OR(Table2[[#This Row],[TOTAL Bachelor''s Degree - Academic Disadvantage]]="",Table2[[#This Row],[TOTAL Bachelor''s Degree - Academic Disadvantage]]=0 ),"",Table2[[#This Row],[Bachelor''s Degree - nonHDF Academic Disadvantage]]/Table2[[#This Row],[TOTAL Bachelor''s Degree - Academic Disadvantage]]) ->  | EA13: 0 | EB13: =IF(OR(Table2[[#This Row],[TOTAL Bachelor''s Degree - Economic Disadvantage]]="",Table2[[#This Row],[TOTAL Bachelor''s Degree - Economic Disadvantage]]=0 ),"",Table2[[#This Row],[Bachelor''s Degree - nonHDF Economic Disadvantage]]/Table2[[#This Row],[TOTAL Bachelor''s Degree - Economic Disadvantage]]) ->  | EC13: 0 | ED13: =IF(OR(Table2[[#This Row],[TOTAL Bachelor''s Degree - Adult Learner]]="",Table2[[#This Row],[TOTAL Bachelor''s Degree - Adult Learner]]=0 ),"",Table2[[#This Row],[Bachelor''s Degree - nonHDF Adult Learner]]/Table2[[#This Row],[TOTAL Bachelor''s Degree - Adult Learner]]) ->  | EE13: 0 | EF13: =IF(OR(Table2[[#This Row],[TOTAL Bachelor''s Degree]]="",Table2[[#This Row],[TOTAL Bachelor''s Degree]]=0 ),"",Table2[[#This Row],[Bachelor''s Degree: HDF]]/Table2[[#This Row],[TOTAL Bachelor''s Degree]]) ->  | EG13: 0 | EH13: =IF(OR(Table2[[#This Row],[TOTAL Bachelor''s Degree - Academic Disadvantage]]="",Table2[[#This Row],[TOTAL Bachelor''s Degree - Academic Disadvantage]]=0 ),"",Table2[[#This Row],[Bachelor''s Degree: HDF - Academic Disadvantage]]/Table2[[#This Row],[TOTAL Bachelor''s Degree - Academic Disadvantage]]) ->  | EI13: 0 | EJ13: =IF(OR(Table2[[#This Row],[TOTAL Bachelor''s Degree - Economic Disadvantage]]="",Table2[[#This Row],[TOTAL Bachelor''s Degree - Economic Disadvantage]]=0 ),"",Table2[[#This Row],[Bachelor''s Degree: HDF - Economic Disadvantage]]/Table2[[#This Row],[TOTAL Bachelor''s Degree - Economic Disadvantage]]) ->  | EK13: 0 | EL13: =IF(OR(Table2[[#This Row],[TOTAL Bachelor''s Degree - Adult Learner]]="",Table2[[#This Row],[TOTAL Bachelor''s Degree - Adult Learner]]=0 ),"",Table2[[#This Row],[Bachelor''s Degree: HDF - Adult Learner]]/Table2[[#This Row],[TOTAL Bachelor''s Degree - Adult Learner]]) ->  | EM13: 0 | EN13: =IF(OR(Table2[[#This Row],[TOTAL Bachelor''s Degree]]="",Table2[[#This Row],[TOTAL Bachelor''s Degree]]=0 ),"",Table2[[#This Row],[TOTAL Bachelor''s Degree: CoV Premium]]/Table2[[#This Row],[TOTAL Bachelor''s Degree]]) -> 
A14: 023614 | B14: Collin County Community College District | C14: 2018 | D14: 1191 | E14: 2963 | F14: 818 | G14: =IF(OR(Table2[[#This Row],[GAI Transfer with 15 SCH Total]]="",Table2[[#This Row],[GAI Transfer with 15 SCH Total]]=0 ),"",Table2[[#This Row],[GAI Transfer with 15 SCH - Academic Disadvantage]]/Table2[[#This Row],[GAI Transfer with 15 SCH Total]]) -> 0.2760715491 | H14: 855 | I14: =IF(OR(Table2[[#This Row],[GAI Transfer with 15 SCH Total]]="",Table2[[#This Row],[GAI Transfer with 15 SCH Total]]=0 ),"",Table2[[#This Row],[GAI Transfer with 15 SCH - Economic Disadvantage]]/Table2[[#This Row],[GAI Transfer with 15 SCH Total]]) -> 0.288558893 | J14: 451 | K14: =IF(OR(Table2[[#This Row],[GAI Transfer with 15 SCH Total]]="",Table2[[#This Row],[GAI Transfer with 15 SCH Total]]=0 ),"",Table2[[#This Row],[GAI Transfer with 15 SCH - Adult Learner]]/Table2[[#This Row],[GAI Transfer with 15 SCH Total]]) -> 0.1522105974 | N14: =IF(OR(Table2[[#This Row],[GAI Co-enrollment with 15 SCH Total]]="", Table2[[#This Row],[GAI Co-enrollment with 15 SCH Total]]=0),"",Table2[[#This Row],[GAI Co-enrollment with 15 SCH -Academic Disadvantage]]/Table2[[#This Row],[GAI Co-enrollment with 15 SCH Total]]) ->  | P14: =IF(OR(Table2[[#This Row],[GAI Co-enrollment with 15 SCH Total]]="", Table2[[#This Row],[GAI Co-enrollment with 15 SCH Total]]=0),"",Table2[[#This Row],[GAI Co-enrollment with 15 SCH - Economic Disadvantage]]/Table2[[#This Row],[GAI Co-enrollment with 15 SCH Total]]) ->  | R14: =IF(OR(Table2[[#This Row],[GAI Co-enrollment with 15 SCH Total]]="",Table2[[#This Row],[GAI Co-enrollment with 15 SCH Total]]=0 ),"",Table2[[#This Row],[GAI Co-enrollment with 15 SCH - Adult Learner]]/Table2[[#This Row],[GAI Co-enrollment with 15 SCH Total]]) ->  | Z14: =IF(OR(Table2[[#This Row],[TOTAL OSA]]="",Table2[[#This Row],[TOTAL OSA]]=0 ),"",Table2[[#This Row],[TOTAL OSA - Academic Disadvantage]]/Table2[[#This Row],[TOTAL OSA]]) ->  | AB14: =IF(OR(Table2[[#This Row],[TOTAL OSA]]="",Table2[[#This Row],[TOTAL OSA]]=0 ),"",Table2[[#This Row],[TOTAL OSA - Economic Disadvantage]]/Table2[[#This Row],[TOTAL OSA]]) ->  | AD14: =IF(OR(Table2[[#This Row],[TOTAL OSA]]="",Table2[[#This Row],[TOTAL OSA]]=0 ),"",Table2[[#This Row],[TOTAL OSA - Adult Learner]]/Table2[[#This Row],[TOTAL OSA]]) ->  | AF14: =IF(OR(Table2[[#This Row],[TOTAL OSA]]="",Table2[[#This Row],[TOTAL OSA]]=0 ),"",Table2[[#This Row],[OSA nonHDF]]/Table2[[#This Row],[TOTAL OSA]]) ->  | AH14: =IF(OR(Table2[[#This Row],[TOTAL OSA - Academic Disadvantage]]="",Table2[[#This Row],[TOTAL OSA - Academic Disadvantage]]=0 ),"",Table2[[#This Row],[OSA - nonHDF Academic Disadvantage]]/Table2[[#This Row],[TOTAL OSA - Academic Disadvantage]]) ->  | AJ14: =IF(OR(Table2[[#This Row],[TOTAL OSA - Economic Disadvantage]]="",Table2[[#This Row],[TOTAL OSA - Economic Disadvantage]]=0 ),"",Table2[[#This Row],[OSA - nonHDF Economic Disadvantage]]/Table2[[#This Row],[TOTAL OSA - Economic Disadvantage]]) ->  | AL14: =IF(OR(Table2[[#This Row],[TOTAL OSA - Adult Learner]]="",Table2[[#This Row],[TOTAL OSA - Adult Learner]]=0 ),"",Table2[[#This Row],[OSA - nonHDF Adult Learner]]/Table2[[#This Row],[TOTAL OSA - Adult Learner]]) ->  | AN14: =IF(OR(Table2[[#This Row],[TOTAL OSA]]="",Table2[[#This Row],[TOTAL OSA]]=0 ),"",Table2[[#This Row],[OSA: HDF]]/Table2[[#This Row],[TOTAL OSA]]) ->  | AP14: =IF(OR(Table2[[#This Row],[TOTAL OSA - Academic Disadvantage]]="",Table2[[#This Row],[TOTAL OSA - Academic Disadvantage]]=0 ),"",Table2[[#This Row],[OSA: HDF Academic Disadvantage]]/Table2[[#This Row],[TOTAL OSA - Academic Disadvantage]]) ->  | AR14: =IF(OR(Table2[[#This Row],[TOTAL OSA - Economic Disadvantage]]="",Table2[[#This Row],[TOTAL OSA - Economic Disadvantage]]=0 ),"",Table2[[#This Row],[OSA: HDF Economic Disadvantage]]/Table2[[#This Row],[TOTAL OSA - Economic Disadvantage]]) ->  | AT14: =IF(OR(Table2[[#This Row],[TOTAL OSA - Adult Learner]]="",Table2[[#This Row],[TOTAL OSA - Adult Learner]]=0 ),"",Table2[[#This Row],[OSA: HDF - Adult Learner]]/Table2[[#This Row],[TOTAL OSA - Adult Learner]]) ->  | AU14: 839 | AV14: 298 | AW14: =IF(OR(Table2[[#This Row],[TOTAL Certificate I or II]]="",Table2[[#This Row],[TOTAL Certificate I or II]]=0 ),"",Table2[[#This Row],[TOTAL Certificate I or II - Academic Disadvantage]]/Table2[[#This Row],[TOTAL Certificate I or II]]) -> 0.3551847437 | AX14: 198 | AY14: =IF(OR(Table2[[#This Row],[TOTAL Certificate I or II]]="",Table2[[#This Row],[TOTAL Certificate I or II]]=0 ),"",Table2[[#This Row],[TOTAL Certificate I or II - Economic Disadvantage]]/Table2[[#This Row],[TOTAL Certificate I or II]]) -> 0.2359952324 | AZ14: 451 | BA14: =IF(OR(Table2[[#This Row],[TOTAL Certificate I or II]]="",Table2[[#This Row],[TOTAL Certificate I or II]]=0 ),"",Table2[[#This Row],[TOTAL Certificate I or II - Adult Learner]]/Table2[[#This Row],[TOTAL Certificate I or II]]) -> 0.5375446961 | BB14: 608 | BC14: =IF(OR(Table2[[#This Row],[TOTAL Certificate I or II]]="",Table2[[#This Row],[TOTAL Certificate I or II]]=0 ),"",Table2[[#This Row],[Certificate I or II nonHDF]]/Table2[[#This Row],[TOTAL Certificate I or II]]) -> 0.7246722288 | BD14: 223 | BE14: =IF(OR(Table2[[#This Row],[OSA: HDF Academic Disadvantage]]="",Table2[[#This Row],[OSA: HDF Academic Disadvantage]]=0 ),"",Table2[[#This Row],[Certificate I or II - nonHDF Academic Disadvantage]]/Table2[[#This Row],[OSA: HDF Academic Disadvantage]]) ->  | BF14: 133 | BG14: =IF(OR(Table2[[#This Row],[TOTAL Certificate I or II - Economic Disadvantage]]="",Table2[[#This Row],[TOTAL Certificate I or II - Economic Disadvantage]]=0 ),"",Table2[[#This Row],[Certificate I or II - nonHDF Economic Disadvantage]]/Table2[[#This Row],[TOTAL Certificate I or II - Economic Disadvantage]]) -> 0.6717171717 | BH14: 300 | BI14: =IF(OR(Table2[[#This Row],[TOTAL Certificate I or II - Adult Learner]]="",Table2[[#This Row],[TOTAL Certificate I or II - Adult Learner]]=0 ),"",Table2[[#This Row],[Certificate I or II - nonHDF Adult Learner]]/Table2[[#This Row],[TOTAL Certificate I or II - Adult Learner]]) -> 0.6651884701 | BJ14: 231 | BK14: =IF(OR(Table2[[#This Row],[TOTAL Certificate I or II]]="",Table2[[#This Row],[TOTAL Certificate I or II]]=0 ),"",Table2[[#This Row],[Certificate I or II: HDF]]/Table2[[#This Row],[TOTAL Certificate I or II]]) -> 0.2753277712 | BL14: 75 | BM14: =IF(OR(Table2[[#This Row],[TOTAL Certificate I or II - Academic Disadvantage]]="",Table2[[#This Row],[TOTAL Certificate I or II - Academic Disadvantage]]=0 ),"",Table2[[#This Row],[Certificate I or II: HDF Academic Disadvantage]]/Table2[[#This Row],[TOTAL Certificate I or II - Academic Disadvantage]]) -> 0.2516778523 | BN14: 65 | BO14: =IF(OR(Table2[[#This Row],[TOTAL Certificate I or II - Economic Disadvantage]]="",Table2[[#This Row],[TOTAL Certificate I or II - Economic Disadvantage]]=0 ),"",Table2[[#This Row],[Certificate I or II: HDF Economic Disadvantage]]/Table2[[#This Row],[TOTAL Certificate I or II - Economic Disadvantage]]) -> 0.3282828283 | BP14: 151 | BQ14: =IF(OR(Table2[[#This Row],[TOTAL Certificate I or II - Adult Learner]]="",Table2[[#This Row],[TOTAL Certificate I or II - Adult Learner]]=0 ),"",Table2[[#This Row],[Certificate I or II: HDF Adult Learner]]/Table2[[#This Row],[TOTAL Certificate I or II - Adult Learner]]) -> 0.3348115299 | BR14: 28 | BS14: =IF(OR(Table2[[#This Row],[TOTAL Certificate I or II]]="",Table2[[#This Row],[TOTAL Certificate I or II]]=0 ),"",Table2[[#This Row],[TOTAL Cert I or II: COV Premium]]/Table2[[#This Row],[TOTAL Certificate I or II]]) -> 0.03337306317 | BT14: 0 | BU14: 0 | BV14: =IF(OR(Table2[[#This Row],[TOTAL Advanced Technical Certificate]]="",Table2[[#This Row],[TOTAL Advanced Technical Certificate]]=0 ),"",Table2[[#This Row],[TOTAL Advanced Technical Certificate - Academic Disadvantage]]/Table2[[#This Row],[TOTAL Advanced Technical Certificate]]) ->  | BW14: 0 | BX14: =IF(OR(Table2[[#This Row],[TOTAL Advanced Technical Certificate]]="",Table2[[#This Row],[TOTAL Advanced Technical Certificate]]=0 ),"",Table2[[#This Row],[TOTAL Advanced Technical Certificate - Economic Disadvantage]]/Table2[[#This Row],[TOTAL Advanced Technical Certificate]]) ->  | BY14: 0 | BZ14: =IF(OR(Table2[[#This Row],[TOTAL Advanced Technical Certificate]]="",Table2[[#This Row],[TOTAL Advanced Technical Certificate]]=0 ),"",Table2[[#This Row],[TOTAL Advanced Technical Certificate - Adult Learner]]/Table2[[#This Row],[TOTAL Advanced Technical Certificate]]) ->  | CA14: 0 | CB14: =IF(OR(Table2[[#This Row],[TOTAL Advanced Technical Certificate]]="",Table2[[#This Row],[TOTAL Advanced Technical Certificate]]=0 ),"",Table2[[#This Row],[Advanced Technical Certificate nonHDF]]/Table2[[#This Row],[TOTAL Advanced Technical Certificate]]) ->  | CC14: 0 | CD14: =IF(OR(Table2[[#This Row],[TOTAL Advanced Technical Certificate - Academic Disadvantage]]="",Table2[[#This Row],[TOTAL Advanced Technical Certificate - Academic Disadvantage]]=0 ),"",Table2[[#This Row],[Advanced Technical Certificate nonHDF - Academic Disadvantage]]/Table2[[#This Row],[TOTAL Advanced Technical Certificate - Academic Disadvantage]]) ->  | CE14: 0 | CF14: =IF(OR(Table2[[#This Row],[TOTAL Advanced Technical Certificate - Economic Disadvantage]]="",Table2[[#This Row],[TOTAL Advanced Technical Certificate - Economic Disadvantage]]=0 ),"",Table2[[#This Row],[Advanced Technical Certificate - nonHDF Economic Disadvantage]]/Table2[[#This Row],[TOTAL Advanced Technical Certificate - Economic Disadvantage]]) ->  | CG14: 0 | CH14: =IF(OR(Table2[[#This Row],[TOTAL Advanced Technical Certificate - Adult Learner]]="",Table2[[#This Row],[TOTAL Advanced Technical Certificate - Adult Learner]]=0 ),"",Table2[[#This Row],[Advanced Technical Certificate - nonHDF Adult Learner]]/Table2[[#This Row],[TOTAL Advanced Technical Certificate - Adult Learner]]) ->  | CI14: 0 | CJ14: =IF(OR(Table2[[#This Row],[TOTAL Advanced Technical Certificate]]="",Table2[[#This Row],[TOTAL Advanced Technical Certificate]]=0 ),"",Table2[[#This Row],[Advanced Technical Certificate: HDF]]/Table2[[#This Row],[TOTAL Advanced Technical Certificate]]) ->  | CK14: 0 | CL14: =IF(OR(Table2[[#This Row],[TOTAL Advanced Technical Certificate - Academic Disadvantage]]="",Table2[[#This Row],[TOTAL Advanced Technical Certificate - Academic Disadvantage]]=0 ),"",Table2[[#This Row],[Advanced Technical Certificate: HDF Academic Disadvantage]]/Table2[[#This Row],[TOTAL Advanced Technical Certificate - Academic Disadvantage]]) ->  | CM14: 0 | CN14: =IF(OR(Table2[[#This Row],[TOTAL Advanced Technical Certificate - Economic Disadvantage]]="",Table2[[#This Row],[TOTAL Advanced Technical Certificate - Economic Disadvantage]]=0 ),"",Table2[[#This Row],[Advanced Technical Certificate: HDF Economic Disadvantage]]/Table2[[#This Row],[TOTAL Advanced Technical Certificate - Economic Disadvantage]]) ->  | CO14: 0 | CP14: =IF(OR(Table2[[#This Row],[TOTAL Advanced Technical Certificate - Adult Learner]]="",Table2[[#This Row],[TOTAL Advanced Technical Certificate - Adult Learner]]=0 ),"",Table2[[#This Row],[Advanced Technical Certificate: HDF Adult Learner]]/Table2[[#This Row],[TOTAL Advanced Technical Certificate - Adult Learner]]) ->  | CQ14: 2649 | CR14: 605 | CS14: =IF(OR(Table2[[#This Row],[TOTAL Associate Degree]]="",Table2[[#This Row],[TOTAL Associate Degree]]=0 ),"",Table2[[#This Row],[TOTAL Associate Degree - Academic Disadvantage]]/Table2[[#This Row],[TOTAL Associate Degree]]) -> 0.228388071 | CT14: 794 | CU14: =IF(OR(Table2[[#This Row],[TOTAL Associate Degree]]="",Table2[[#This Row],[TOTAL Associate Degree]]=0 ),"",Table2[[#This Row],[TOTAL Associate Degree - Economic Disadvantage]]/Table2[[#This Row],[TOTAL Associate Degree]]) -> 0.2997357493 | CV14: 886 | CW14: =IF(OR(Table2[[#This Row],[TOTAL Associate Degree]]="",Table2[[#This Row],[TOTAL Associate Degree]]=0 ),"",Table2[[#This Row],[TOTAL Associate Degree - Adult Learner]]/Table2[[#This Row],[TOTAL Associate Degree]]) -> 0.3344658362 | CX14: 2224 | CY14: =IF(OR(Table2[[#This Row],[TOTAL Associate Degree]]="",Table2[[#This Row],[TOTAL Associate Degree]]=0 ),"",Table2[[#This Row],[Associate Degree nonHDF]]/Table2[[#This Row],[TOTAL Associate Degree]]) -> 0.8395620989 | CZ14: 537 | DA14: =IF(OR(Table2[[#This Row],[TOTAL Associate Degree - Academic Disadvantage]]="",Table2[[#This Row],[TOTAL Associate Degree - Academic Disadvantage]]=0 ),"",Table2[[#This Row],[Associate Degree - nonHDF Academic Disadvantage]]/Table2[[#This Row],[TOTAL Associate Degree - Academic Disadvantage]]) -> 0.8876033058 | DB14: 655 | DC14: =IF(OR(Table2[[#This Row],[TOTAL Associate Degree - Economic Disadvantage]]="",Table2[[#This Row],[TOTAL Associate Degree - Economic Disadvantage]]=0 ),"",Table2[[#This Row],[Associate Degree - nonHDF Economic Disadvantage]]/Table2[[#This Row],[TOTAL Associate Degree - Economic Disadvantage]]) -> 0.8249370277 | DD14: 631 | DE14: =IF(OR(Table2[[#This Row],[TOTAL Associate Degree - Adult Learner]]="",Table2[[#This Row],[TOTAL Associate Degree - Adult Learner]]=0 ),"",Table2[[#This Row],[Associate Degree - nonHDF Adult Learner]]/Table2[[#This Row],[TOTAL Associate Degree - Adult Learner]]) -> 0.7121896163 | DF14: 425 | DG14: =IF(OR(Table2[[#This Row],[TOTAL Associate Degree]]="",Table2[[#This Row],[TOTAL Associate Degree]]=0 ),"",Table2[[#This Row],[Associate Degree: HDF]]/Table2[[#This Row],[TOTAL Associate Degree]]) -> 0.1604379011 | DH14: 68 | DI14: =IF(OR(Table2[[#This Row],[TOTAL Associate Degree - Academic Disadvantage]]="",Table2[[#This Row],[TOTAL Associate Degree - Academic Disadvantage]]=0 ),"",Table2[[#This Row],[Associate Degree: HDF Academic Disadvantage]]/Table2[[#This Row],[TOTAL Associate Degree - Academic Disadvantage]]) -> 0.1123966942 | DJ14: 139 | DK14: =IF(OR(Table2[[#This Row],[TOTAL Associate Degree - Economic Disadvantage]]="",Table2[[#This Row],[TOTAL Associate Degree - Economic Disadvantage]]=0 ),"",Table2[[#This Row],[Associate Degree: HDF Economic Disadvantage]]/Table2[[#This Row],[TOTAL Associate Degree - Economic Disadvantage]]) -> 0.1750629723 | DL14: 255 | DM14: =IF(OR(Table2[[#This Row],[TOTAL Associate Degree - Adult Learner]]="",Table2[[#This Row],[TOTAL Associate Degree - Adult Learner]]=0 ),"",Table2[[#This Row],[Associate Degree: HDF Adult Learner]]/Table2[[#This Row],[TOTAL Associate Degree - Adult Learner]]) -> 0.2878103837 | DN14: 147 | DO14: =IF(OR(Table2[[#This Row],[TOTAL Associate Degree]]="",Table2[[#This Row],[TOTAL Associate Degree]]=0 ),"",Table2[[#This Row],[TOTAL Associate: CoV Premium]]/Table2[[#This Row],[TOTAL Associate Degree]]) -> 0.05549263873 | DP14: 0 | DQ14: 0 | DR14: =IF(OR(Table2[[#This Row],[TOTAL Bachelor''s Degree]]="",Table2[[#This Row],[TOTAL Bachelor''s Degree]]=0 ),"",Table2[[#This Row],[TOTAL Bachelor''s Degree - Academic Disadvantage]]/Table2[[#This Row],[TOTAL Bachelor''s Degree]]) ->  | DS14: 0 | DT14: =IF(OR(Table2[[#This Row],[TOTAL Bachelor''s Degree]]="",Table2[[#This Row],[TOTAL Bachelor''s Degree]]=0 ),"",Table2[[#This Row],[TOTAL Bachelor''s Degree - Economic Disadvantage]]/Table2[[#This Row],[TOTAL Bachelor''s Degree]]) ->  | DU14: 0 | DV14: =IF(OR(Table2[[#This Row],[TOTAL Bachelor''s Degree]]="",Table2[[#This Row],[TOTAL Bachelor''s Degree]]=0 ),"",Table2[[#This Row],[TOTAL Bachelor''s Degree - Adult Learner]]/Table2[[#This Row],[TOTAL Bachelor''s Degree]]) ->  | DW14: 0 | DX14: =IF(OR(Table2[[#This Row],[TOTAL Bachelor''s Degree]]="",Table2[[#This Row],[TOTAL Bachelor''s Degree]]=0 ),"",Table2[[#This Row],[Bachelor''s Degree nonHDF]]/Table2[[#This Row],[TOTAL Bachelor''s Degree]]) ->  | DY14: 0 | DZ14: =IF(OR(Table2[[#This Row],[TOTAL Bachelor''s Degree - Academic Disadvantage]]="",Table2[[#This Row],[TOTAL Bachelor''s Degree - Academic Disadvantage]]=0 ),"",Table2[[#This Row],[Bachelor''s Degree - nonHDF Academic Disadvantage]]/Table2[[#This Row],[TOTAL Bachelor''s Degree - Academic Disadvantage]]) ->  | EA14: 0 | EB14: =IF(OR(Table2[[#This Row],[TOTAL Bachelor''s Degree - Economic Disadvantage]]="",Table2[[#This Row],[TOTAL Bachelor''s Degree - Economic Disadvantage]]=0 ),"",Table2[[#This Row],[Bachelor''s Degree - nonHDF Economic Disadvantage]]/Table2[[#This Row],[TOTAL Bachelor''s Degree - Economic Disadvantage]]) ->  | EC14: 0 | ED14: =IF(OR(Table2[[#This Row],[TOTAL Bachelor''s Degree - Adult Learner]]="",Table2[[#This Row],[TOTAL Bachelor''s Degree - Adult Learner]]=0 ),"",Table2[[#This Row],[Bachelor''s Degree - nonHDF Adult Learner]]/Table2[[#This Row],[TOTAL Bachelor''s Degree - Adult Learner]]) ->  | EE14: 0 | EF14: =IF(OR(Table2[[#This Row],[TOTAL Bachelor''s Degree]]="",Table2[[#This Row],[TOTAL Bachelor''s Degree]]=0 ),"",Table2[[#This Row],[Bachelor''s Degree: HDF]]/Table2[[#This Row],[TOTAL Bachelor''s Degree]]) ->  | EG14: 0 | EH14: =IF(OR(Table2[[#This Row],[TOTAL Bachelor''s Degree - Academic Disadvantage]]="",Table2[[#This Row],[TOTAL Bachelor''s Degree - Academic Disadvantage]]=0 ),"",Table2[[#This Row],[Bachelor''s Degree: HDF - Academic Disadvantage]]/Table2[[#This Row],[TOTAL Bachelor''s Degree - Academic Disadvantage]]) ->  | EI14: 0 | EJ14: =IF(OR(Table2[[#This Row],[TOTAL Bachelor''s Degree - Economic Disadvantage]]="",Table2[[#This Row],[TOTAL Bachelor''s Degree - Economic Disadvantage]]=0 ),"",Table2[[#This Row],[Bachelor''s Degree: HDF - Economic Disadvantage]]/Table2[[#This Row],[TOTAL Bachelor''s Degree - Economic Disadvantage]]) ->  | EK14: 0 | EL14: =IF(OR(Table2[[#This Row],[TOTAL Bachelor''s Degree - Adult Learner]]="",Table2[[#This Row],[TOTAL Bachelor''s Degree - Adult Learner]]=0 ),"",Table2[[#This Row],[Bachelor''s Degree: HDF - Adult Learner]]/Table2[[#This Row],[TOTAL Bachelor''s Degree - Adult Learner]]) ->  | EM14: 0 | EN14: =IF(OR(Table2[[#This Row],[TOTAL Bachelor''s Degree]]="",Table2[[#This Row],[TOTAL Bachelor''s Degree]]=0 ),"",Table2[[#This Row],[TOTAL Bachelor''s Degree: CoV Premium]]/Table2[[#This Row],[TOTAL Bachelor''s Degree]]) -> 
